Body,BodyName,ClearanceDate,UniqueReference,SupplierName,SupplierRefNo,Amount,DepartmentExpenseArea,ExpenseType,ExpenseCode,ExtendedDescription,AccountHolder,MerchantCategory
http://statistics.data.gov.uk/id/local-authority/43UM,WOKING BOROUGH COUNCIL,01/04/2015,GPC/576228951,AMAZON PRIME,PROCUREMENT CARD,-79.00 ,CORPORATE STRATEGY - INDPDNT S/WATER SCRUTINY PANEL,PYMNTS TO CONTRACTOR RE PANEL,Q646,REFUND,JOANNE MCINTOSH,CONTINUITY/SUBSCRIPTION MERCHANTS
http://statistics.data.gov.uk/id/local-authority/43UM,WOKING BOROUGH COUNCIL,01/04/2015,GPC/576229553,AMZ LIGO-UK,PROCUREMENT CARD,99.99 ,INFORMATION TECHNOLOGY - ICT GENERAL REPLACEMENT 14/15,ADDITIONAL EQUIPMENT,Q020,6 PHONES FOR BROOKWOOD CEMETERY,MR V BARNARD,COMPUTER NETWORK/INFORMATION SERVICES
http://statistics.data.gov.uk/id/local-authority/43UM,WOKING BOROUGH COUNCIL,01/04/2015,GPC/576984699,FREEDOM LEISURE,PROCUREMENT CARD,35.00 ,INDEPENDENT LIVING SERVICES - FAMILY SUPPORT PROGRAMME,FAMILY ENABLING (FSP PROJECT),H137,KEY CARDS FOR FAMILY,REBECCA ROSSETTI,GOVERNMENT SERVICES-NOT ELSEWHERE CLASSIFIED
http://statistics.data.gov.uk/id/local-authority/43UM,WOKING BOROUGH COUNCIL,01/04/2015,GPC/576228186,PAYPAL  CITIZENSADV,PROCUREMENT CARD,21.50 ,CORPORATE STRATEGY - CIVIC EXPENSES,MAYORS ALLOWANCE-CURRENT,H250,TICKETS FOR THE MAYOR,MRS A L JOHNSON,CHARITABLE AND SOCIAL SERVICE ORGANIZATIONS
http://statistics.data.gov.uk/id/local-authority/43UM,WOKING BOROUGH COUNCIL,01/04/2015,GPC/576227952,THE CHARTERED INSTITUT,PROCUREMENT CARD,217.00 ,CORPORATE STRATEGY - PUBLIC RELATIONS,GENERAL PUBLIC RELATIONS EXPNS,H915,PROFESSIONAL MEMBERSHIP,MR AC DENNER,MEMBERSHIP ORGANIZATIONS-NOT ELSEWHERE CLASSIFIED
http://statistics.data.gov.uk/id/local-authority/43UM,WOKING BOROUGH COUNCIL,01/04/2015,GPC/576229240,TICKETOFFICESALE,PROCUREMENT CARD,27.90 ,ASSET MANAGEMENT - ASSET MANAGER,TRAVEL EXPENSES-OFFICERS,F600,TRAIN TO LONDON MEETING WITH EFA,IAN M TOMES,PASSENGER RAILWAYS
http://statistics.data.gov.uk/id/local-authority/43UM,WOKING BOROUGH COUNCIL,02/04/2015,0000380726/001,ALLSTAR BUSINESS SOLUTIONS LTD,01500600,31.55 ,INDEPENDENT LIVING SERVICES - MEALS ON WHEELS,GAS,D420,GAS,INDEPENDENT LIVING SERVICES,UTILITIES
http://statistics.data.gov.uk/id/local-authority/43UM,WOKING BOROUGH COUNCIL,02/04/2015,0000380726/002,ALLSTAR BUSINESS SOLUTIONS LTD,01500600,123.18 ,INDEPENDENT LIVING SERVICES - MEALS ON WHEELS,PETROL,F200,PETROL,INDEPENDENT LIVING SERVICES,UTILITIES
http://statistics.data.gov.uk/id/local-authority/43UM,WOKING BOROUGH COUNCIL,02/04/2015,0000380727/002,BATH & NORTH EAST SOMERSET COUNCIL,01389100,22027.40 ,FINANCIAL SERVICES - INTEREST PAYABLE & SIMILAR CHG,TEMP LOANS,U115,TEMP LOANS,FINANCIAL SERVICES,FINANCIAL SERVICES
http://statistics.data.gov.uk/id/local-authority/43UM,WOKING BOROUGH COUNCIL,02/04/2015,GPC/576984228,CO-OP GROUP 310410,PROCUREMENT CARD,30.00 ,INDEPENDENT LIVING SERVICES - FAMILY SUPPORT PROGRAMME,FAMILY ENABLING (FSP PROJECT),H137,GAS & ELECTRIC FOR FAMILY,REBECCA ROSSETTI,GROCERY STORES SUPERMARKETS
http://statistics.data.gov.uk/id/local-authority/43UM,WOKING BOROUGH COUNCIL,02/04/2015,GPC/576982566,FRESCH COFFEE LTD,PROCUREMENT CARD,3.33 ,H G WELLS - H G WELLS - CATERING,PROVISIONS-FOOD,G440,READY MADE SANDWICHES,MR P HOCKLEY,EATING PLACES RESTAURANTS
http://statistics.data.gov.uk/id/local-authority/43UM,WOKING BOROUGH COUNCIL,02/04/2015,GPC/576982565,FRESCH COFFEE LTD,PROCUREMENT CARD,24.00 ,H G WELLS - H G WELLS - CATERING,PROVISIONS-FOOD,G440,READY MADE SANDWICHES,MR P HOCKLEY,EATING PLACES RESTAURANTS
http://statistics.data.gov.uk/id/local-authority/43UM,WOKING BOROUGH COUNCIL,02/04/2015,GPC/576985034,MAGIC WHITEBOARD LTD,PROCUREMENT CARD,83.28 ,INDEPENDENT LIVING SERVICES - PARKVIEW,FIXTURES & FITTINGS - NEW,D800,REUSABLE WIPE CLEAN BOARDS,MR JONNY MOLES,STATIONERY OFFICE SUPPLIES PRINTING AND WRITING
http://statistics.data.gov.uk/id/local-authority/43UM,WOKING BOROUGH COUNCIL,02/04/2015,GPC/576985264,ONE STOP MOBILITY,PROCUREMENT CARD,27.48 ,HOUSING SERVICES - HOME IMPS & BEN AGENCY,HANDYPERSON MATERIALS,G201,GRAB RAILS,MR A KIMBLE,PROFESSIONAL SERVICES-NOT ELSEWHERE CLASSIFIED
http://statistics.data.gov.uk/id/local-authority/43UM,WOKING BOROUGH COUNCIL,02/04/2015,GPC/576985443,RON HAYES & SON,PROCUREMENT CARD,5.96 ,HOUSING SERVICES - HOME IMPS & BEN AGENCY,HANDYPERSON MATERIALS,G201,SEALANT,MR A KIMBLE,HARDWARE STORES
http://statistics.data.gov.uk/id/local-authority/43UM,WOKING BOROUGH COUNCIL,02/04/2015,GPC/576985566,SAINSBURYS S/MKTS,PROCUREMENT CARD,24.80 ,INDEPENDENT LIVING SERVICES - FAMILY SUPPORT PROGRAMME,FAMILY ENABLING (FSP PROJECT),H137,FOOD FOR FAMILY,REBECCA ROSSETTI,GROCERY STORES SUPERMARKETS
http://statistics.data.gov.uk/id/local-authority/43UM,WOKING BOROUGH COUNCIL,02/04/2015,GPC/576985851,TESCO PFS 3381,PROCUREMENT CARD,25.00 ,HOUSING SERVICES - HOME IMPS & BEN AGENCY,HANDYPERSON MATERIALS,G201,FUEL,MR A KIMBLE,SERVICE STATIONS (WITH OR WITHOUT ANCILLARY SERVIC
http://statistics.data.gov.uk/id/local-authority/43UM,WOKING BOROUGH COUNCIL,03/04/2015,GPC/576985592,SCREWFIX DIRECT,PROCUREMENT CARD,18.14 ,HOUSING SERVICES - HOME IMPS & BEN AGENCY,HANDYPERSON MATERIALS,G201,STOCK SCREWS AND PLUGS,MR A KIMBLE,BUILDING MATERIALS LUMBER STORES
http://statistics.data.gov.uk/id/local-authority/43UM,WOKING BOROUGH COUNCIL,06/04/2015,GPC/576983605,AMAZON SVCS EUROPE SAR,PROCUREMENT CARD,19.58 ,INFORMATION TECHNOLOGY - ICT GENERAL REPLACEMENT 15/16,REPLACEMENT EQUIPMENT,Q010,DYMO LABELMAKER,STUART MILLAR,BOOK STORES
http://statistics.data.gov.uk/id/local-authority/43UM,WOKING BOROUGH COUNCIL,06/04/2015,GPC/576983714,AMAZON UK RETAIL,PROCUREMENT CARD,27.38 ,INFORMATION TECHNOLOGY - ICT GENERAL REPLACEMENT 15/16,ADDITIONAL EQUIPMENT,Q020,LINDY PRINT SERVER,STUART MILLAR,DIRECT MARKETERS - OTHER
http://statistics.data.gov.uk/id/local-authority/43UM,WOKING BOROUGH COUNCIL,06/04/2015,GPC/576984482,EXPERTSEXCHANGE,PROCUREMENT CARD,129.95 ,INFORMATION TECHNOLOGY - ICT GENERAL REPLACEMENT 15/16,SOFTWARE LICENCES,Q036,IT SOLUTIONS ONLINE ANNUAL SUBS,MR V BARNARD,COMPUTER MAINTENANCE REPAIR AND SERVICES NOT ELS
http://statistics.data.gov.uk/id/local-authority/43UM,WOKING BOROUGH COUNCIL,06/04/2015,GPC/577198098,HOMEBASE LTD 050,PROCUREMENT CARD,14.78 ,INDEPENDENT LIVING SERVICES - BROCKHILL EXTRA CARE,EQUIPMENT,G100,EQUIPMENT (PLANTS),PHILLY CAWSEY,BUILDING MATERIALS LUMBER STORES
http://statistics.data.gov.uk/id/local-authority/43UM,WOKING BOROUGH COUNCIL,07/04/2015,0000379618/001,3663,01190400,25.17 ,H G WELLS - H G WELLS - CATERING,EQUIPMENT,G100,EQUIPMENT,H G WELLS,CATERING
http://statistics.data.gov.uk/id/local-authority/43UM,WOKING BOROUGH COUNCIL,07/04/2015,0000380021/003,3663,01190400,38.63 ,H G WELLS - H G WELLS - CATERING,EQUIPMENT,G100,EQUIPMENT,H G WELLS,CATERING
http://statistics.data.gov.uk/id/local-authority/43UM,WOKING BOROUGH COUNCIL,07/04/2015,0000379618/002,3663,01190400,316.07 ,H G WELLS - H G WELLS - CATERING,PROVISIONS-FOOD,G440,PROVISIONS-FOOD,H G WELLS,CATERING
http://statistics.data.gov.uk/id/local-authority/43UM,WOKING BOROUGH COUNCIL,07/04/2015,0000380021/001,3663,01190400,206.35 ,H G WELLS - H G WELLS - CATERING,PROVISIONS-FOOD,G440,PROVISIONS-FOOD,H G WELLS,CATERING
http://statistics.data.gov.uk/id/local-authority/43UM,WOKING BOROUGH COUNCIL,07/04/2015,0000380021/002,3663,01190400,30.44 ,H G WELLS - H G WELLS - CATERING,PROVISIONS-FOOD,G440,PROVISIONS-FOOD,H G WELLS,CATERING
http://statistics.data.gov.uk/id/local-authority/43UM,WOKING BOROUGH COUNCIL,07/04/2015,0000380298/001,3663,01190400,108.45 ,INDEPENDENT LIVING SERVICES - PARKVIEW,PROVISIONS,G410,PROVISIONS,INDEPENDENT LIVING SERVICES,CATERING
http://statistics.data.gov.uk/id/local-authority/43UM,WOKING BOROUGH COUNCIL,07/04/2015,0000380825/001,5G COMMUNICATIONS LIMITED,01829300,34.92 ,INDEPENDENT LIVING SERVICES - PARKVIEW,NETWORK CIRCUITS,G800,NETWORK CIRCUITS,INDEPENDENT LIVING SERVICES,INFORMATION COMMUNICATION TECHNOLOGY
http://statistics.data.gov.uk/id/local-authority/43UM,WOKING BOROUGH COUNCIL,07/04/2015,0000380792/001,A M NELLESS Ltd,40404900,150.00 ,ASSET MANAGEMENT - THE COTTAGE BROOKWOOD CEMETARY,R&M BUILDINGS - CONTRACTORS,D100,R&M BUILDINGS - CONTRACTORS,ASSET MANAGEMENT,WORKS (CONSTRUCTION REPAIR MAINTENANCE)
http://statistics.data.gov.uk/id/local-authority/43UM,WOKING BOROUGH COUNCIL,07/04/2015,0000380795/001,ABL ELECTRICAL SERVICES,40504300,144.00 ,HOUSING SERVICES - PRIVATE SECTOR RENEWAL GRANT,WARM AT HOME GRANTS,Q729,WARM AT HOME GRANTS,HOUSING SERVICES,HOUSING MANAGEMENT
http://statistics.data.gov.uk/id/local-authority/43UM,WOKING BOROUGH COUNCIL,07/04/2015,0000380573/001,ACL,01224300,330.95 ,ASSET MANAGEMENT - FACILITIES MANAGEMENT,FACILITIES MANAGEMENT REPAIRS,D908,FACILITIES MANAGEMENT REPAIRS,ASSET MANAGEMENT,FACILITIES & MANAGEMENT SERVICES
http://statistics.data.gov.uk/id/local-authority/43UM,WOKING BOROUGH COUNCIL,07/04/2015,0000380764/001,AFFINITY WATER,01095900,627.24 ,HOUSING SERVICES - LANDLORDS EXPENSES,WATER,D700,WATER,HOUSING SERVICES,UTILITIES
http://statistics.data.gov.uk/id/local-authority/43UM,WOKING BOROUGH COUNCIL,07/04/2015,0000380052/001,ALLIES AND MORRISON ARCHITECTS,40411400,16263.75 ,PLANNING SERVICES - LOCAL DEVELOPMENT FRAMEWORK,OTHER CONSULTANTS,Q430,OTHER CONSULTANTS,PLANNING SERVICES,CONSULTANCY
http://statistics.data.gov.uk/id/local-authority/43UM,WOKING BOROUGH COUNCIL,07/04/2015,0000380051/001,ANDREW HILL,01986900,940.75 ,PLANNING SERVICES - TOWN PLANNING GENERAL,CONSULTANTS,H670,CONSULTANTS,PLANNING SERVICES,CONSULTANCY
http://statistics.data.gov.uk/id/local-authority/43UM,WOKING BOROUGH COUNCIL,07/04/2015,0000380489/001,ARTICLE SEVEN,00942800,310.00 ,INFORMATION TECHNOLOGY - I.T.S. ICT,PC & SERVER APPLICATION SOFT/W,G180,PC & SERVER APPLICATION SOFT/W,INFORMATION TECHNOLOGY,FACILITIES & MANAGEMENT SERVICES
http://statistics.data.gov.uk/id/local-authority/43UM,WOKING BOROUGH COUNCIL,07/04/2015,0000379995/001,ASTOR CARE & NURSING AGENCY,01531000,319.95 ,INDEPENDENT LIVING SERVICES - BATHING SERVICE,SERVICE PROVIDER,H730,SERVICE PROVIDER,INDEPENDENT LIVING SERVICES,SOCIAL COMMUNITY CARE SUP & SERV (ADULT)
http://statistics.data.gov.uk/id/local-authority/43UM,WOKING BOROUGH COUNCIL,07/04/2015,0000379996/001,ASTOR CARE & NURSING AGENCY,01531000,426.60 ,INDEPENDENT LIVING SERVICES - BATHING SERVICE,SERVICE PROVIDER,H730,SERVICE PROVIDER,INDEPENDENT LIVING SERVICES,SOCIAL COMMUNITY CARE SUP & SERV (ADULT)
http://statistics.data.gov.uk/id/local-authority/43UM,WOKING BOROUGH COUNCIL,07/04/2015,0000379997/001,ASTOR CARE & NURSING AGENCY,01531000,284.40 ,INDEPENDENT LIVING SERVICES - BATHING SERVICE,SERVICE PROVIDER,H730,SERVICE PROVIDER,INDEPENDENT LIVING SERVICES,SOCIAL COMMUNITY CARE SUP & SERV (ADULT)
http://statistics.data.gov.uk/id/local-authority/43UM,WOKING BOROUGH COUNCIL,07/04/2015,0000379998/001,ASTOR CARE & NURSING AGENCY,01531000,177.75 ,INDEPENDENT LIVING SERVICES - BATHING SERVICE,SERVICE PROVIDER,H730,SERVICE PROVIDER,INDEPENDENT LIVING SERVICES,SOCIAL COMMUNITY CARE SUP & SERV (ADULT)
http://statistics.data.gov.uk/id/local-authority/43UM,WOKING BOROUGH COUNCIL,07/04/2015,0000380075/001,ATKINSONS GUEST HOUSE,40250600,405.00 ,HOUSING SERVICES - HOUSING OPTIONS,BED & BREAKFAST EXPENDITURE,H786,BED & BREAKFAST EXPENDITURE,HOUSING SERVICES,HOUSING MANAGEMENT
http://statistics.data.gov.uk/id/local-authority/43UM,WOKING BOROUGH COUNCIL,07/04/2015,0000380076/001,ATKINSONS GUEST HOUSE,40250600,285.00 ,HOUSING SERVICES - HOUSING OPTIONS,BED & BREAKFAST EXPENDITURE,H786,BED & BREAKFAST EXPENDITURE,HOUSING SERVICES,HOUSING MANAGEMENT
http://statistics.data.gov.uk/id/local-authority/43UM,WOKING BOROUGH COUNCIL,07/04/2015,0000380077/001,ATKINSONS GUEST HOUSE,40250600,540.00 ,HOUSING SERVICES - HOUSING OPTIONS,BED & BREAKFAST EXPENDITURE,H786,BED & BREAKFAST EXPENDITURE,HOUSING SERVICES,HOUSING MANAGEMENT
http://statistics.data.gov.uk/id/local-authority/43UM,WOKING BOROUGH COUNCIL,07/04/2015,0000380078/001,ATKINSONS GUEST HOUSE,40250600,380.00 ,HOUSING SERVICES - HOUSING OPTIONS,BED & BREAKFAST EXPENDITURE,H786,BED & BREAKFAST EXPENDITURE,HOUSING SERVICES,HOUSING MANAGEMENT
http://statistics.data.gov.uk/id/local-authority/43UM,WOKING BOROUGH COUNCIL,07/04/2015,0000380079/001,ATKINSONS GUEST HOUSE,40250600,267.00 ,HOUSING SERVICES - HOUSING OPTIONS,BED & BREAKFAST EXPENDITURE,H786,BED & BREAKFAST EXPENDITURE,HOUSING SERVICES,HOUSING MANAGEMENT
http://statistics.data.gov.uk/id/local-authority/43UM,WOKING BOROUGH COUNCIL,07/04/2015,0000380080/001,ATKINSONS GUEST HOUSE,40250600,623.00 ,HOUSING SERVICES - HOUSING OPTIONS,BED & BREAKFAST EXPENDITURE,H786,BED & BREAKFAST EXPENDITURE,HOUSING SERVICES,HOUSING MANAGEMENT
http://statistics.data.gov.uk/id/local-authority/43UM,WOKING BOROUGH COUNCIL,07/04/2015,0000380081/001,ATKINSONS GUEST HOUSE,40250600,675.00 ,HOUSING SERVICES - HOUSING OPTIONS,BED & BREAKFAST EXPENDITURE,H786,BED & BREAKFAST EXPENDITURE,HOUSING SERVICES,HOUSING MANAGEMENT
http://statistics.data.gov.uk/id/local-authority/43UM,WOKING BOROUGH COUNCIL,07/04/2015,0000380082/001,ATKINSONS GUEST HOUSE,40250600,475.00 ,HOUSING SERVICES - HOUSING OPTIONS,BED & BREAKFAST EXPENDITURE,H786,BED & BREAKFAST EXPENDITURE,HOUSING SERVICES,HOUSING MANAGEMENT
http://statistics.data.gov.uk/id/local-authority/43UM,WOKING BOROUGH COUNCIL,07/04/2015,0000380083/001,ATKINSONS GUEST HOUSE,40250600,623.00 ,HOUSING SERVICES - HOUSING OPTIONS,BED & BREAKFAST EXPENDITURE,H786,BED & BREAKFAST EXPENDITURE,HOUSING SERVICES,HOUSING MANAGEMENT
http://statistics.data.gov.uk/id/local-authority/43UM,WOKING BOROUGH COUNCIL,07/04/2015,0000380722/001,BBF FIELDING LIMITED,00114900,550.00 ,ASSET MANAGEMENT - GOLDWATER LODGE,MAIN CONTRACTOR,Q200,MAIN CONTRACTOR,ASSET MANAGEMENT,WORKS (CONSTRUCTION REPAIR MAINTENANCE)
http://statistics.data.gov.uk/id/local-authority/43UM,WOKING BOROUGH COUNCIL,07/04/2015,0000380443/001,BBF FIELDING LIMITED,00114900,12473.75 ,ASSET MANAGEMENT - 1ST BYFLEET SCOUTS,OTHER CONSULTANTS,Q430,OTHER CONSULTANTS,ASSET MANAGEMENT,WORKS (CONSTRUCTION REPAIR MAINTENANCE)
http://statistics.data.gov.uk/id/local-authority/43UM,WOKING BOROUGH COUNCIL,07/04/2015,0000380443/002,BBF FIELDING LIMITED,00114900,559.17 ,ASSET MANAGEMENT - 1ST BYFLEET SCOUTS,OTHER CONSULTANTS,Q430,OTHER CONSULTANTS,ASSET MANAGEMENT,WORKS (CONSTRUCTION REPAIR MAINTENANCE)
http://statistics.data.gov.uk/id/local-authority/43UM,WOKING BOROUGH COUNCIL,07/04/2015,0000380443/003,BBF FIELDING LIMITED,00114900,97.00 ,ASSET MANAGEMENT - 1ST BYFLEET SCOUTS,OTHER CONSULTANTS,Q430,OTHER CONSULTANTS,ASSET MANAGEMENT,WORKS (CONSTRUCTION REPAIR MAINTENANCE)
http://statistics.data.gov.uk/id/local-authority/43UM,WOKING BOROUGH COUNCIL,07/04/2015,0000380794/001,BLUE STEP SOLUTIONS LIMITED,40504400,336.50 ,LEISURE SERVICES - YOUTH PROVISION BIG LOTTERY,PROMOTIONS & GRANTS,H467,PROMOTIONS & GRANTS,LEISURE SERVICES,FINANCIAL SERVICES
http://statistics.data.gov.uk/id/local-authority/43UM,WOKING BOROUGH COUNCIL,07/04/2015,0000380531/001,BRACKNELL FOREST COUNCIL,40281700,3394.56 ,INDEPENDENT LIVING SERVICES - COMMUNITY ALARMS-GF,PAYMENT TO OTHER LOCAL AUTHORI,H664,PAYMENT TO OTHER LOCAL AUTHORI,INDEPENDENT LIVING SERVICES,SOCIAL COMMUNITY CARE SUP & SERV (ADULT)
http://statistics.data.gov.uk/id/local-authority/43UM,WOKING BOROUGH COUNCIL,07/04/2015,0000380531/002,BRACKNELL FOREST COUNCIL,40281700,2758.08 ,INDEPENDENT LIVING SERVICES - COMMUNITY ALARMS-HRA,PAYMENT TO OTHER LOCAL AUTHORI,H664,PAYMENT TO OTHER LOCAL AUTHORI,INDEPENDENT LIVING SERVICES,SOCIAL COMMUNITY CARE SUP & SERV (ADULT)
http://statistics.data.gov.uk/id/local-authority/43UM,WOKING BOROUGH COUNCIL,07/04/2015,0000380098/002,BRISTOW & SUTOR,40257600,160.33 ,REVENUES AND BENEFITS - BUSINESS RATES,BAILIFFS COMMISION,H911,BAILIFFS COMMISION,REVENUES AND BENEFITS,FINANCIAL SERVICES
http://statistics.data.gov.uk/id/local-authority/43UM,WOKING BOROUGH COUNCIL,07/04/2015,0000380284/001,BRISTOW & SUTOR,40257600,5.00 ,REVENUES AND BENEFITS - RENT ALLOWANCES,DEBT COLLECTION AGENCY COMMISS,H910,DEBT COLLECTION AGENCY COMMISS,REVENUES AND BENEFITS,FINANCIAL SERVICES
http://statistics.data.gov.uk/id/local-authority/43UM,WOKING BOROUGH COUNCIL,07/04/2015,0000380285/001,BRISTOW & SUTOR,40257600,45.68 ,REVENUES AND BENEFITS - RENT ALLOWANCES,DEBT COLLECTION AGENCY COMMISS,H910,DEBT COLLECTION AGENCY COMMISS,REVENUES AND BENEFITS,FINANCIAL SERVICES
http://statistics.data.gov.uk/id/local-authority/43UM,WOKING BOROUGH COUNCIL,07/04/2015,0000380503/003,BRISTOW & SUTOR,40257600,19.50 ,HOUSING SERVICES - RENT COLLECTION,DEBT COLLECTION AGENCY COMMISS,H910,DEBT COLLECTION AGENCY COMMISS,HOUSING SERVICES,FINANCIAL SERVICES
http://statistics.data.gov.uk/id/local-authority/43UM,WOKING BOROUGH COUNCIL,07/04/2015,0000380503/002,BRISTOW & SUTOR,40257600,15.00 ,HOUSING SERVICES - HOUSING OPTIONS,DEBT COLLECTION AGENCY COMMISS,H910,DEBT COLLECTION AGENCY COMMISS,HOUSING SERVICES,FINANCIAL SERVICES
http://statistics.data.gov.uk/id/local-authority/43UM,WOKING BOROUGH COUNCIL,07/04/2015,0000380503/001,BRISTOW & SUTOR,40257600,8.93 ,HOUSING SERVICES - SALE COUNCIL HOUSES,SOCH DEBT COLLECTION AGENCY,Q910,SOCH DEBT COLLECTION AGENCY,HOUSING SERVICES,FINANCIAL SERVICES
http://statistics.data.gov.uk/id/local-authority/43UM,WOKING BOROUGH COUNCIL,07/04/2015,0000380418/001,BRITISH AIRWAYS BRASS BAND,00681500,600.00 ,CORPORATE STRATEGY - REMEMBRANCE SUNDAY,ARMISTICE DAY EXPENSES,H654,ARMISTICE DAY EXPENSES,CORPORATE STRATEGY,ARTS & LEISURE SERVICES
http://statistics.data.gov.uk/id/local-authority/43UM,WOKING BOROUGH COUNCIL,07/04/2015,0000380574/003,BRITISH TELECOMMUNICATIONS PLC,01612200,-18.74 ,ASSET MANAGEMENT - CIVIC OFFICES,NETWORK CIRCUITS,G800,NETWORK CIRCUITS,ASSET MANAGEMENT,INFORMATION COMMUNICATION TECHNOLOGY
http://statistics.data.gov.uk/id/local-authority/43UM,WOKING BOROUGH COUNCIL,07/04/2015,0000380574/004,BRITISH TELECOMMUNICATIONS PLC,01612200,49.29 ,INDEPENDENT LIVING SERVICES - COMMUNITY ALARMS-HRA,NETWORK CIRCUITS,G800,NETWORK CIRCUITS,INDEPENDENT LIVING SERVICES,INFORMATION COMMUNICATION TECHNOLOGY
http://statistics.data.gov.uk/id/local-authority/43UM,WOKING BOROUGH COUNCIL,07/04/2015,0000380574/001,BRITISH TELECOMMUNICATIONS PLC,01612200,125.00 ,INDEPENDENT LIVING SERVICES - COMMUNITY ALARMS-HRA,TELEPHONES-CALL CHARGES,G810,TELEPHONES-CALL CHARGES,INDEPENDENT LIVING SERVICES,INFORMATION COMMUNICATION TECHNOLOGY
http://statistics.data.gov.uk/id/local-authority/43UM,WOKING BOROUGH COUNCIL,07/04/2015,0000380574/002,BRITISH TELECOMMUNICATIONS PLC,01612200,383.00 ,ASSET MANAGEMENT - BROOKWOOD CEMETERY TEMP COSTS,TELEPHONES,Q052,TELEPHONES,ASSET MANAGEMENT,INFORMATION COMMUNICATION TECHNOLOGY
http://statistics.data.gov.uk/id/local-authority/43UM,WOKING BOROUGH COUNCIL,07/04/2015,0000380574/005,BRITISH TELECOMMUNICATIONS PLC,01612200,200.92 ,ASSET MANAGEMENT - BROOKWOOD CEMETERY TEMP COSTS,TELEPHONES,Q052,TELEPHONES,ASSET MANAGEMENT,INFORMATION COMMUNICATION TECHNOLOGY
http://statistics.data.gov.uk/id/local-authority/43UM,WOKING BOROUGH COUNCIL,07/04/2015,0000380788/001,CAMEO,01136200,84.00 ,CORPORATE STRATEGY - GRANTS TO ORGANISATION,GRANTS,H100,GRANTS,CORPORATE STRATEGY,FINANCIAL SERVICES
http://statistics.data.gov.uk/id/local-authority/43UM,WOKING BOROUGH COUNCIL,07/04/2015,0000380543/001,CAPITA BUSINESS SERVICES LTD,00585800,1800.00 ,REVENUES AND BENEFITS - C'L TAX BENEFIT ADMIN,SUBSCRIPTIONS,H110,SUBSCRIPTIONS,REVENUES AND BENEFITS,CONSULTANCY
http://statistics.data.gov.uk/id/local-authority/43UM,WOKING BOROUGH COUNCIL,07/04/2015,0000380529/001,CAPITA BUSINESS SERVICES LTD,00585800,8693.00 ,INFORMATION TECHNOLOGY - I.T.S. ICT,PC & SERVER SYSTEMS SOFTWARE,G193,PC & SERVER SYSTEMS SOFTWARE,INFORMATION TECHNOLOGY,CONSULTANCY
http://statistics.data.gov.uk/id/local-authority/43UM,WOKING BOROUGH COUNCIL,07/04/2015,0000380747/001,CASH CONTROL MACHINES (FLINTEX LTD),00856400,300.00 ,H G WELLS - H G WELLS - BAR,EQUIPMENT-HIRE,G115,EQUIPMENT-HIRE,H G WELLS,FINANCIAL SERVICES
http://statistics.data.gov.uk/id/local-authority/43UM,WOKING BOROUGH COUNCIL,07/04/2015,0000380723/001,CAUSEWAY TECHNOLOGIES LIMITED,40163600,10514.76 ,ASSET MANAGEMENT - FACILITIES MANAGEMENT,FACILITIES MANAGEMENT REPAIRS,D908,FACILITIES MANAGEMENT REPAIRS,ASSET MANAGEMENT,INFORMATION COMMUNICATION TECHNOLOGY
http://statistics.data.gov.uk/id/local-authority/43UM,WOKING BOROUGH COUNCIL,07/04/2015,0000380724/001,CAUSEWAY TECHNOLOGIES LIMITED,40163600,-1275.72 ,ASSET MANAGEMENT - FACILITIES MANAGEMENT,FACILITIES MANAGEMENT REPAIRS,D908,FACILITIES MANAGEMENT REPAIRS,ASSET MANAGEMENT,INFORMATION COMMUNICATION TECHNOLOGY
http://statistics.data.gov.uk/id/local-authority/43UM,WOKING BOROUGH COUNCIL,07/04/2015,0000380725/001,CAUSEWAY TECHNOLOGIES LIMITED,40163600,-217.69 ,ASSET MANAGEMENT - FACILITIES MANAGEMENT,FACILITIES MANAGEMENT REPAIRS,D908,FACILITIES MANAGEMENT REPAIRS,ASSET MANAGEMENT,INFORMATION COMMUNICATION TECHNOLOGY
http://statistics.data.gov.uk/id/local-authority/43UM,WOKING BOROUGH COUNCIL,07/04/2015,0000379557/001,CHASE INVENTORY SERVICES LIMITED,40239800,115.00 ,HOUSING SERVICES - TENANCY SUPPORT SCHEME,PROPERTY INSPECTIONS,H772,PROPERTY INSPECTIONS,HOUSING SERVICES,CONSULTANCY
http://statistics.data.gov.uk/id/local-authority/43UM,WOKING BOROUGH COUNCIL,07/04/2015,0000379558/001,CHASE INVENTORY SERVICES LIMITED,40239800,115.00 ,HOUSING SERVICES - TENANCY SUPPORT SCHEME,PROPERTY INSPECTIONS,H772,PROPERTY INSPECTIONS,HOUSING SERVICES,CONSULTANCY
http://statistics.data.gov.uk/id/local-authority/43UM,WOKING BOROUGH COUNCIL,07/04/2015,0000379350/001,CHEESMAN BROTHERS LTD,01050500,260.27 ,H G WELLS - H G WELLS - CATERING,PROVISIONS-FOOD,G440,PROVISIONS-FOOD,H G WELLS,CATERING
http://statistics.data.gov.uk/id/local-authority/43UM,WOKING BOROUGH COUNCIL,07/04/2015,0000379351/001,CHEESMAN BROTHERS LTD,01050500,51.71 ,H G WELLS - H G WELLS - CATERING,PROVISIONS-FOOD,G440,PROVISIONS-FOOD,H G WELLS,CATERING
http://statistics.data.gov.uk/id/local-authority/43UM,WOKING BOROUGH COUNCIL,07/04/2015,0000379597/001,CHEESMAN BROTHERS LTD,01050500,54.00 ,H G WELLS - H G WELLS - CATERING,PROVISIONS-FOOD,G440,PROVISIONS-FOOD,H G WELLS,CATERING
http://statistics.data.gov.uk/id/local-authority/43UM,WOKING BOROUGH COUNCIL,07/04/2015,0000380028/001,CHEESMAN BROTHERS LTD,01050500,23.11 ,H G WELLS - H G WELLS - CATERING,PROVISIONS-FOOD,G440,PROVISIONS-FOOD,H G WELLS,CATERING
http://statistics.data.gov.uk/id/local-authority/43UM,WOKING BOROUGH COUNCIL,07/04/2015,0000380029/001,CHEESMAN BROTHERS LTD,01050500,58.81 ,H G WELLS - H G WELLS - CATERING,PROVISIONS-FOOD,G440,PROVISIONS-FOOD,H G WELLS,CATERING
http://statistics.data.gov.uk/id/local-authority/43UM,WOKING BOROUGH COUNCIL,07/04/2015,0000380425/001,CHEESMAN BROTHERS LTD,01050500,60.40 ,H G WELLS - H G WELLS - CATERING,PROVISIONS-FOOD,G440,PROVISIONS-FOOD,H G WELLS,CATERING
http://statistics.data.gov.uk/id/local-authority/43UM,WOKING BOROUGH COUNCIL,07/04/2015,0000380426/001,CHEESMAN BROTHERS LTD,01050500,33.45 ,H G WELLS - H G WELLS - CATERING,PROVISIONS-FOOD,G440,PROVISIONS-FOOD,H G WELLS,CATERING
http://statistics.data.gov.uk/id/local-authority/43UM,WOKING BOROUGH COUNCIL,07/04/2015,0000380477/001,CHEESMAN BROTHERS LTD,01050500,15.10 ,H G WELLS - H G WELLS - CATERING,PROVISIONS-FOOD,G440,PROVISIONS-FOOD,H G WELLS,CATERING
http://statistics.data.gov.uk/id/local-authority/43UM,WOKING BOROUGH COUNCIL,07/04/2015,0000380478/001,CHEESMAN BROTHERS LTD,01050500,46.55 ,H G WELLS - H G WELLS - CATERING,PROVISIONS-FOOD,G440,PROVISIONS-FOOD,H G WELLS,CATERING
http://statistics.data.gov.uk/id/local-authority/43UM,WOKING BOROUGH COUNCIL,07/04/2015,0000380541/001,CHEESMAN BROTHERS LTD,01050500,136.43 ,H G WELLS - H G WELLS - CATERING,PROVISIONS-FOOD,G440,PROVISIONS-FOOD,H G WELLS,CATERING
http://statistics.data.gov.uk/id/local-authority/43UM,WOKING BOROUGH COUNCIL,07/04/2015,0000380701/001,CHEESMAN BROTHERS LTD,01050500,38.86 ,H G WELLS - H G WELLS - CATERING,PROVISIONS-FOOD,G440,PROVISIONS-FOOD,H G WELLS,CATERING
http://statistics.data.gov.uk/id/local-authority/43UM,WOKING BOROUGH COUNCIL,07/04/2015,0000380702/001,CHEESMAN BROTHERS LTD,01050500,3.40 ,H G WELLS - H G WELLS - CATERING,PROVISIONS-FOOD,G440,PROVISIONS-FOOD,H G WELLS,CATERING
http://statistics.data.gov.uk/id/local-authority/43UM,WOKING BOROUGH COUNCIL,07/04/2015,0000380728/004,CHEESMAN BROTHERS LTD,01050500,49.39 ,INDEPENDENT LIVING SERVICES - MEALS SERVICE - BROCKHILL,PROVISIONS,G410,PROVISIONS,INDEPENDENT LIVING SERVICES,CATERING
http://statistics.data.gov.uk/id/local-authority/43UM,WOKING BOROUGH COUNCIL,07/04/2015,0000380728/001,CHEESMAN BROTHERS LTD,01050500,12.46 ,INDEPENDENT LIVING SERVICES - MEALS SERVICE - ST MARYS,PROVISIONS,G410,PROVISIONS,INDEPENDENT LIVING SERVICES,CATERING
http://statistics.data.gov.uk/id/local-authority/43UM,WOKING BOROUGH COUNCIL,07/04/2015,0000380728/003,CHEESMAN BROTHERS LTD,01050500,18.84 ,INDEPENDENT LIVING SERVICES - MEALS SERVICE-MOORCROFT,PROVISIONS,G410,PROVISIONS,INDEPENDENT LIVING SERVICES,CATERING
http://statistics.data.gov.uk/id/local-authority/43UM,WOKING BOROUGH COUNCIL,07/04/2015,0000380728/002,CHEESMAN BROTHERS LTD,01050500,28.68 ,INDEPENDENT LIVING SERVICES - MEALS SERVICE -THE VYNE,PROVISIONS,G410,PROVISIONS,INDEPENDENT LIVING SERVICES,CATERING
http://statistics.data.gov.uk/id/local-authority/43UM,WOKING BOROUGH COUNCIL,07/04/2015,0000380822/001,CHEFOHOLICS,40505200,224.75 ,H G WELLS - H G WELLS - CATERING,TEMPORARY STAFF,H687,TEMPORARY STAFF,H G WELLS,HUMAN RESOURCES
http://statistics.data.gov.uk/id/local-authority/43UM,WOKING BOROUGH COUNCIL,07/04/2015,0000380558/001,CHINESE ASSOCIATION OF WOKING,01304700,530.00 ,NEIGHBOURHOOD SERVICES - ARTS DEVELOPMENT,SUPPORT LOCAL GROUPS,H120,SUPPORT LOCAL GROUPS,NEIGHBOURHOOD SERVICES,FACILITIES & MANAGEMENT SERVICES
http://statistics.data.gov.uk/id/local-authority/43UM,WOKING BOROUGH COUNCIL,07/04/2015,0000380804/001,CLIFTONS TURF MACHINERY,01472100,250.00 ,ASSET MANAGEMENT - UNIT 1 LITTLEWICK CARTHOUSE L,VOID COST,D124,VOID COST,ASSET MANAGEMENT,WORKS (CONSTRUCTION REPAIR MAINTENANCE)
http://statistics.data.gov.uk/id/local-authority/43UM,WOKING BOROUGH COUNCIL,07/04/2015,0000380787/001,COLDHARBOUR LUNCHEON CLUB,00319000,26.00 ,CORPORATE STRATEGY - GRANTS TO ORGANISATION,GRANTS,H100,GRANTS,CORPORATE STRATEGY,FINANCIAL SERVICES
http://statistics.data.gov.uk/id/local-authority/43UM,WOKING BOROUGH COUNCIL,07/04/2015,0000380798/001,DIGITAL FACTORY Ltd,40417300,2715.00 ,CORPORATE STRATEGY - CELBBRATE WOKING - SUPPORT PROJECTS 14,MAIN CONTRACTOR,Q200,MAIN CONTRACTOR,CORPORATE STRATEGY,WORKS (CONSTRUCTION REPAIR MAINTENANCE)
http://statistics.data.gov.uk/id/local-authority/43UM,WOKING BOROUGH COUNCIL,07/04/2015,0000380829/001,DOVETAIL BUILDING CONSULTANTS Ltd,40430000,495.00 ,ASSET MANAGEMENT - LITTLEWICK IND.EST CARTHOUSE L,R&M BUILDINGS - CONTRACTORS,D100,R&M BUILDINGS - CONTRACTORS,ASSET MANAGEMENT,CONSULTANCY
http://statistics.data.gov.uk/id/local-authority/43UM,WOKING BOROUGH COUNCIL,07/04/2015,0000380572/001,DOVETAIL BUILDING CONSULTANTS Ltd,40430000,3600.00 ,ASSET MANAGEMENT - FACILITIES MANAGEMENT,FACILITIES MANAGEMENT REPAIRS,D908,FACILITIES MANAGEMENT REPAIRS,ASSET MANAGEMENT,CONSULTANCY
http://statistics.data.gov.uk/id/local-authority/43UM,WOKING BOROUGH COUNCIL,07/04/2015,0000380524/001,DRYAD,00008500,460.00 ,ASSET MANAGEMENT - WOKING OLD PALACE MAIN,GROUNDS MAINT-CONTRACTORS,D200,GROUNDS MAINT-CONTRACTORS,ASSET MANAGEMENT,WORKS (CONSTRUCTION REPAIR MAINTENANCE)
http://statistics.data.gov.uk/id/local-authority/43UM,WOKING BOROUGH COUNCIL,07/04/2015,0000380525/001,DRYAD,00008500,1800.00 ,ASSET MANAGEMENT - WOKING OLD PALACE MAIN,GROUNDS MAINT-CONTRACTORS,D200,GROUNDS MAINT-CONTRACTORS,ASSET MANAGEMENT,WORKS (CONSTRUCTION REPAIR MAINTENANCE)
http://statistics.data.gov.uk/id/local-authority/43UM,WOKING BOROUGH COUNCIL,07/04/2015,0000380791/001,EDF ENERGY CUSTOMERS PLC,01451600,613.37 ,ASSET MANAGEMENT - 19A HIGH STREET,ELECTRICITY,D400,ELECTRICITY,ASSET MANAGEMENT,UTILITIES
http://statistics.data.gov.uk/id/local-authority/43UM,WOKING BOROUGH COUNCIL,07/04/2015,0000380791/002,EDF ENERGY CUSTOMERS PLC,01451600,21.78 ,ASSET MANAGEMENT - 19A HIGH STREET,CLIMATE CHANGE LEVY,D430,CLIMATE CHANGE LEVY,ASSET MANAGEMENT,UTILITIES
http://statistics.data.gov.uk/id/local-authority/43UM,WOKING BOROUGH COUNCIL,07/04/2015,0000380790/001,EDF ENERGY CUSTOMERS PLC,01451600,74.66 ,ASSET MANAGEMENT - POOLE RD CAR PARK,ELECTRICITY,D400,ELECTRICITY,ASSET MANAGEMENT,UTILITIES
http://statistics.data.gov.uk/id/local-authority/43UM,WOKING BOROUGH COUNCIL,07/04/2015,0000380293/001,ELDER ASSOCIATES,01971700,636.46 ,ASSET MANAGEMENT - TOWN CENTRE LEISURE,CONSULTANTS,H670,CONSULTANTS,ASSET MANAGEMENT,CONSULTANCY
http://statistics.data.gov.uk/id/local-authority/43UM,WOKING BOROUGH COUNCIL,07/04/2015,0000380291/001,ELDER ASSOCIATES,01971700,1040.00 ,ASSET MANAGEMENT - WOLSEY PLACE,CONSULTANTS,H670,CONSULTANTS,ASSET MANAGEMENT,CONSULTANCY
http://statistics.data.gov.uk/id/local-authority/43UM,WOKING BOROUGH COUNCIL,07/04/2015,0000380292/001,ELDER ASSOCIATES,01971700,480.00 ,ASSET MANAGEMENT - WOLSEY PLACE,CONSULTANTS,H670,CONSULTANTS,ASSET MANAGEMENT,CONSULTANCY
http://statistics.data.gov.uk/id/local-authority/43UM,WOKING BOROUGH COUNCIL,07/04/2015,0000380442/001,ELDER ASSOCIATES,01971700,320.00 ,NEIGHBOURHOOD SERVICES - PARKS-GENERAL,CONSULTANTS,H670,CONSULTANTS,NEIGHBOURHOOD SERVICES,CONSULTANCY
http://statistics.data.gov.uk/id/local-authority/43UM,WOKING BOROUGH COUNCIL,07/04/2015,0000380456/001,ELDER ASSOCIATES,01971700,520.00 ,HOUSING SERVICES - PFI BID,OTHER CONSULTANTS,Q430,OTHER CONSULTANTS,HOUSING SERVICES,CONSULTANCY
http://statistics.data.gov.uk/id/local-authority/43UM,WOKING BOROUGH COUNCIL,07/04/2015,0000379664/001,EMCOR FACILITIES SERVICES LTD,00004600,427.00 ,ASSET MANAGEMENT - C.C.T.V.,CCTV SYSTEM MAINTENANCE,D341,CCTV SYSTEM MAINTENANCE,ASSET MANAGEMENT,WORKS (CONSTRUCTION REPAIR MAINTENANCE)
http://statistics.data.gov.uk/id/local-authority/43UM,WOKING BOROUGH COUNCIL,07/04/2015,0000380108/001,EMCOR FACILITIES SERVICES LTD,00004600,17261.17 ,ASSET MANAGEMENT - C.C.T.V.,CCTV SYSTEM MAINTENANCE,D341,CCTV SYSTEM MAINTENANCE,ASSET MANAGEMENT,WORKS (CONSTRUCTION REPAIR MAINTENANCE)
http://statistics.data.gov.uk/id/local-authority/43UM,WOKING BOROUGH COUNCIL,07/04/2015,0000380139/001,EMCOR FACILITIES SERVICES LTD,00004600,812.00 ,ASSET MANAGEMENT - C.C.T.V.,CCTV SYSTEM MAINTENANCE,D341,CCTV SYSTEM MAINTENANCE,ASSET MANAGEMENT,WORKS (CONSTRUCTION REPAIR MAINTENANCE)
http://statistics.data.gov.uk/id/local-authority/43UM,WOKING BOROUGH COUNCIL,07/04/2015,0000380140/001,EMCOR FACILITIES SERVICES LTD,00004600,472.00 ,ASSET MANAGEMENT - C.C.T.V.,CCTV SYSTEM MAINTENANCE,D341,CCTV SYSTEM MAINTENANCE,ASSET MANAGEMENT,WORKS (CONSTRUCTION REPAIR MAINTENANCE)
http://statistics.data.gov.uk/id/local-authority/43UM,WOKING BOROUGH COUNCIL,07/04/2015,0000379358/001,EMCOR FACILITIES SERVICES LTD,00004600,204.17 ,H G WELLS - H G WELLS - FUNCTION ROOMS,CCTV SYSTEM MAINTENANCE,D341,CCTV SYSTEM MAINTENANCE,H G WELLS,WORKS (CONSTRUCTION REPAIR MAINTENANCE)
http://statistics.data.gov.uk/id/local-authority/43UM,WOKING BOROUGH COUNCIL,07/04/2015,0000379222/001,EMCOR FACILITIES SERVICES LTD,00004600,4054.13 ,INFORMATION TECHNOLOGY - I.T.S. ICT,EXPORT HOUSE CHARGES,G131,EXPORT HOUSE CHARGES,INFORMATION TECHNOLOGY,WORKS (CONSTRUCTION REPAIR MAINTENANCE)
http://statistics.data.gov.uk/id/local-authority/43UM,WOKING BOROUGH COUNCIL,07/04/2015,0000380547/001,EMCOR FACILITIES SERVICES LTD,00004600,16147.62 ,ASSET MANAGEMENT - AMP PITP REPLACE FIRE ALARM,MAIN CONTRACTOR,Q200,MAIN CONTRACTOR,ASSET MANAGEMENT,WORKS (CONSTRUCTION REPAIR MAINTENANCE)
http://statistics.data.gov.uk/id/local-authority/43UM,WOKING BOROUGH COUNCIL,07/04/2015,0000380528/001,ENTERPRISE RENT-A-CAR UK LTD,01705800,931.24 ,CORPORATE STRATEGY - ENVIRONMENTAL PROJECTS,CAR HIRE,F405,CAR HIRE,CORPORATE STRATEGY,FINANCIAL SERVICES
http://statistics.data.gov.uk/id/local-authority/43UM,WOKING BOROUGH COUNCIL,07/04/2015,0000380812/001,FAITH RECRUITMENT,01709500,465.38 ,NEIGHBOURHOOD SERVICES - CPZ WBC FROM 25/7/05,ENFORCEMENT CONTRACT,H603,ENFORCEMENT CONTRACT,NEIGHBOURHOOD SERVICES,HUMAN RESOURCES
http://statistics.data.gov.uk/id/local-authority/43UM,WOKING BOROUGH COUNCIL,07/04/2015,0000380823/001,FARNBOROUGH CONTRACTING SERVICES,40501900,3782.50 ,NEIGHBOURHOOD SERVICES - TOWN CTR MANAGEMENT,GROUNDS MAINT-CONTRACTORS,D200,GROUNDS MAINT-CONTRACTORS,NEIGHBOURHOOD SERVICES,WORKS (CONSTRUCTION REPAIR MAINTENANCE)
http://statistics.data.gov.uk/id/local-authority/43UM,WOKING BOROUGH COUNCIL,07/04/2015,0000380819/001,FREYA SMITH,01476500,2310.00 ,HOUSING SERVICES - PRIVATE SECTOR LEASING SCHEME,LEASE PAYMENTS TO LANDLORD,H787,LEASE PAYMENTS TO LANDLORD,HOUSING SERVICES,HOUSING MANAGEMENT
http://statistics.data.gov.uk/id/local-authority/43UM,WOKING BOROUGH COUNCIL,07/04/2015,0000380820/001,FRIENDS OF WOKING PALACE,01431400,5000.00 ,ASSET MANAGEMENT - WOKING OLD PALACE MAIN,GROUNDS MAINT-CONTRACTORS,D200,GROUNDS MAINT-CONTRACTORS,ASSET MANAGEMENT,WORKS (CONSTRUCTION REPAIR MAINTENANCE)
http://statistics.data.gov.uk/id/local-authority/43UM,WOKING BOROUGH COUNCIL,07/04/2015,0000380828/001,FRIENDS OF WOKING PALACE,01431400,120.00 ,ASSET MANAGEMENT - WOKING OLD PALACE MAIN,GROUNDS MAINT-CONTRACTORS,D200,GROUNDS MAINT-CONTRACTORS,ASSET MANAGEMENT,WORKS (CONSTRUCTION REPAIR MAINTENANCE)
http://statistics.data.gov.uk/id/local-authority/43UM,WOKING BOROUGH COUNCIL,07/04/2015,0000380827/001,FRIENDS OF WOKING PALACE,01431400,251.74 ,ASSET MANAGEMENT - WOKING OLD PALACE MAIN,PREMISES INSURANCE,D999,PREMISES INSURANCE,ASSET MANAGEMENT,WORKS (CONSTRUCTION REPAIR MAINTENANCE)
http://statistics.data.gov.uk/id/local-authority/43UM,WOKING BOROUGH COUNCIL,07/04/2015,0000380421/001,GIDDEN PLACE,00103200,525.00 ,NEIGHBOURHOOD SERVICES - ARTS PARTNERSHIP SURREY,MISCELLANEOUS EXPENSES,X827,MISCELLANEOUS EXPENSES,NEIGHBOURHOOD SERVICES,FACILITIES & MANAGEMENT SERVICES
http://statistics.data.gov.uk/id/local-authority/43UM,WOKING BOROUGH COUNCIL,07/04/2015,0000380396/001,HART PRESS,00214300,132.00 ,CORPORATE STRATEGY - CIVIC EVENTS,PRINTING EXTERNAL,G600,PRINTING EXTERNAL,CORPORATE STRATEGY,CONSULTANCY
http://statistics.data.gov.uk/id/local-authority/43UM,WOKING BOROUGH COUNCIL,07/04/2015,0000380530/001,HAYS,00228700,614.68 ,REVENUES AND BENEFITS - CUSTOMER SERVICES,TEMPORARY STAFF,A110,TEMPORARY STAFF,REVENUES AND BENEFITS,HUMAN RESOURCES
http://statistics.data.gov.uk/id/local-authority/43UM,WOKING BOROUGH COUNCIL,07/04/2015,0000380383/001,HEADLINE DESIGN & PRINT,00016900,258.00 ,CORPORATE STRATEGY - PUBLIC RELATIONS,PROMOTIONS & GRANTS,H467,PROMOTIONS & GRANTS,CORPORATE STRATEGY,FINANCIAL SERVICES
http://statistics.data.gov.uk/id/local-authority/43UM,WOKING BOROUGH COUNCIL,07/04/2015,0000380830/001,HEATH LAMBERT Ltd t/a ARTHUR J GALLAGHER,00965700,3500.00 ,FINANCIAL SERVICES - INSURANCE FUND,INSURANCE TO RECH,T760,INSURANCE TO RECH,FINANCIAL SERVICES,FINANCIAL SERVICES
http://statistics.data.gov.uk/id/local-authority/43UM,WOKING BOROUGH COUNCIL,07/04/2015,0000380283/001,HOARE LEA,40341400,1000.00 ,ASSET MANAGEMENT - WOLSEY PLACE POUNDLAND,MAIN CONTRACTOR,Q200,MAIN CONTRACTOR,ASSET MANAGEMENT,CONSULTANCY
http://statistics.data.gov.uk/id/local-authority/43UM,WOKING BOROUGH COUNCIL,07/04/2015,0000380786/001,HUMANITY INTERNATIONAL CHARITABLE TRUST,40433200,104.00 ,CORPORATE STRATEGY - GRANTS TO ORGANISATION,GRANTS,H100,GRANTS,CORPORATE STRATEGY,FINANCIAL SERVICES
http://statistics.data.gov.uk/id/local-authority/43UM,WOKING BOROUGH COUNCIL,07/04/2015,0000380736/001,ICL MEDIA,01821200,400.00 ,H G WELLS - H G WELLS - FUNCTION ROOMS,EQUIPMENT,G100,EQUIPMENT,H G WELLS,INFORMATION COMMUNICATION TECHNOLOGY
http://statistics.data.gov.uk/id/local-authority/43UM,WOKING BOROUGH COUNCIL,07/04/2015,0000379629/001,ICL MEDIA,01821200,175.00 ,H G WELLS - H G WELLS - FUNCTION ROOMS,AUDIO VISUAL TECHNICIANS,G124,AUDIO VISUAL TECHNICIANS,H G WELLS,INFORMATION COMMUNICATION TECHNOLOGY
http://statistics.data.gov.uk/id/local-authority/43UM,WOKING BOROUGH COUNCIL,07/04/2015,0000379630/001,ICL MEDIA,01821200,175.00 ,H G WELLS - H G WELLS - FUNCTION ROOMS,AUDIO VISUAL TECHNICIANS,G124,AUDIO VISUAL TECHNICIANS,H G WELLS,INFORMATION COMMUNICATION TECHNOLOGY
http://statistics.data.gov.uk/id/local-authority/43UM,WOKING BOROUGH COUNCIL,07/04/2015,0000380025/001,ICL MEDIA,01821200,350.00 ,H G WELLS - H G WELLS - FUNCTION ROOMS,AUDIO VISUAL TECHNICIANS,G124,AUDIO VISUAL TECHNICIANS,H G WELLS,INFORMATION COMMUNICATION TECHNOLOGY
http://statistics.data.gov.uk/id/local-authority/43UM,WOKING BOROUGH COUNCIL,07/04/2015,0000380571/001,IDOX SOFTWARE LIMITED,01937500,1350.00 ,INFORMATION TECHNOLOGY - I.T.S. ICT,PC & SERVER SYSTEMS SOFTWARE,G193,PC & SERVER SYSTEMS SOFTWARE,INFORMATION TECHNOLOGY,INFORMATION COMMUNICATION TECHNOLOGY
http://statistics.data.gov.uk/id/local-authority/43UM,WOKING BOROUGH COUNCIL,07/04/2015,0000380796/001,IDOX SOFTWARE LIMITED,01937500,5610.00 ,INFORMATION TECHNOLOGY - I.T.S. ICT,PC & SERVER SYSTEMS SOFTWARE,G193,PC & SERVER SYSTEMS SOFTWARE,INFORMATION TECHNOLOGY,INFORMATION COMMUNICATION TECHNOLOGY
http://statistics.data.gov.uk/id/local-authority/43UM,WOKING BOROUGH COUNCIL,07/04/2015,0000380789/001,INDIGO VALLEY,40165400,76.00 ,INDEPENDENT LIVING SERVICES - MEALS SERVICE - ST MARYS,PROVISIONS,G410,PROVISIONS,INDEPENDENT LIVING SERVICES,CATERING
http://statistics.data.gov.uk/id/local-authority/43UM,WOKING BOROUGH COUNCIL,07/04/2015,0000380577/001,INSTITUTE OF DIRECT & DIGITAL MARKETING,01749800,1815.00 ,CORPORATE MANAGEMENT GROUP - STAFF TRAINING/GENERAL COSTS,TRAINING - POST ENTRY,A903,TRAINING - POST ENTRY,CORPORATE MANAGEMENT GROUP,HUMAN RESOURCES
http://statistics.data.gov.uk/id/local-authority/43UM,WOKING BOROUGH COUNCIL,07/04/2015,0000379601/001,INSTITUTE OF REVENUES RATING & VALUATION,00034200,65.00 ,CORPORATE MANAGEMENT GROUP - STAFF TRAINING/GENERAL COSTS,TRAINING - POST ENTRY,A903,TRAINING - POST ENTRY,CORPORATE MANAGEMENT GROUP,HUMAN RESOURCES
http://statistics.data.gov.uk/id/local-authority/43UM,WOKING BOROUGH COUNCIL,07/04/2015,0000380781/001,ITS FIRE & SECURITY LTD,40299300,2448.16 ,ASSET MANAGEMENT - WOLSEY PLACE,CONSULTANTS,H670,CONSULTANTS,ASSET MANAGEMENT,CONSULTANCY
http://statistics.data.gov.uk/id/local-authority/43UM,WOKING BOROUGH COUNCIL,07/04/2015,0000380818/001,JAN R BINDSCHEDLER,40294500,210.00 ,HOUSING SERVICES - PRIVATE SECTOR RENEWAL GRANT,LANDLORD GRANT,Q720,LANDLORD GRANT,HOUSING SERVICES,FINANCIAL SERVICES
http://statistics.data.gov.uk/id/local-authority/43UM,WOKING BOROUGH COUNCIL,07/04/2015,0000380578/001,JDB CONTRACTORS & SON Ltd,40504000,2050.00 ,NEIGHBOURHOOD SERVICES - DISABLED FACILITIES GRANTS,CONSERVATION MANAGEMENT,H643,CONSERVATION MANAGEMENT,NEIGHBOURHOOD SERVICES,HORTICULTURAL (INCLUDES AGRICULTURE)
http://statistics.data.gov.uk/id/local-authority/43UM,WOKING BOROUGH COUNCIL,07/04/2015,0000380592/001,KENT COUNTY COUNCIL (KCS),00050800,1053.96 ,ASSET MANAGEMENT - PROVINCIAL HOUSE,ELECTRICITY,D400,ELECTRICITY,ASSET MANAGEMENT,UTILITIES
http://statistics.data.gov.uk/id/local-authority/43UM,WOKING BOROUGH COUNCIL,07/04/2015,0000380593/001,KENT COUNTY COUNCIL (KCS),00050800,1661.11 ,ASSET MANAGEMENT - PROVINCIAL HOUSE,ELECTRICITY,D400,ELECTRICITY,ASSET MANAGEMENT,UTILITIES
http://statistics.data.gov.uk/id/local-authority/43UM,WOKING BOROUGH COUNCIL,07/04/2015,0000380592/002,KENT COUNTY COUNCIL (KCS),00050800,53.36 ,ASSET MANAGEMENT - PROVINCIAL HOUSE,CLIMATE CHANGE LEVY,D430,CLIMATE CHANGE LEVY,ASSET MANAGEMENT,UTILITIES
http://statistics.data.gov.uk/id/local-authority/43UM,WOKING BOROUGH COUNCIL,07/04/2015,0000380593/002,KENT COUNTY COUNCIL (KCS),00050800,84.50 ,ASSET MANAGEMENT - PROVINCIAL HOUSE,CLIMATE CHANGE LEVY,D430,CLIMATE CHANGE LEVY,ASSET MANAGEMENT,UTILITIES
http://statistics.data.gov.uk/id/local-authority/43UM,WOKING BOROUGH COUNCIL,07/04/2015,0000380511/001,KENT COUNTY COUNCIL (KCS),00050800,420.63 ,INDEPENDENT LIVING SERVICES - MOORCROFT,GAS,D420,GAS,INDEPENDENT LIVING SERVICES,UTILITIES
http://statistics.data.gov.uk/id/local-authority/43UM,WOKING BOROUGH COUNCIL,07/04/2015,0000380692/001,KENT COUNTY COUNCIL (KCS),00050800,64.70 ,INDEPENDENT LIVING SERVICES - MEALS SERVICE -THE VYNE,GAS,D420,GAS,INDEPENDENT LIVING SERVICES,UTILITIES
http://statistics.data.gov.uk/id/local-authority/43UM,WOKING BOROUGH COUNCIL,07/04/2015,0000380594/001,KENT COUNTY COUNCIL (KCS),00050800,860.16 ,HOUSING SERVICES - ENERGY,GAS,D420,GAS,HOUSING SERVICES,UTILITIES
http://statistics.data.gov.uk/id/local-authority/43UM,WOKING BOROUGH COUNCIL,07/04/2015,0000380595/001,KENT COUNTY COUNCIL (KCS),00050800,963.37 ,HOUSING SERVICES - ENERGY,GAS,D420,GAS,HOUSING SERVICES,UTILITIES
http://statistics.data.gov.uk/id/local-authority/43UM,WOKING BOROUGH COUNCIL,07/04/2015,0000380596/001,KENT COUNTY COUNCIL (KCS),00050800,555.68 ,HOUSING SERVICES - ENERGY,GAS,D420,GAS,HOUSING SERVICES,UTILITIES
http://statistics.data.gov.uk/id/local-authority/43UM,WOKING BOROUGH COUNCIL,07/04/2015,0000380597/001,KENT COUNTY COUNCIL (KCS),00050800,339.40 ,HOUSING SERVICES - ENERGY,GAS,D420,GAS,HOUSING SERVICES,UTILITIES
http://statistics.data.gov.uk/id/local-authority/43UM,WOKING BOROUGH COUNCIL,07/04/2015,0000380598/001,KENT COUNTY COUNCIL (KCS),00050800,683.61 ,HOUSING SERVICES - ENERGY,GAS,D420,GAS,HOUSING SERVICES,UTILITIES
http://statistics.data.gov.uk/id/local-authority/43UM,WOKING BOROUGH COUNCIL,07/04/2015,0000380599/001,KENT COUNTY COUNCIL (KCS),00050800,1001.24 ,HOUSING SERVICES - ENERGY,GAS,D420,GAS,HOUSING SERVICES,UTILITIES
http://statistics.data.gov.uk/id/local-authority/43UM,WOKING BOROUGH COUNCIL,07/04/2015,0000380600/001,KENT COUNTY COUNCIL (KCS),00050800,1184.93 ,HOUSING SERVICES - ENERGY,GAS,D420,GAS,HOUSING SERVICES,UTILITIES
http://statistics.data.gov.uk/id/local-authority/43UM,WOKING BOROUGH COUNCIL,07/04/2015,0000380601/001,KENT COUNTY COUNCIL (KCS),00050800,913.67 ,HOUSING SERVICES - ENERGY,GAS,D420,GAS,HOUSING SERVICES,UTILITIES
http://statistics.data.gov.uk/id/local-authority/43UM,WOKING BOROUGH COUNCIL,07/04/2015,0000380602/001,KENT COUNTY COUNCIL (KCS),00050800,838.85 ,HOUSING SERVICES - ENERGY,GAS,D420,GAS,HOUSING SERVICES,UTILITIES
http://statistics.data.gov.uk/id/local-authority/43UM,WOKING BOROUGH COUNCIL,07/04/2015,0000380603/001,KENT COUNTY COUNCIL (KCS),00050800,323.08 ,HOUSING SERVICES - ENERGY,GAS,D420,GAS,HOUSING SERVICES,UTILITIES
http://statistics.data.gov.uk/id/local-authority/43UM,WOKING BOROUGH COUNCIL,07/04/2015,0000380604/001,KENT COUNTY COUNCIL (KCS),00050800,515.80 ,HOUSING SERVICES - ENERGY,GAS,D420,GAS,HOUSING SERVICES,UTILITIES
http://statistics.data.gov.uk/id/local-authority/43UM,WOKING BOROUGH COUNCIL,07/04/2015,0000380605/001,KENT COUNTY COUNCIL (KCS),00050800,1319.22 ,HOUSING SERVICES - ENERGY,GAS,D420,GAS,HOUSING SERVICES,UTILITIES
http://statistics.data.gov.uk/id/local-authority/43UM,WOKING BOROUGH COUNCIL,07/04/2015,0000380606/001,KENT COUNTY COUNCIL (KCS),00050800,633.56 ,HOUSING SERVICES - ENERGY,GAS,D420,GAS,HOUSING SERVICES,UTILITIES
http://statistics.data.gov.uk/id/local-authority/43UM,WOKING BOROUGH COUNCIL,07/04/2015,0000380607/001,KENT COUNTY COUNCIL (KCS),00050800,59.08 ,HOUSING SERVICES - ENERGY,GAS,D420,GAS,HOUSING SERVICES,UTILITIES
http://statistics.data.gov.uk/id/local-authority/43UM,WOKING BOROUGH COUNCIL,07/04/2015,0000380608/001,KENT COUNTY COUNCIL (KCS),00050800,496.52 ,HOUSING SERVICES - ENERGY,GAS,D420,GAS,HOUSING SERVICES,UTILITIES
http://statistics.data.gov.uk/id/local-authority/43UM,WOKING BOROUGH COUNCIL,07/04/2015,0000380609/001,KENT COUNTY COUNCIL (KCS),00050800,60.20 ,HOUSING SERVICES - ENERGY,GAS,D420,GAS,HOUSING SERVICES,UTILITIES
http://statistics.data.gov.uk/id/local-authority/43UM,WOKING BOROUGH COUNCIL,07/04/2015,0000380610/001,KENT COUNTY COUNCIL (KCS),00050800,316.25 ,HOUSING SERVICES - ENERGY,GAS,D420,GAS,HOUSING SERVICES,UTILITIES
http://statistics.data.gov.uk/id/local-authority/43UM,WOKING BOROUGH COUNCIL,07/04/2015,0000380611/001,KENT COUNTY COUNCIL (KCS),00050800,818.06 ,HOUSING SERVICES - ENERGY,GAS,D420,GAS,HOUSING SERVICES,UTILITIES
http://statistics.data.gov.uk/id/local-authority/43UM,WOKING BOROUGH COUNCIL,07/04/2015,0000380612/001,KENT COUNTY COUNCIL (KCS),00050800,457.57 ,HOUSING SERVICES - ENERGY,GAS,D420,GAS,HOUSING SERVICES,UTILITIES
http://statistics.data.gov.uk/id/local-authority/43UM,WOKING BOROUGH COUNCIL,07/04/2015,0000380613/001,KENT COUNTY COUNCIL (KCS),00050800,1491.77 ,HOUSING SERVICES - ENERGY,GAS,D420,GAS,HOUSING SERVICES,UTILITIES
http://statistics.data.gov.uk/id/local-authority/43UM,WOKING BOROUGH COUNCIL,07/04/2015,0000380614/001,KENT COUNTY COUNCIL (KCS),00050800,2077.09 ,HOUSING SERVICES - ENERGY,GAS,D420,GAS,HOUSING SERVICES,UTILITIES
http://statistics.data.gov.uk/id/local-authority/43UM,WOKING BOROUGH COUNCIL,07/04/2015,0000380615/001,KENT COUNTY COUNCIL (KCS),00050800,1883.35 ,HOUSING SERVICES - ENERGY,GAS,D420,GAS,HOUSING SERVICES,UTILITIES
http://statistics.data.gov.uk/id/local-authority/43UM,WOKING BOROUGH COUNCIL,07/04/2015,0000380616/001,KENT COUNTY COUNCIL (KCS),00050800,1453.85 ,HOUSING SERVICES - ENERGY,GAS,D420,GAS,HOUSING SERVICES,UTILITIES
http://statistics.data.gov.uk/id/local-authority/43UM,WOKING BOROUGH COUNCIL,07/04/2015,0000380617/001,KENT COUNTY COUNCIL (KCS),00050800,1307.36 ,HOUSING SERVICES - ENERGY,GAS,D420,GAS,HOUSING SERVICES,UTILITIES
http://statistics.data.gov.uk/id/local-authority/43UM,WOKING BOROUGH COUNCIL,07/04/2015,0000380618/001,KENT COUNTY COUNCIL (KCS),00050800,183.78 ,HOUSING SERVICES - ENERGY,GAS,D420,GAS,HOUSING SERVICES,UTILITIES
http://statistics.data.gov.uk/id/local-authority/43UM,WOKING BOROUGH COUNCIL,07/04/2015,0000380619/001,KENT COUNTY COUNCIL (KCS),00050800,161.53 ,HOUSING SERVICES - ENERGY,GAS,D420,GAS,HOUSING SERVICES,UTILITIES
http://statistics.data.gov.uk/id/local-authority/43UM,WOKING BOROUGH COUNCIL,07/04/2015,0000380620/001,KENT COUNTY COUNCIL (KCS),00050800,698.36 ,HOUSING SERVICES - ENERGY,GAS,D420,GAS,HOUSING SERVICES,UTILITIES
http://statistics.data.gov.uk/id/local-authority/43UM,WOKING BOROUGH COUNCIL,07/04/2015,0000380621/001,KENT COUNTY COUNCIL (KCS),00050800,327.46 ,HOUSING SERVICES - ENERGY,GAS,D420,GAS,HOUSING SERVICES,UTILITIES
http://statistics.data.gov.uk/id/local-authority/43UM,WOKING BOROUGH COUNCIL,07/04/2015,0000380622/001,KENT COUNTY COUNCIL (KCS),00050800,164.49 ,HOUSING SERVICES - ENERGY,GAS,D420,GAS,HOUSING SERVICES,UTILITIES
http://statistics.data.gov.uk/id/local-authority/43UM,WOKING BOROUGH COUNCIL,07/04/2015,0000380623/001,KENT COUNTY COUNCIL (KCS),00050800,657.82 ,HOUSING SERVICES - ENERGY,GAS,D420,GAS,HOUSING SERVICES,UTILITIES
http://statistics.data.gov.uk/id/local-authority/43UM,WOKING BOROUGH COUNCIL,07/04/2015,0000380624/001,KENT COUNTY COUNCIL (KCS),00050800,1005.04 ,HOUSING SERVICES - ENERGY,GAS,D420,GAS,HOUSING SERVICES,UTILITIES
http://statistics.data.gov.uk/id/local-authority/43UM,WOKING BOROUGH COUNCIL,07/04/2015,0000380625/001,KENT COUNTY COUNCIL (KCS),00050800,1.96 ,HOUSING SERVICES - ENERGY,GAS,D420,GAS,HOUSING SERVICES,UTILITIES
http://statistics.data.gov.uk/id/local-authority/43UM,WOKING BOROUGH COUNCIL,07/04/2015,0000380626/001,KENT COUNTY COUNCIL (KCS),00050800,80.23 ,HOUSING SERVICES - ENERGY,GAS,D420,GAS,HOUSING SERVICES,UTILITIES
http://statistics.data.gov.uk/id/local-authority/43UM,WOKING BOROUGH COUNCIL,07/04/2015,0000380627/001,KENT COUNTY COUNCIL (KCS),00050800,244.84 ,HOUSING SERVICES - ENERGY,GAS,D420,GAS,HOUSING SERVICES,UTILITIES
http://statistics.data.gov.uk/id/local-authority/43UM,WOKING BOROUGH COUNCIL,07/04/2015,0000380628/001,KENT COUNTY COUNCIL (KCS),00050800,292.18 ,HOUSING SERVICES - ENERGY,GAS,D420,GAS,HOUSING SERVICES,UTILITIES
http://statistics.data.gov.uk/id/local-authority/43UM,WOKING BOROUGH COUNCIL,07/04/2015,0000380629/001,KENT COUNTY COUNCIL (KCS),00050800,305.35 ,HOUSING SERVICES - ENERGY,GAS,D420,GAS,HOUSING SERVICES,UTILITIES
http://statistics.data.gov.uk/id/local-authority/43UM,WOKING BOROUGH COUNCIL,07/04/2015,0000380630/001,KENT COUNTY COUNCIL (KCS),00050800,617.54 ,HOUSING SERVICES - ENERGY,GAS,D420,GAS,HOUSING SERVICES,UTILITIES
http://statistics.data.gov.uk/id/local-authority/43UM,WOKING BOROUGH COUNCIL,07/04/2015,0000380631/001,KENT COUNTY COUNCIL (KCS),00050800,540.09 ,HOUSING SERVICES - ENERGY,GAS,D420,GAS,HOUSING SERVICES,UTILITIES
http://statistics.data.gov.uk/id/local-authority/43UM,WOKING BOROUGH COUNCIL,07/04/2015,0000380632/001,KENT COUNTY COUNCIL (KCS),00050800,944.90 ,HOUSING SERVICES - ENERGY,GAS,D420,GAS,HOUSING SERVICES,UTILITIES
http://statistics.data.gov.uk/id/local-authority/43UM,WOKING BOROUGH COUNCIL,07/04/2015,0000380633/001,KENT COUNTY COUNCIL (KCS),00050800,412.51 ,HOUSING SERVICES - ENERGY,GAS,D420,GAS,HOUSING SERVICES,UTILITIES
http://statistics.data.gov.uk/id/local-authority/43UM,WOKING BOROUGH COUNCIL,07/04/2015,0000380634/001,KENT COUNTY COUNCIL (KCS),00050800,1223.07 ,HOUSING SERVICES - ENERGY,GAS,D420,GAS,HOUSING SERVICES,UTILITIES
http://statistics.data.gov.uk/id/local-authority/43UM,WOKING BOROUGH COUNCIL,07/04/2015,0000380635/001,KENT COUNTY COUNCIL (KCS),00050800,767.92 ,HOUSING SERVICES - ENERGY,GAS,D420,GAS,HOUSING SERVICES,UTILITIES
http://statistics.data.gov.uk/id/local-authority/43UM,WOKING BOROUGH COUNCIL,07/04/2015,0000380636/001,KENT COUNTY COUNCIL (KCS),00050800,1302.58 ,HOUSING SERVICES - ENERGY,GAS,D420,GAS,HOUSING SERVICES,UTILITIES
http://statistics.data.gov.uk/id/local-authority/43UM,WOKING BOROUGH COUNCIL,07/04/2015,0000380637/001,KENT COUNTY COUNCIL (KCS),00050800,1279.30 ,HOUSING SERVICES - ENERGY,GAS,D420,GAS,HOUSING SERVICES,UTILITIES
http://statistics.data.gov.uk/id/local-authority/43UM,WOKING BOROUGH COUNCIL,07/04/2015,0000380638/001,KENT COUNTY COUNCIL (KCS),00050800,461.11 ,HOUSING SERVICES - ENERGY,GAS,D420,GAS,HOUSING SERVICES,UTILITIES
http://statistics.data.gov.uk/id/local-authority/43UM,WOKING BOROUGH COUNCIL,07/04/2015,0000380639/001,KENT COUNTY COUNCIL (KCS),00050800,1029.83 ,HOUSING SERVICES - ENERGY,GAS,D420,GAS,HOUSING SERVICES,UTILITIES
http://statistics.data.gov.uk/id/local-authority/43UM,WOKING BOROUGH COUNCIL,07/04/2015,0000380640/001,KENT COUNTY COUNCIL (KCS),00050800,478.14 ,HOUSING SERVICES - ENERGY,GAS,D420,GAS,HOUSING SERVICES,UTILITIES
http://statistics.data.gov.uk/id/local-authority/43UM,WOKING BOROUGH COUNCIL,07/04/2015,0000380641/001,KENT COUNTY COUNCIL (KCS),00050800,663.53 ,HOUSING SERVICES - ENERGY,GAS,D420,GAS,HOUSING SERVICES,UTILITIES
http://statistics.data.gov.uk/id/local-authority/43UM,WOKING BOROUGH COUNCIL,07/04/2015,0000380642/001,KENT COUNTY COUNCIL (KCS),00050800,287.76 ,HOUSING SERVICES - ENERGY,GAS,D420,GAS,HOUSING SERVICES,UTILITIES
http://statistics.data.gov.uk/id/local-authority/43UM,WOKING BOROUGH COUNCIL,07/04/2015,0000380643/001,KENT COUNTY COUNCIL (KCS),00050800,307.26 ,HOUSING SERVICES - ENERGY,GAS,D420,GAS,HOUSING SERVICES,UTILITIES
http://statistics.data.gov.uk/id/local-authority/43UM,WOKING BOROUGH COUNCIL,07/04/2015,0000380644/001,KENT COUNTY COUNCIL (KCS),00050800,311.12 ,HOUSING SERVICES - ENERGY,GAS,D420,GAS,HOUSING SERVICES,UTILITIES
http://statistics.data.gov.uk/id/local-authority/43UM,WOKING BOROUGH COUNCIL,07/04/2015,0000380645/001,KENT COUNTY COUNCIL (KCS),00050800,197.22 ,HOUSING SERVICES - ENERGY,GAS,D420,GAS,HOUSING SERVICES,UTILITIES
http://statistics.data.gov.uk/id/local-authority/43UM,WOKING BOROUGH COUNCIL,07/04/2015,0000380646/001,KENT COUNTY COUNCIL (KCS),00050800,259.37 ,HOUSING SERVICES - ENERGY,GAS,D420,GAS,HOUSING SERVICES,UTILITIES
http://statistics.data.gov.uk/id/local-authority/43UM,WOKING BOROUGH COUNCIL,07/04/2015,0000380647/001,KENT COUNTY COUNCIL (KCS),00050800,309.66 ,HOUSING SERVICES - ENERGY,GAS,D420,GAS,HOUSING SERVICES,UTILITIES
http://statistics.data.gov.uk/id/local-authority/43UM,WOKING BOROUGH COUNCIL,07/04/2015,0000380648/001,KENT COUNTY COUNCIL (KCS),00050800,396.73 ,HOUSING SERVICES - ENERGY,GAS,D420,GAS,HOUSING SERVICES,UTILITIES
http://statistics.data.gov.uk/id/local-authority/43UM,WOKING BOROUGH COUNCIL,07/04/2015,0000380649/001,KENT COUNTY COUNCIL (KCS),00050800,20.87 ,HOUSING SERVICES - ENERGY,GAS,D420,GAS,HOUSING SERVICES,UTILITIES
http://statistics.data.gov.uk/id/local-authority/43UM,WOKING BOROUGH COUNCIL,07/04/2015,0000380650/001,KENT COUNTY COUNCIL (KCS),00050800,429.69 ,HOUSING SERVICES - ENERGY,GAS,D420,GAS,HOUSING SERVICES,UTILITIES
http://statistics.data.gov.uk/id/local-authority/43UM,WOKING BOROUGH COUNCIL,07/04/2015,0000380651/001,KENT COUNTY COUNCIL (KCS),00050800,257.28 ,HOUSING SERVICES - ENERGY,GAS,D420,GAS,HOUSING SERVICES,UTILITIES
http://statistics.data.gov.uk/id/local-authority/43UM,WOKING BOROUGH COUNCIL,07/04/2015,0000380652/001,KENT COUNTY COUNCIL (KCS),00050800,494.19 ,HOUSING SERVICES - ENERGY,GAS,D420,GAS,HOUSING SERVICES,UTILITIES
http://statistics.data.gov.uk/id/local-authority/43UM,WOKING BOROUGH COUNCIL,07/04/2015,0000380653/001,KENT COUNTY COUNCIL (KCS),00050800,487.42 ,HOUSING SERVICES - ENERGY,GAS,D420,GAS,HOUSING SERVICES,UTILITIES
http://statistics.data.gov.uk/id/local-authority/43UM,WOKING BOROUGH COUNCIL,07/04/2015,0000380654/001,KENT COUNTY COUNCIL (KCS),00050800,252.25 ,HOUSING SERVICES - ENERGY,GAS,D420,GAS,HOUSING SERVICES,UTILITIES
http://statistics.data.gov.uk/id/local-authority/43UM,WOKING BOROUGH COUNCIL,07/04/2015,0000380655/001,KENT COUNTY COUNCIL (KCS),00050800,83.51 ,HOUSING SERVICES - ENERGY,GAS,D420,GAS,HOUSING SERVICES,UTILITIES
http://statistics.data.gov.uk/id/local-authority/43UM,WOKING BOROUGH COUNCIL,07/04/2015,0000380656/001,KENT COUNTY COUNCIL (KCS),00050800,392.23 ,HOUSING SERVICES - ENERGY,GAS,D420,GAS,HOUSING SERVICES,UTILITIES
http://statistics.data.gov.uk/id/local-authority/43UM,WOKING BOROUGH COUNCIL,07/04/2015,0000380657/001,KENT COUNTY COUNCIL (KCS),00050800,455.04 ,HOUSING SERVICES - ENERGY,GAS,D420,GAS,HOUSING SERVICES,UTILITIES
http://statistics.data.gov.uk/id/local-authority/43UM,WOKING BOROUGH COUNCIL,07/04/2015,0000380658/001,KENT COUNTY COUNCIL (KCS),00050800,331.06 ,HOUSING SERVICES - ENERGY,GAS,D420,GAS,HOUSING SERVICES,UTILITIES
http://statistics.data.gov.uk/id/local-authority/43UM,WOKING BOROUGH COUNCIL,07/04/2015,0000380659/001,KENT COUNTY COUNCIL (KCS),00050800,1000.32 ,HOUSING SERVICES - ENERGY,GAS,D420,GAS,HOUSING SERVICES,UTILITIES
http://statistics.data.gov.uk/id/local-authority/43UM,WOKING BOROUGH COUNCIL,07/04/2015,0000380660/001,KENT COUNTY COUNCIL (KCS),00050800,111.21 ,HOUSING SERVICES - LANDLORDS EXPENSES,ELECTRICITY,D400,ELECTRICITY,HOUSING SERVICES,UTILITIES
http://statistics.data.gov.uk/id/local-authority/43UM,WOKING BOROUGH COUNCIL,07/04/2015,0000380125/001,KENT COUNTY COUNCIL (KCS),00050800,277.43 ,INFORMATION TECHNOLOGY - I.T.S. REPROGRAPHICS,REPROGRAPHIC EQP-COPY CHARGES,G158,REPROGRAPHIC EQP-COPY CHARGES,INFORMATION TECHNOLOGY,UTILITIES
http://statistics.data.gov.uk/id/local-authority/43UM,WOKING BOROUGH COUNCIL,07/04/2015,0000380126/001,KENT COUNTY COUNCIL (KCS),00050800,242.28 ,INFORMATION TECHNOLOGY - I.T.S. REPROGRAPHICS,REPROGRAPHIC EQP-COPY CHARGES,G158,REPROGRAPHIC EQP-COPY CHARGES,INFORMATION TECHNOLOGY,UTILITIES
http://statistics.data.gov.uk/id/local-authority/43UM,WOKING BOROUGH COUNCIL,07/04/2015,0000379384/001,KENT FINANCIAL SERVICES,40484900,45.00 ,REVENUES AND BENEFITS - COUNCIL TAX,DEBT COLLECTION AGENCY COMMISS,H910,DEBT COLLECTION AGENCY COMMISS,REVENUES AND BENEFITS,FINANCIAL SERVICES
http://statistics.data.gov.uk/id/local-authority/43UM,WOKING BOROUGH COUNCIL,07/04/2015,0000379385/001,KENT FINANCIAL SERVICES,40484900,45.00 ,REVENUES AND BENEFITS - COUNCIL TAX,DEBT COLLECTION AGENCY COMMISS,H910,DEBT COLLECTION AGENCY COMMISS,REVENUES AND BENEFITS,FINANCIAL SERVICES
http://statistics.data.gov.uk/id/local-authority/43UM,WOKING BOROUGH COUNCIL,07/04/2015,0000379386/001,KENT FINANCIAL SERVICES,40484900,35.00 ,REVENUES AND BENEFITS - COUNCIL TAX,DEBT COLLECTION AGENCY COMMISS,H910,DEBT COLLECTION AGENCY COMMISS,REVENUES AND BENEFITS,FINANCIAL SERVICES
http://statistics.data.gov.uk/id/local-authority/43UM,WOKING BOROUGH COUNCIL,07/04/2015,0000379387/001,KENT FINANCIAL SERVICES,40484900,45.00 ,REVENUES AND BENEFITS - COUNCIL TAX,DEBT COLLECTION AGENCY COMMISS,H910,DEBT COLLECTION AGENCY COMMISS,REVENUES AND BENEFITS,FINANCIAL SERVICES
http://statistics.data.gov.uk/id/local-authority/43UM,WOKING BOROUGH COUNCIL,07/04/2015,0000379388/001,KENT FINANCIAL SERVICES,40484900,45.00 ,REVENUES AND BENEFITS - COUNCIL TAX,DEBT COLLECTION AGENCY COMMISS,H910,DEBT COLLECTION AGENCY COMMISS,REVENUES AND BENEFITS,FINANCIAL SERVICES
http://statistics.data.gov.uk/id/local-authority/43UM,WOKING BOROUGH COUNCIL,07/04/2015,0000379389/001,KENT FINANCIAL SERVICES,40484900,45.00 ,REVENUES AND BENEFITS - COUNCIL TAX,DEBT COLLECTION AGENCY COMMISS,H910,DEBT COLLECTION AGENCY COMMISS,REVENUES AND BENEFITS,FINANCIAL SERVICES
http://statistics.data.gov.uk/id/local-authority/43UM,WOKING BOROUGH COUNCIL,07/04/2015,0000379638/001,KENT FINANCIAL SERVICES,40484900,45.00 ,REVENUES AND BENEFITS - COUNCIL TAX,DEBT COLLECTION AGENCY COMMISS,H910,DEBT COLLECTION AGENCY COMMISS,REVENUES AND BENEFITS,FINANCIAL SERVICES
http://statistics.data.gov.uk/id/local-authority/43UM,WOKING BOROUGH COUNCIL,07/04/2015,0000379639/001,KENT FINANCIAL SERVICES,40484900,45.00 ,REVENUES AND BENEFITS - COUNCIL TAX,DEBT COLLECTION AGENCY COMMISS,H910,DEBT COLLECTION AGENCY COMMISS,REVENUES AND BENEFITS,FINANCIAL SERVICES
http://statistics.data.gov.uk/id/local-authority/43UM,WOKING BOROUGH COUNCIL,07/04/2015,0000379640/001,KENT FINANCIAL SERVICES,40484900,35.00 ,REVENUES AND BENEFITS - COUNCIL TAX,DEBT COLLECTION AGENCY COMMISS,H910,DEBT COLLECTION AGENCY COMMISS,REVENUES AND BENEFITS,FINANCIAL SERVICES
http://statistics.data.gov.uk/id/local-authority/43UM,WOKING BOROUGH COUNCIL,07/04/2015,0000379641/001,KENT FINANCIAL SERVICES,40484900,45.00 ,REVENUES AND BENEFITS - COUNCIL TAX,DEBT COLLECTION AGENCY COMMISS,H910,DEBT COLLECTION AGENCY COMMISS,REVENUES AND BENEFITS,FINANCIAL SERVICES
http://statistics.data.gov.uk/id/local-authority/43UM,WOKING BOROUGH COUNCIL,07/04/2015,0000379642/001,KENT FINANCIAL SERVICES,40484900,45.00 ,REVENUES AND BENEFITS - COUNCIL TAX,DEBT COLLECTION AGENCY COMMISS,H910,DEBT COLLECTION AGENCY COMMISS,REVENUES AND BENEFITS,FINANCIAL SERVICES
http://statistics.data.gov.uk/id/local-authority/43UM,WOKING BOROUGH COUNCIL,07/04/2015,0000379643/001,KENT FINANCIAL SERVICES,40484900,45.00 ,REVENUES AND BENEFITS - COUNCIL TAX,DEBT COLLECTION AGENCY COMMISS,H910,DEBT COLLECTION AGENCY COMMISS,REVENUES AND BENEFITS,FINANCIAL SERVICES
http://statistics.data.gov.uk/id/local-authority/43UM,WOKING BOROUGH COUNCIL,07/04/2015,0000379644/001,KENT FINANCIAL SERVICES,40484900,45.00 ,REVENUES AND BENEFITS - COUNCIL TAX,DEBT COLLECTION AGENCY COMMISS,H910,DEBT COLLECTION AGENCY COMMISS,REVENUES AND BENEFITS,FINANCIAL SERVICES
http://statistics.data.gov.uk/id/local-authority/43UM,WOKING BOROUGH COUNCIL,07/04/2015,0000379645/001,KENT FINANCIAL SERVICES,40484900,45.00 ,REVENUES AND BENEFITS - COUNCIL TAX,DEBT COLLECTION AGENCY COMMISS,H910,DEBT COLLECTION AGENCY COMMISS,REVENUES AND BENEFITS,FINANCIAL SERVICES
http://statistics.data.gov.uk/id/local-authority/43UM,WOKING BOROUGH COUNCIL,07/04/2015,0000379646/001,KENT FINANCIAL SERVICES,40484900,45.00 ,REVENUES AND BENEFITS - COUNCIL TAX,DEBT COLLECTION AGENCY COMMISS,H910,DEBT COLLECTION AGENCY COMMISS,REVENUES AND BENEFITS,FINANCIAL SERVICES
http://statistics.data.gov.uk/id/local-authority/43UM,WOKING BOROUGH COUNCIL,07/04/2015,0000379647/001,KENT FINANCIAL SERVICES,40484900,45.00 ,REVENUES AND BENEFITS - COUNCIL TAX,DEBT COLLECTION AGENCY COMMISS,H910,DEBT COLLECTION AGENCY COMMISS,REVENUES AND BENEFITS,FINANCIAL SERVICES
http://statistics.data.gov.uk/id/local-authority/43UM,WOKING BOROUGH COUNCIL,07/04/2015,0000379648/001,KENT FINANCIAL SERVICES,40484900,45.00 ,REVENUES AND BENEFITS - COUNCIL TAX,DEBT COLLECTION AGENCY COMMISS,H910,DEBT COLLECTION AGENCY COMMISS,REVENUES AND BENEFITS,FINANCIAL SERVICES
http://statistics.data.gov.uk/id/local-authority/43UM,WOKING BOROUGH COUNCIL,07/04/2015,0000379649/001,KENT FINANCIAL SERVICES,40484900,35.00 ,REVENUES AND BENEFITS - COUNCIL TAX,DEBT COLLECTION AGENCY COMMISS,H910,DEBT COLLECTION AGENCY COMMISS,REVENUES AND BENEFITS,FINANCIAL SERVICES
http://statistics.data.gov.uk/id/local-authority/43UM,WOKING BOROUGH COUNCIL,07/04/2015,0000379650/001,KENT FINANCIAL SERVICES,40484900,45.00 ,REVENUES AND BENEFITS - COUNCIL TAX,DEBT COLLECTION AGENCY COMMISS,H910,DEBT COLLECTION AGENCY COMMISS,REVENUES AND BENEFITS,FINANCIAL SERVICES
http://statistics.data.gov.uk/id/local-authority/43UM,WOKING BOROUGH COUNCIL,07/04/2015,0000379651/001,KENT FINANCIAL SERVICES,40484900,35.00 ,REVENUES AND BENEFITS - COUNCIL TAX,DEBT COLLECTION AGENCY COMMISS,H910,DEBT COLLECTION AGENCY COMMISS,REVENUES AND BENEFITS,FINANCIAL SERVICES
http://statistics.data.gov.uk/id/local-authority/43UM,WOKING BOROUGH COUNCIL,07/04/2015,0000379652/001,KENT FINANCIAL SERVICES,40484900,35.00 ,REVENUES AND BENEFITS - COUNCIL TAX,DEBT COLLECTION AGENCY COMMISS,H910,DEBT COLLECTION AGENCY COMMISS,REVENUES AND BENEFITS,FINANCIAL SERVICES
http://statistics.data.gov.uk/id/local-authority/43UM,WOKING BOROUGH COUNCIL,07/04/2015,0000379653/001,KENT FINANCIAL SERVICES,40484900,45.00 ,REVENUES AND BENEFITS - COUNCIL TAX,DEBT COLLECTION AGENCY COMMISS,H910,DEBT COLLECTION AGENCY COMMISS,REVENUES AND BENEFITS,FINANCIAL SERVICES
http://statistics.data.gov.uk/id/local-authority/43UM,WOKING BOROUGH COUNCIL,07/04/2015,0000379654/001,KENT FINANCIAL SERVICES,40484900,45.00 ,REVENUES AND BENEFITS - COUNCIL TAX,DEBT COLLECTION AGENCY COMMISS,H910,DEBT COLLECTION AGENCY COMMISS,REVENUES AND BENEFITS,FINANCIAL SERVICES
http://statistics.data.gov.uk/id/local-authority/43UM,WOKING BOROUGH COUNCIL,07/04/2015,0000379655/001,KENT FINANCIAL SERVICES,40484900,45.00 ,REVENUES AND BENEFITS - COUNCIL TAX,DEBT COLLECTION AGENCY COMMISS,H910,DEBT COLLECTION AGENCY COMMISS,REVENUES AND BENEFITS,FINANCIAL SERVICES
http://statistics.data.gov.uk/id/local-authority/43UM,WOKING BOROUGH COUNCIL,07/04/2015,0000379656/001,KENT FINANCIAL SERVICES,40484900,35.00 ,REVENUES AND BENEFITS - COUNCIL TAX,DEBT COLLECTION AGENCY COMMISS,H910,DEBT COLLECTION AGENCY COMMISS,REVENUES AND BENEFITS,FINANCIAL SERVICES
http://statistics.data.gov.uk/id/local-authority/43UM,WOKING BOROUGH COUNCIL,07/04/2015,0000380112/001,KENT FINANCIAL SERVICES,40484900,45.00 ,REVENUES AND BENEFITS - COUNCIL TAX,DEBT COLLECTION AGENCY COMMISS,H910,DEBT COLLECTION AGENCY COMMISS,REVENUES AND BENEFITS,FINANCIAL SERVICES
http://statistics.data.gov.uk/id/local-authority/43UM,WOKING BOROUGH COUNCIL,07/04/2015,0000380113/001,KENT FINANCIAL SERVICES,40484900,45.00 ,REVENUES AND BENEFITS - COUNCIL TAX,DEBT COLLECTION AGENCY COMMISS,H910,DEBT COLLECTION AGENCY COMMISS,REVENUES AND BENEFITS,FINANCIAL SERVICES
http://statistics.data.gov.uk/id/local-authority/43UM,WOKING BOROUGH COUNCIL,07/04/2015,0000380114/001,KENT FINANCIAL SERVICES,40484900,35.00 ,REVENUES AND BENEFITS - COUNCIL TAX,DEBT COLLECTION AGENCY COMMISS,H910,DEBT COLLECTION AGENCY COMMISS,REVENUES AND BENEFITS,FINANCIAL SERVICES
http://statistics.data.gov.uk/id/local-authority/43UM,WOKING BOROUGH COUNCIL,07/04/2015,0000380115/001,KENT FINANCIAL SERVICES,40484900,45.00 ,REVENUES AND BENEFITS - COUNCIL TAX,DEBT COLLECTION AGENCY COMMISS,H910,DEBT COLLECTION AGENCY COMMISS,REVENUES AND BENEFITS,FINANCIAL SERVICES
http://statistics.data.gov.uk/id/local-authority/43UM,WOKING BOROUGH COUNCIL,07/04/2015,0000380514/001,LAMPSHOPONLINE Ltd,40488200,120.00 ,ASSET MANAGEMENT - FACILITIES MANAGEMENT,FACILITIES MANAGEMENT REPAIRS,D908,FACILITIES MANAGEMENT REPAIRS,ASSET MANAGEMENT,FACILITIES & MANAGEMENT SERVICES
http://statistics.data.gov.uk/id/local-authority/43UM,WOKING BOROUGH COUNCIL,07/04/2015,0000380557/001,LANDMARK INFORMATION GROUP LTD,01259400,250.00 ,INFORMATION TECHNOLOGY - I.T.S. ICT,PC & SERVER SYSTEMS SOFTWARE,G193,PC & SERVER SYSTEMS SOFTWARE,INFORMATION TECHNOLOGY,INFORMATION COMMUNICATION TECHNOLOGY
http://statistics.data.gov.uk/id/local-authority/43UM,WOKING BOROUGH COUNCIL,07/04/2015,0000380821/001,LANGLASS,40505100,172.00 ,CORPORATE STRATEGY - CIVIC EXPENSES,OFFICIAL HOSPITALITY,H310,OFFICIAL HOSPITALITY,CORPORATE STRATEGY,FACILITIES & MANAGEMENT SERVICES
http://statistics.data.gov.uk/id/local-authority/43UM,WOKING BOROUGH COUNCIL,07/04/2015,0000379598/001,LEA'S CLEANING SERVICE LTD,01678300,230.00 ,CORPORATE MANAGEMENT GROUP - WOMENS SUPPORT CTR ART AWARDS,MISCELLANEOUS EXPENSES,X827,MISCELLANEOUS EXPENSES,CORPORATE MANAGEMENT GROUP,WORKS (CONSTRUCTION REPAIR MAINTENANCE)
http://statistics.data.gov.uk/id/local-authority/43UM,WOKING BOROUGH COUNCIL,07/04/2015,0000380275/001,LEA'S CLEANING SERVICE LTD,01678300,255.00 ,ASSET MANAGEMENT - HOLLYWOOD HOUSE,CONTRACT CLEANING,D900,CONTRACT CLEANING,ASSET MANAGEMENT,WORKS (CONSTRUCTION REPAIR MAINTENANCE)
http://statistics.data.gov.uk/id/local-authority/43UM,WOKING BOROUGH COUNCIL,07/04/2015,0000380273/001,LEA'S CLEANING SERVICE LTD,01678300,400.00 ,ASSET MANAGEMENT - FACILITIES MANAGEMENT,FACILITIES MANAGEMENT REPAIRS,D908,FACILITIES MANAGEMENT REPAIRS,ASSET MANAGEMENT,WORKS (CONSTRUCTION REPAIR MAINTENANCE)
http://statistics.data.gov.uk/id/local-authority/43UM,WOKING BOROUGH COUNCIL,07/04/2015,0000380276/002,LEA'S CLEANING SERVICE LTD,01678300,50.00 ,ASSET MANAGEMENT - FACILITIES MANAGEMENT,FACILITIES MANAGEMENT REPAIRS,D908,FACILITIES MANAGEMENT REPAIRS,ASSET MANAGEMENT,WORKS (CONSTRUCTION REPAIR MAINTENANCE)
http://statistics.data.gov.uk/id/local-authority/43UM,WOKING BOROUGH COUNCIL,07/04/2015,0000380120/001,LEA'S CLEANING SERVICE LTD,01678300,775.00 ,HOUSING SERVICES - CARETAKING COSTS,CONTRACT CLEANING,D900,CONTRACT CLEANING,HOUSING SERVICES,WORKS (CONSTRUCTION REPAIR MAINTENANCE)
http://statistics.data.gov.uk/id/local-authority/43UM,WOKING BOROUGH COUNCIL,07/04/2015,0000380290/001,LEA'S CLEANING SERVICE LTD,01678300,385.00 ,CORPORATE STRATEGY - LEISURE MANAGEMENT CONTRACT,R&M BUILDINGS - CONTRACTORS,D100,R&M BUILDINGS - CONTRACTORS,CORPORATE STRATEGY,WORKS (CONSTRUCTION REPAIR MAINTENANCE)
http://statistics.data.gov.uk/id/local-authority/43UM,WOKING BOROUGH COUNCIL,07/04/2015,0000380276/001,LEA'S CLEANING SERVICE LTD,01678300,160.00 ,ASSET MANAGEMENT - AMP PITP REPLACE FIRE ALARM,MAIN CONTRACTOR,Q200,MAIN CONTRACTOR,ASSET MANAGEMENT,WORKS (CONSTRUCTION REPAIR MAINTENANCE)
http://statistics.data.gov.uk/id/local-authority/43UM,WOKING BOROUGH COUNCIL,07/04/2015,0000380131/001,LUCY HAINES,01526200,425.00 ,CORPORATE MANAGEMENT GROUP - STAFF TRAINING/GENERAL COSTS,TRAINING - CORPORATE,A910,TRAINING - CORPORATE,CORPORATE MANAGEMENT GROUP,HUMAN RESOURCES
http://statistics.data.gov.uk/id/local-authority/43UM,WOKING BOROUGH COUNCIL,07/04/2015,0000380817/001,MARTIN CONWAY,01025900,50.00 ,HOUSING SERVICES - HOUSING OPTIONS,BED & BREAKFAST EXPENDITURE,H786,BED & BREAKFAST EXPENDITURE,HOUSING SERVICES,HOUSING MANAGEMENT
http://statistics.data.gov.uk/id/local-authority/43UM,WOKING BOROUGH COUNCIL,07/04/2015,0000380034/001,MATTHEW CLARK WHOLESALE,00107800,104.13 ,H G WELLS - H G WELLS - BAR,PROVISIONS-BAR,G450,PROVISIONS-BAR,H G WELLS,CATERING
http://statistics.data.gov.uk/id/local-authority/43UM,WOKING BOROUGH COUNCIL,07/04/2015,0000380035/001,MATTHEW CLARK WHOLESALE,00107800,1250.01 ,H G WELLS - H G WELLS - BAR,PROVISIONS-BAR,G450,PROVISIONS-BAR,H G WELLS,CATERING
http://statistics.data.gov.uk/id/local-authority/43UM,WOKING BOROUGH COUNCIL,07/04/2015,0000380446/001,MATTHEW CLARK WHOLESALE,00107800,764.22 ,H G WELLS - H G WELLS - BAR,PROVISIONS-BAR,G450,PROVISIONS-BAR,H G WELLS,CATERING
http://statistics.data.gov.uk/id/local-authority/43UM,WOKING BOROUGH COUNCIL,07/04/2015,0000380699/001,MATTHEW CLARK WHOLESALE,00107800,108.70 ,H G WELLS - H G WELLS - BAR,PROVISIONS-BAR,G450,PROVISIONS-BAR,H G WELLS,CATERING
http://statistics.data.gov.uk/id/local-authority/43UM,WOKING BOROUGH COUNCIL,07/04/2015,0000380799/001,McLAUGHLIN & HARVEY LIMITED,40254300,325280.00 ,ASSET MANAGEMENT - WOLSEY PLACE POUNDLAND,MAIN CONTRACTOR,Q200,MAIN CONTRACTOR,ASSET MANAGEMENT,WORKS (CONSTRUCTION REPAIR MAINTENANCE)
http://statistics.data.gov.uk/id/local-authority/43UM,WOKING BOROUGH COUNCIL,07/04/2015,0000380540/001,MICHAEL EDWARDS CONSULTANTS Ltd t/a MEA,01462600,900.00 ,ASSET MANAGEMENT - PROPERTY SERVICES,CONSULTANTS,H670,CONSULTANTS,ASSET MANAGEMENT,WORKS (CONSTRUCTION REPAIR MAINTENANCE)
http://statistics.data.gov.uk/id/local-authority/43UM,WOKING BOROUGH COUNCIL,07/04/2015,0000380826/001,MOLE VALLEY DISTRICT COUNCIL,00547600,227.00 ,REVENUES AND BENEFITS - CUSTOMER SERVICES,ANSWERING SERVICE,G853,ANSWERING SERVICE,REVENUES AND BENEFITS,INFORMATION COMMUNICATION TECHNOLOGY
http://statistics.data.gov.uk/id/local-authority/43UM,WOKING BOROUGH COUNCIL,07/04/2015,0000380026/001,MONTMARTRE PATISSERIE LTD,01482700,6.52 ,H G WELLS - H G WELLS - CATERING,PROVISIONS-FOOD,G440,PROVISIONS-FOOD,H G WELLS,CATERING
http://statistics.data.gov.uk/id/local-authority/43UM,WOKING BOROUGH COUNCIL,07/04/2015,0000380130/001,MORGAN HUNT PUBLIC SECTOR LIMITED,01768500,1001.95 ,REVENUES AND BENEFITS - COUNCIL TAX,TEMPORARY STAFF,A110,TEMPORARY STAFF,REVENUES AND BENEFITS,HUMAN RESOURCES
http://statistics.data.gov.uk/id/local-authority/43UM,WOKING BOROUGH COUNCIL,07/04/2015,0000380106/001,MORGAN HUNT PUBLIC SECTOR LIMITED,01768500,764.50 ,REVENUES AND BENEFITS - CUSTOMER SERVICES,TEMPORARY STAFF,A110,TEMPORARY STAFF,REVENUES AND BENEFITS,HUMAN RESOURCES
http://statistics.data.gov.uk/id/local-authority/43UM,WOKING BOROUGH COUNCIL,07/04/2015,0000380427/001,O P R LTD,40363500,176.00 ,H G WELLS - H G WELLS GEN MANAGER & OFFICE,TEMPORARY STAFF,A110,TEMPORARY STAFF,H G WELLS,HUMAN RESOURCES
http://statistics.data.gov.uk/id/local-authority/43UM,WOKING BOROUGH COUNCIL,07/04/2015,0000380428/001,O P R LTD,40363500,88.00 ,H G WELLS - H G WELLS GEN MANAGER & OFFICE,TEMPORARY STAFF,A110,TEMPORARY STAFF,H G WELLS,HUMAN RESOURCES
http://statistics.data.gov.uk/id/local-authority/43UM,WOKING BOROUGH COUNCIL,07/04/2015,0000380750/001,OYSTER PARTNERSHIP,40443300,1110.00 ,PLANNING SERVICES - DEVELOPMENT CONTROL,TEMPORARY STAFF,A110,TEMPORARY STAFF,PLANNING SERVICES,HUMAN RESOURCES
http://statistics.data.gov.uk/id/local-authority/43UM,WOKING BOROUGH COUNCIL,07/04/2015,0000380751/001,OYSTER PARTNERSHIP,40443300,1053.95 ,PLANNING SERVICES - DEVELOPMENT CONTROL,TEMPORARY STAFF,A110,TEMPORARY STAFF,PLANNING SERVICES,HUMAN RESOURCES
http://statistics.data.gov.uk/id/local-authority/43UM,WOKING BOROUGH COUNCIL,07/04/2015,0000380752/001,OYSTER PARTNERSHIP,40443300,1012.50 ,PLANNING SERVICES - DEVELOPMENT CONTROL,TEMPORARY STAFF,A110,TEMPORARY STAFF,PLANNING SERVICES,HUMAN RESOURCES
http://statistics.data.gov.uk/id/local-authority/43UM,WOKING BOROUGH COUNCIL,07/04/2015,0000379616/001,PARATUS LIMITED,40500400,1237.50 ,H G WELLS - H G WELLS - FUNCTION ROOMS,CONTRACT SECURITY,H602,CONTRACT SECURITY,H G WELLS,FACILITIES & MANAGEMENT SERVICES
http://statistics.data.gov.uk/id/local-authority/43UM,WOKING BOROUGH COUNCIL,07/04/2015,0000380711/001,PERSONNEL SELECTION ASSOCIATES LIMITED,00061400,396.38 ,H G WELLS - H G WELLS - FUNCTION ROOMS,TEMPORARY STAFF,H687,TEMPORARY STAFF,H G WELLS,HUMAN RESOURCES
http://statistics.data.gov.uk/id/local-authority/43UM,WOKING BOROUGH COUNCIL,07/04/2015,0000380712/001,PERSONNEL SELECTION ASSOCIATES LIMITED,00061400,252.00 ,H G WELLS - H G WELLS - BAR,TEMPORARY STAFF,H687,TEMPORARY STAFF,H G WELLS,HUMAN RESOURCES
http://statistics.data.gov.uk/id/local-authority/43UM,WOKING BOROUGH COUNCIL,07/04/2015,GPC/577197632,POUNDLAND LTD 1228,PROCUREMENT CARD,7.50 ,NEIGHBOURHOOD SERVICES - SHEERWATER COMMUNITY PROJECTS,EQUIPMENT,G100,ART MATERIALS,ROBERT MORGAN,DISCOUNT STORES
http://statistics.data.gov.uk/id/local-authority/43UM,WOKING BOROUGH COUNCIL,07/04/2015,GPC/577200757,PRET A MANGER,PROCUREMENT CARD,12.03 ,CORPORATE STRATEGY - CORPORATE STRATEGY GENERAL EXP,OFFICIAL HOSPITALITY,H310,BUSINESS LUNCH - EAST HAMPSHIRE DC,EMERA CHOWN,EATING PLACES RESTAURANTS
http://statistics.data.gov.uk/id/local-authority/43UM,WOKING BOROUGH COUNCIL,07/04/2015,0000380756/001,PRICEWATERHOUSECOOPERS LLP,00065400,5000.00 ,FINANCIAL SERVICES - FINANCIAL SERVICES,CONSULTANTS,H670,CONSULTANTS,FINANCIAL SERVICES,LEGAL SERVICES
http://statistics.data.gov.uk/id/local-authority/43UM,WOKING BOROUGH COUNCIL,07/04/2015,0000380000/001,PROJECT114 LTD,40370300,630.00 ,HOUSING SERVICES - HOUSING OPTIONS,BED & BREAKFAST EXPENDITURE,H786,BED & BREAKFAST EXPENDITURE,HOUSING SERVICES,HOUSING MANAGEMENT
http://statistics.data.gov.uk/id/local-authority/43UM,WOKING BOROUGH COUNCIL,07/04/2015,0000380001/001,PROJECT114 LTD,40370300,420.00 ,HOUSING SERVICES - HOUSING OPTIONS,BED & BREAKFAST EXPENDITURE,H786,BED & BREAKFAST EXPENDITURE,HOUSING SERVICES,HOUSING MANAGEMENT
http://statistics.data.gov.uk/id/local-authority/43UM,WOKING BOROUGH COUNCIL,07/04/2015,0000380002/001,PROJECT114 LTD,40370300,770.00 ,HOUSING SERVICES - HOUSING OPTIONS,BED & BREAKFAST EXPENDITURE,H786,BED & BREAKFAST EXPENDITURE,HOUSING SERVICES,HOUSING MANAGEMENT
http://statistics.data.gov.uk/id/local-authority/43UM,WOKING BOROUGH COUNCIL,07/04/2015,0000380003/001,PROJECT114 LTD,40370300,480.00 ,HOUSING SERVICES - HOUSING OPTIONS,BED & BREAKFAST EXPENDITURE,H786,BED & BREAKFAST EXPENDITURE,HOUSING SERVICES,HOUSING MANAGEMENT
http://statistics.data.gov.uk/id/local-authority/43UM,WOKING BOROUGH COUNCIL,07/04/2015,0000380004/001,PROJECT114 LTD,40370300,770.00 ,HOUSING SERVICES - HOUSING OPTIONS,BED & BREAKFAST EXPENDITURE,H786,BED & BREAKFAST EXPENDITURE,HOUSING SERVICES,HOUSING MANAGEMENT
http://statistics.data.gov.uk/id/local-authority/43UM,WOKING BOROUGH COUNCIL,07/04/2015,0000380005/001,PROJECT114 LTD,40370300,770.00 ,HOUSING SERVICES - HOUSING OPTIONS,BED & BREAKFAST EXPENDITURE,H786,BED & BREAKFAST EXPENDITURE,HOUSING SERVICES,HOUSING MANAGEMENT
http://statistics.data.gov.uk/id/local-authority/43UM,WOKING BOROUGH COUNCIL,07/04/2015,0000380006/001,PROJECT114 LTD,40370300,560.00 ,HOUSING SERVICES - HOUSING OPTIONS,BED & BREAKFAST EXPENDITURE,H786,BED & BREAKFAST EXPENDITURE,HOUSING SERVICES,HOUSING MANAGEMENT
http://statistics.data.gov.uk/id/local-authority/43UM,WOKING BOROUGH COUNCIL,07/04/2015,0000380007/001,PROJECT114 LTD,40370300,700.00 ,HOUSING SERVICES - HOUSING OPTIONS,BED & BREAKFAST EXPENDITURE,H786,BED & BREAKFAST EXPENDITURE,HOUSING SERVICES,HOUSING MANAGEMENT
http://statistics.data.gov.uk/id/local-authority/43UM,WOKING BOROUGH COUNCIL,07/04/2015,0000380008/001,PROJECT114 LTD,40370300,770.00 ,HOUSING SERVICES - HOUSING OPTIONS,BED & BREAKFAST EXPENDITURE,H786,BED & BREAKFAST EXPENDITURE,HOUSING SERVICES,HOUSING MANAGEMENT
http://statistics.data.gov.uk/id/local-authority/43UM,WOKING BOROUGH COUNCIL,07/04/2015,0000380009/001,PROJECT114 LTD,40370300,770.00 ,HOUSING SERVICES - HOUSING OPTIONS,BED & BREAKFAST EXPENDITURE,H786,BED & BREAKFAST EXPENDITURE,HOUSING SERVICES,HOUSING MANAGEMENT
http://statistics.data.gov.uk/id/local-authority/43UM,WOKING BOROUGH COUNCIL,07/04/2015,0000380010/001,PROJECT114 LTD,40370300,700.00 ,HOUSING SERVICES - HOUSING OPTIONS,BED & BREAKFAST EXPENDITURE,H786,BED & BREAKFAST EXPENDITURE,HOUSING SERVICES,HOUSING MANAGEMENT
http://statistics.data.gov.uk/id/local-authority/43UM,WOKING BOROUGH COUNCIL,07/04/2015,0000380011/001,PROJECT114 LTD,40370300,700.00 ,HOUSING SERVICES - HOUSING OPTIONS,BED & BREAKFAST EXPENDITURE,H786,BED & BREAKFAST EXPENDITURE,HOUSING SERVICES,HOUSING MANAGEMENT
http://statistics.data.gov.uk/id/local-authority/43UM,WOKING BOROUGH COUNCIL,07/04/2015,0000380012/001,PROJECT114 LTD,40370300,560.00 ,HOUSING SERVICES - HOUSING OPTIONS,BED & BREAKFAST EXPENDITURE,H786,BED & BREAKFAST EXPENDITURE,HOUSING SERVICES,HOUSING MANAGEMENT
http://statistics.data.gov.uk/id/local-authority/43UM,WOKING BOROUGH COUNCIL,07/04/2015,0000380013/001,PROJECT114 LTD,40370300,560.00 ,HOUSING SERVICES - HOUSING OPTIONS,BED & BREAKFAST EXPENDITURE,H786,BED & BREAKFAST EXPENDITURE,HOUSING SERVICES,HOUSING MANAGEMENT
http://statistics.data.gov.uk/id/local-authority/43UM,WOKING BOROUGH COUNCIL,07/04/2015,0000380014/001,PROJECT114 LTD,40370300,700.00 ,HOUSING SERVICES - HOUSING OPTIONS,BED & BREAKFAST EXPENDITURE,H786,BED & BREAKFAST EXPENDITURE,HOUSING SERVICES,HOUSING MANAGEMENT
http://statistics.data.gov.uk/id/local-authority/43UM,WOKING BOROUGH COUNCIL,07/04/2015,0000380015/001,PROJECT114 LTD,40370300,700.00 ,HOUSING SERVICES - HOUSING OPTIONS,BED & BREAKFAST EXPENDITURE,H786,BED & BREAKFAST EXPENDITURE,HOUSING SERVICES,HOUSING MANAGEMENT
http://statistics.data.gov.uk/id/local-authority/43UM,WOKING BOROUGH COUNCIL,07/04/2015,0000380564/001,PROTEAN PLANNING LIMITED,40360500,4560.00 ,PLANNING SERVICES - TOWN PLANNING GENERAL,CONSULTANTS,H670,CONSULTANTS,PLANNING SERVICES,CONSULTANCY
http://statistics.data.gov.uk/id/local-authority/43UM,WOKING BOROUGH COUNCIL,07/04/2015,0000380785/001,PYRFORD RETIRED MEN'S LUNCH CLUB,40302500,125.00 ,CORPORATE STRATEGY - GRANTS TO ORGANISATION,GRANTS,H100,GRANTS,CORPORATE STRATEGY,FINANCIAL SERVICES
http://statistics.data.gov.uk/id/local-authority/43UM,WOKING BOROUGH COUNCIL,07/04/2015,0000380815/001,RAIMONDI AUTO SERVICES,40505000,770.00 ,CORPORATE STRATEGY - EMERGENCY PLANNING,DCLG SEVERE WEATHER PAYMENTS,H700,DCLG SEVERE WEATHER PAYMENTS,CORPORATE STRATEGY,FINANCIAL SERVICES
http://statistics.data.gov.uk/id/local-authority/43UM,WOKING BOROUGH COUNCIL,07/04/2015,0000380748/001,RECOGNITION EXPRESS,01926600,28.00 ,H G WELLS - H G WELLS - FUNCTION ROOMS,CLOTHING/UNIFORMS,G510,CLOTHING/UNIFORMS,H G WELLS,CLOTHING
http://statistics.data.gov.uk/id/local-authority/43UM,WOKING BOROUGH COUNCIL,07/04/2015,0000380515/001,REED BUSINESS INFORMATION LTD,00149100,1931.00 ,ASSET MANAGEMENT - VALUATION SERVICES,STAFF RECRUITMENT,A275,STAFF RECRUITMENT,ASSET MANAGEMENT,HUMAN RESOURCES
http://statistics.data.gov.uk/id/local-authority/43UM,WOKING BOROUGH COUNCIL,07/04/2015,0000379613/001,REEVES BUTCHERS LIMITED,01005000,55.97 ,H G WELLS - H G WELLS - CATERING,PROVISIONS-FOOD,G440,PROVISIONS-FOOD,H G WELLS,CATERING
http://statistics.data.gov.uk/id/local-authority/43UM,WOKING BOROUGH COUNCIL,07/04/2015,0000380027/001,REEVES BUTCHERS LIMITED,01005000,13.50 ,H G WELLS - H G WELLS - CATERING,PROVISIONS-FOOD,G440,PROVISIONS-FOOD,H G WELLS,CATERING
http://statistics.data.gov.uk/id/local-authority/43UM,WOKING BOROUGH COUNCIL,07/04/2015,0000380463/001,RETAIL SYSTEMS TECHNOLOGY Ltd,40503000,14048.00 ,INFORMATION TECHNOLOGY - HGWELLS CASH REPLACEMENT SYSTE,REPLACEMENT EQUIPMENT,Q010,REPLACEMENT EQUIPMENT,INFORMATION TECHNOLOGY,INFORMATION COMMUNICATION TECHNOLOGY
http://statistics.data.gov.uk/id/local-authority/43UM,WOKING BOROUGH COUNCIL,07/04/2015,0000380463/003,RETAIL SYSTEMS TECHNOLOGY Ltd,40503000,1060.00 ,INFORMATION TECHNOLOGY - HGWELLS CASH REPLACEMENT SYSTE,APPLICATIONS SOFTWARE,Q040,APPLICATIONS SOFTWARE,INFORMATION TECHNOLOGY,INFORMATION COMMUNICATION TECHNOLOGY
http://statistics.data.gov.uk/id/local-authority/43UM,WOKING BOROUGH COUNCIL,07/04/2015,0000380463/002,RETAIL SYSTEMS TECHNOLOGY Ltd,40503000,1662.50 ,INFORMATION TECHNOLOGY - HGWELLS CASH REPLACEMENT SYSTE,SERVICES,Q053,SERVICES,INFORMATION TECHNOLOGY,INFORMATION COMMUNICATION TECHNOLOGY
http://statistics.data.gov.uk/id/local-authority/43UM,WOKING BOROUGH COUNCIL,07/04/2015,0000379586/001,RICHARD WELLS,40300000,200.00 ,NEIGHBOURHOOD SERVICES - ARTS PARTNERSHIP SURREY,MISCELLANEOUS EXPENSES,X827,MISCELLANEOUS EXPENSES,NEIGHBOURHOOD SERVICES,ARTS & LEISURE SERVICES
http://statistics.data.gov.uk/id/local-authority/43UM,WOKING BOROUGH COUNCIL,07/04/2015,0000379587/001,RICHARD WELLS,40300000,150.00 ,NEIGHBOURHOOD SERVICES - ARTS PARTNERSHIP SURREY,MISCELLANEOUS EXPENSES,X827,MISCELLANEOUS EXPENSES,NEIGHBOURHOOD SERVICES,ARTS & LEISURE SERVICES
http://statistics.data.gov.uk/id/local-authority/43UM,WOKING BOROUGH COUNCIL,07/04/2015,0000380066/001,RICOH UK LTD,00107300,337.00 ,INFORMATION TECHNOLOGY - ICT GENERAL REPLACEMENT 14/15,REPLACEMENT EQUIPMENT,Q010,REPLACEMENT EQUIPMENT,INFORMATION TECHNOLOGY,INFORMATION COMMUNICATION TECHNOLOGY
http://statistics.data.gov.uk/id/local-authority/43UM,WOKING BOROUGH COUNCIL,07/04/2015,0000380402/001,ROYAL MAIL GROUP Ltd,00040000,4.92 ,CORPORATE STRATEGY - POSTAGE,POSTAGE - REPLY PAID,G710,POSTAGE - REPLY PAID,CORPORATE STRATEGY,MAIL SERVICES
http://statistics.data.gov.uk/id/local-authority/43UM,WOKING BOROUGH COUNCIL,07/04/2015,0000380403/001,ROYAL MAIL GROUP Ltd,00040000,354.74 ,CORPORATE STRATEGY - POSTAGE,POSTAGE - REPLY PAID,G710,POSTAGE - REPLY PAID,CORPORATE STRATEGY,MAIL SERVICES
http://statistics.data.gov.uk/id/local-authority/43UM,WOKING BOROUGH COUNCIL,07/04/2015,0000380403/002,ROYAL MAIL GROUP Ltd,00040000,2.82 ,CORPORATE STRATEGY - POSTAGE,POSTAGE - REPLY PAID,G710,POSTAGE - REPLY PAID,CORPORATE STRATEGY,MAIL SERVICES
http://statistics.data.gov.uk/id/local-authority/43UM,WOKING BOROUGH COUNCIL,07/04/2015,0000380324/001,SAVILLS (UK) Ltd,01581900,5060.44 ,ASSET MANAGEMENT - PEACOCKS - THEATRES & CINEMAS,SERVICE CHARGE,D510,SERVICE CHARGE,ASSET MANAGEMENT,FACILITIES & MANAGEMENT SERVICES
http://statistics.data.gov.uk/id/local-authority/43UM,WOKING BOROUGH COUNCIL,07/04/2015,0000380304/001,SAVILLS (UK) Ltd,01581900,11333.54 ,ASSET MANAGEMENT - WOLSEY PLACE,SERVICE CHARGE,D510,SERVICE CHARGE,ASSET MANAGEMENT,FACILITIES & MANAGEMENT SERVICES
http://statistics.data.gov.uk/id/local-authority/43UM,WOKING BOROUGH COUNCIL,07/04/2015,0000380305/001,SAVILLS (UK) Ltd,01581900,3841.96 ,ASSET MANAGEMENT - WOLSEY PLACE,SERVICE CHARGE,D510,SERVICE CHARGE,ASSET MANAGEMENT,FACILITIES & MANAGEMENT SERVICES
http://statistics.data.gov.uk/id/local-authority/43UM,WOKING BOROUGH COUNCIL,07/04/2015,0000380306/001,SAVILLS (UK) Ltd,01581900,328.90 ,ASSET MANAGEMENT - WOLSEY PLACE,SERVICE CHARGE,D510,SERVICE CHARGE,ASSET MANAGEMENT,FACILITIES & MANAGEMENT SERVICES
http://statistics.data.gov.uk/id/local-authority/43UM,WOKING BOROUGH COUNCIL,07/04/2015,0000380307/001,SAVILLS (UK) Ltd,01581900,579.81 ,ASSET MANAGEMENT - WOLSEY PLACE,SERVICE CHARGE,D510,SERVICE CHARGE,ASSET MANAGEMENT,FACILITIES & MANAGEMENT SERVICES
http://statistics.data.gov.uk/id/local-authority/43UM,WOKING BOROUGH COUNCIL,07/04/2015,0000380308/001,SAVILLS (UK) Ltd,01581900,418.28 ,ASSET MANAGEMENT - WOLSEY PLACE,SERVICE CHARGE,D510,SERVICE CHARGE,ASSET MANAGEMENT,FACILITIES & MANAGEMENT SERVICES
http://statistics.data.gov.uk/id/local-authority/43UM,WOKING BOROUGH COUNCIL,07/04/2015,0000380309/001,SAVILLS (UK) Ltd,01581900,2756.78 ,ASSET MANAGEMENT - WOLSEY PLACE,SERVICE CHARGE,D510,SERVICE CHARGE,ASSET MANAGEMENT,FACILITIES & MANAGEMENT SERVICES
http://statistics.data.gov.uk/id/local-authority/43UM,WOKING BOROUGH COUNCIL,07/04/2015,0000380310/001,SAVILLS (UK) Ltd,01581900,793.35 ,ASSET MANAGEMENT - WOLSEY PLACE,SERVICE CHARGE,D510,SERVICE CHARGE,ASSET MANAGEMENT,FACILITIES & MANAGEMENT SERVICES
http://statistics.data.gov.uk/id/local-authority/43UM,WOKING BOROUGH COUNCIL,07/04/2015,0000380311/001,SAVILLS (UK) Ltd,01581900,3765.53 ,ASSET MANAGEMENT - WOLSEY PLACE,SERVICE CHARGE,D510,SERVICE CHARGE,ASSET MANAGEMENT,FACILITIES & MANAGEMENT SERVICES
http://statistics.data.gov.uk/id/local-authority/43UM,WOKING BOROUGH COUNCIL,07/04/2015,0000380312/001,SAVILLS (UK) Ltd,01581900,2212.08 ,ASSET MANAGEMENT - WOLSEY PLACE,SERVICE CHARGE,D510,SERVICE CHARGE,ASSET MANAGEMENT,FACILITIES & MANAGEMENT SERVICES
http://statistics.data.gov.uk/id/local-authority/43UM,WOKING BOROUGH COUNCIL,07/04/2015,0000380313/001,SAVILLS (UK) Ltd,01581900,511.21 ,ASSET MANAGEMENT - WOLSEY PLACE,SERVICE CHARGE,D510,SERVICE CHARGE,ASSET MANAGEMENT,FACILITIES & MANAGEMENT SERVICES
http://statistics.data.gov.uk/id/local-authority/43UM,WOKING BOROUGH COUNCIL,07/04/2015,0000380314/001,SAVILLS (UK) Ltd,01581900,528.31 ,ASSET MANAGEMENT - WOLSEY PLACE,SERVICE CHARGE,D510,SERVICE CHARGE,ASSET MANAGEMENT,FACILITIES & MANAGEMENT SERVICES
http://statistics.data.gov.uk/id/local-authority/43UM,WOKING BOROUGH COUNCIL,07/04/2015,0000380315/001,SAVILLS (UK) Ltd,01581900,463.50 ,ASSET MANAGEMENT - WOLSEY PLACE,SERVICE CHARGE,D510,SERVICE CHARGE,ASSET MANAGEMENT,FACILITIES & MANAGEMENT SERVICES
http://statistics.data.gov.uk/id/local-authority/43UM,WOKING BOROUGH COUNCIL,07/04/2015,0000380316/001,SAVILLS (UK) Ltd,01581900,1037.06 ,ASSET MANAGEMENT - WOLSEY PLACE,SERVICE CHARGE,D510,SERVICE CHARGE,ASSET MANAGEMENT,FACILITIES & MANAGEMENT SERVICES
http://statistics.data.gov.uk/id/local-authority/43UM,WOKING BOROUGH COUNCIL,07/04/2015,0000380317/001,SAVILLS (UK) Ltd,01581900,101.69 ,ASSET MANAGEMENT - WOLSEY PLACE,SERVICE CHARGE,D510,SERVICE CHARGE,ASSET MANAGEMENT,FACILITIES & MANAGEMENT SERVICES
http://statistics.data.gov.uk/id/local-authority/43UM,WOKING BOROUGH COUNCIL,07/04/2015,0000380318/001,SAVILLS (UK) Ltd,01581900,224.55 ,ASSET MANAGEMENT - WOLSEY PLACE,SERVICE CHARGE,D510,SERVICE CHARGE,ASSET MANAGEMENT,FACILITIES & MANAGEMENT SERVICES
http://statistics.data.gov.uk/id/local-authority/43UM,WOKING BOROUGH COUNCIL,07/04/2015,0000380319/001,SAVILLS (UK) Ltd,01581900,244.58 ,ASSET MANAGEMENT - WOLSEY PLACE,SERVICE CHARGE,D510,SERVICE CHARGE,ASSET MANAGEMENT,FACILITIES & MANAGEMENT SERVICES
http://statistics.data.gov.uk/id/local-authority/43UM,WOKING BOROUGH COUNCIL,07/04/2015,0000380320/001,SAVILLS (UK) Ltd,01581900,225.39 ,ASSET MANAGEMENT - WOLSEY PLACE,SERVICE CHARGE,D510,SERVICE CHARGE,ASSET MANAGEMENT,FACILITIES & MANAGEMENT SERVICES
http://statistics.data.gov.uk/id/local-authority/43UM,WOKING BOROUGH COUNCIL,07/04/2015,0000380321/001,SAVILLS (UK) Ltd,01581900,15638.72 ,ASSET MANAGEMENT - WOLSEY PLACE,SERVICE CHARGE,D510,SERVICE CHARGE,ASSET MANAGEMENT,FACILITIES & MANAGEMENT SERVICES
http://statistics.data.gov.uk/id/local-authority/43UM,WOKING BOROUGH COUNCIL,07/04/2015,0000380322/001,SAVILLS (UK) Ltd,01581900,62227.33 ,ASSET MANAGEMENT - WOLSEY PLACE,SERVICE CHARGE,D510,SERVICE CHARGE,ASSET MANAGEMENT,FACILITIES & MANAGEMENT SERVICES
http://statistics.data.gov.uk/id/local-authority/43UM,WOKING BOROUGH COUNCIL,07/04/2015,0000380325/001,SAVILLS (UK) Ltd,01581900,-2158.42 ,ASSET MANAGEMENT - WOLSEY PLACE,SERVICE CHARGE,D510,SERVICE CHARGE,ASSET MANAGEMENT,FACILITIES & MANAGEMENT SERVICES
http://statistics.data.gov.uk/id/local-authority/43UM,WOKING BOROUGH COUNCIL,07/04/2015,0000380326/001,SAVILLS (UK) Ltd,01581900,-364.00 ,ASSET MANAGEMENT - WOLSEY PLACE,SERVICE CHARGE,D510,SERVICE CHARGE,ASSET MANAGEMENT,FACILITIES & MANAGEMENT SERVICES
http://statistics.data.gov.uk/id/local-authority/43UM,WOKING BOROUGH COUNCIL,07/04/2015,0000380327/001,SAVILLS (UK) Ltd,01581900,-699.50 ,ASSET MANAGEMENT - WOLSEY PLACE,SERVICE CHARGE,D510,SERVICE CHARGE,ASSET MANAGEMENT,FACILITIES & MANAGEMENT SERVICES
http://statistics.data.gov.uk/id/local-authority/43UM,WOKING BOROUGH COUNCIL,07/04/2015,0000380328/001,SAVILLS (UK) Ltd,01581900,-17370.99 ,ASSET MANAGEMENT - WOLSEY PLACE,SERVICE CHARGE,D510,SERVICE CHARGE,ASSET MANAGEMENT,FACILITIES & MANAGEMENT SERVICES
http://statistics.data.gov.uk/id/local-authority/43UM,WOKING BOROUGH COUNCIL,07/04/2015,0000380329/001,SAVILLS (UK) Ltd,01581900,-18067.20 ,ASSET MANAGEMENT - WOLSEY PLACE,SERVICE CHARGE,D510,SERVICE CHARGE,ASSET MANAGEMENT,FACILITIES & MANAGEMENT SERVICES
http://statistics.data.gov.uk/id/local-authority/43UM,WOKING BOROUGH COUNCIL,07/04/2015,0000380330/001,SAVILLS (UK) Ltd,01581900,-2430.38 ,ASSET MANAGEMENT - WOLSEY PLACE,SERVICE CHARGE,D510,SERVICE CHARGE,ASSET MANAGEMENT,FACILITIES & MANAGEMENT SERVICES
http://statistics.data.gov.uk/id/local-authority/43UM,WOKING BOROUGH COUNCIL,07/04/2015,0000380331/001,SAVILLS (UK) Ltd,01581900,-1120.42 ,ASSET MANAGEMENT - WOLSEY PLACE,SERVICE CHARGE,D510,SERVICE CHARGE,ASSET MANAGEMENT,FACILITIES & MANAGEMENT SERVICES
http://statistics.data.gov.uk/id/local-authority/43UM,WOKING BOROUGH COUNCIL,07/04/2015,0000380332/001,SAVILLS (UK) Ltd,01581900,-875.82 ,ASSET MANAGEMENT - WOLSEY PLACE,SERVICE CHARGE,D510,SERVICE CHARGE,ASSET MANAGEMENT,FACILITIES & MANAGEMENT SERVICES
http://statistics.data.gov.uk/id/local-authority/43UM,WOKING BOROUGH COUNCIL,07/04/2015,0000380333/001,SAVILLS (UK) Ltd,01581900,-52.75 ,ASSET MANAGEMENT - WOLSEY PLACE,SERVICE CHARGE,D510,SERVICE CHARGE,ASSET MANAGEMENT,FACILITIES & MANAGEMENT SERVICES
http://statistics.data.gov.uk/id/local-authority/43UM,WOKING BOROUGH COUNCIL,07/04/2015,0000380334/001,SAVILLS (UK) Ltd,01581900,-4.49 ,ASSET MANAGEMENT - WOLSEY PLACE,SERVICE CHARGE,D510,SERVICE CHARGE,ASSET MANAGEMENT,FACILITIES & MANAGEMENT SERVICES
http://statistics.data.gov.uk/id/local-authority/43UM,WOKING BOROUGH COUNCIL,07/04/2015,0000380335/001,SAVILLS (UK) Ltd,01581900,-1035.00 ,ASSET MANAGEMENT - WOLSEY PLACE,SERVICE CHARGE,D510,SERVICE CHARGE,ASSET MANAGEMENT,FACILITIES & MANAGEMENT SERVICES
http://statistics.data.gov.uk/id/local-authority/43UM,WOKING BOROUGH COUNCIL,07/04/2015,0000380336/001,SAVILLS (UK) Ltd,01581900,-608.63 ,ASSET MANAGEMENT - WOLSEY PLACE,SERVICE CHARGE,D510,SERVICE CHARGE,ASSET MANAGEMENT,FACILITIES & MANAGEMENT SERVICES
http://statistics.data.gov.uk/id/local-authority/43UM,WOKING BOROUGH COUNCIL,07/04/2015,0000380337/001,SAVILLS (UK) Ltd,01581900,-7688.38 ,ASSET MANAGEMENT - WOLSEY PLACE,SERVICE CHARGE,D510,SERVICE CHARGE,ASSET MANAGEMENT,FACILITIES & MANAGEMENT SERVICES
http://statistics.data.gov.uk/id/local-authority/43UM,WOKING BOROUGH COUNCIL,07/04/2015,0000380338/001,SAVILLS (UK) Ltd,01581900,-4108.46 ,ASSET MANAGEMENT - WOLSEY PLACE,SERVICE CHARGE,D510,SERVICE CHARGE,ASSET MANAGEMENT,FACILITIES & MANAGEMENT SERVICES
http://statistics.data.gov.uk/id/local-authority/43UM,WOKING BOROUGH COUNCIL,07/04/2015,0000380303/001,SAVILLS (UK) Ltd,01581900,12488.00 ,CORPORATE STRATEGY - INCUBATOR UNITS -EXPORT HOUSE,SERVICE CHARGE,D510,SERVICE CHARGE,CORPORATE STRATEGY,FACILITIES & MANAGEMENT SERVICES
http://statistics.data.gov.uk/id/local-authority/43UM,WOKING BOROUGH COUNCIL,07/04/2015,0000380583/001,SAVILLS (UK) Ltd,01581900,-6305.60 ,CORPORATE STRATEGY - INCUBATOR UNITS -EXPORT HOUSE,SERVICE CHARGE,D510,SERVICE CHARGE,CORPORATE STRATEGY,FACILITIES & MANAGEMENT SERVICES
http://statistics.data.gov.uk/id/local-authority/43UM,WOKING BOROUGH COUNCIL,07/04/2015,0000380323/001,SAVILLS (UK) Ltd,01581900,20000.00 ,ASSET MANAGEMENT - EXPORT HSE LIFT REFURBISHMENT,MAIN CONTRACTOR,Q200,MAIN CONTRACTOR,ASSET MANAGEMENT,FACILITIES & MANAGEMENT SERVICES
http://statistics.data.gov.uk/id/local-authority/43UM,WOKING BOROUGH COUNCIL,07/04/2015,0000380714/002,SCATTERGOODS AGENCY LTD,00094600,620.50 ,H G WELLS - H G WELLS GEN MANAGER & OFFICE,TEMPORARY STAFF,A110,TEMPORARY STAFF,H G WELLS,HUMAN RESOURCES
http://statistics.data.gov.uk/id/local-authority/43UM,WOKING BOROUGH COUNCIL,07/04/2015,0000380714/003,SCATTERGOODS AGENCY LTD,00094600,815.61 ,H G WELLS - H G WELLS - FUNCTION ROOMS,TEMPORARY STAFF,H687,TEMPORARY STAFF,H G WELLS,HUMAN RESOURCES
http://statistics.data.gov.uk/id/local-authority/43UM,WOKING BOROUGH COUNCIL,07/04/2015,0000380713/001,SCATTERGOODS AGENCY LTD,00094600,233.35 ,H G WELLS - H G WELLS - CATERING,TEMPORARY STAFF,H687,TEMPORARY STAFF,H G WELLS,HUMAN RESOURCES
http://statistics.data.gov.uk/id/local-authority/43UM,WOKING BOROUGH COUNCIL,07/04/2015,0000380714/001,SCATTERGOODS AGENCY LTD,00094600,334.60 ,H G WELLS - H G WELLS - CATERING,TEMPORARY STAFF,H687,TEMPORARY STAFF,H G WELLS,HUMAN RESOURCES
http://statistics.data.gov.uk/id/local-authority/43UM,WOKING BOROUGH COUNCIL,07/04/2015,0000380568/001,SECURITY BY DGL t/a DGL SERVICES,40500700,162.00 ,H G WELLS - H G WELLS - FUNCTION ROOMS,CONTRACT SECURITY,H602,CONTRACT SECURITY,H G WELLS,FACILITIES & MANAGEMENT SERVICES
http://statistics.data.gov.uk/id/local-authority/43UM,WOKING BOROUGH COUNCIL,07/04/2015,0000380410/001,SHARP CAT LTD,40073500,687.65 ,CORPORATE STRATEGY - CORPORATE STRATEGY GENERAL EXP,PRINTING EXTERNAL,G600,PRINTING EXTERNAL,CORPORATE STRATEGY,MAIL SERVICES
http://statistics.data.gov.uk/id/local-authority/43UM,WOKING BOROUGH COUNCIL,07/04/2015,0000380809/001,SHARP CAT LTD,40073500,1809.53 ,CORPORATE STRATEGY - CORPORATE STRATEGY GENERAL EXP,PRINTING EXTERNAL,G600,PRINTING EXTERNAL,CORPORATE STRATEGY,MAIL SERVICES
http://statistics.data.gov.uk/id/local-authority/43UM,WOKING BOROUGH COUNCIL,07/04/2015,0000380810/001,SHARP CAT LTD,40073500,2562.73 ,CORPORATE STRATEGY - CORPORATE STRATEGY GENERAL EXP,PRINTING EXTERNAL,G600,PRINTING EXTERNAL,CORPORATE STRATEGY,MAIL SERVICES
http://statistics.data.gov.uk/id/local-authority/43UM,WOKING BOROUGH COUNCIL,07/04/2015,GPC/577197913,SHELL OLD WOKING,PROCUREMENT CARD,72.09 ,ASSET MANAGEMENT - FACILITIES MANAGEMENT,FACILITIES MANAGEMENT REPAIRS,D908,FUEL FOR POOL VAN,MR D JONES,SERVICE STATIONS (WITH OR WITHOUT ANCILLARY SERVIC
http://statistics.data.gov.uk/id/local-authority/43UM,WOKING BOROUGH COUNCIL,07/04/2015,0000380816/001,SHELTER TRAINING & PUBLICATIONS,00024900,210.00 ,HOUSING SERVICES - HOUSING OPTIONS,SUBSCRIPTIONS,H110,SUBSCRIPTIONS,HOUSING SERVICES,FINANCIAL SERVICES
http://statistics.data.gov.uk/id/local-authority/43UM,WOKING BOROUGH COUNCIL,07/04/2015,0000380563/001,SIGNSEEN SIGN SERVICES,00321400,714.00 ,ASSET MANAGEMENT - CIVIC SUITE REFURBISHMENT,MAIN CONTRACTOR,Q200,MAIN CONTRACTOR,ASSET MANAGEMENT,FACILITIES & MANAGEMENT SERVICES
http://statistics.data.gov.uk/id/local-authority/43UM,WOKING BOROUGH COUNCIL,07/04/2015,0000380570/001,SIGN-UP TECHNOLOGIES Ltd,40411700,1200.00 ,CORPORATE STRATEGY - TOWN CENTRE FORUM,ECDEV BUSINESS ENGAGEMENT,H411,ECDEV BUSINESS ENGAGEMENT,CORPORATE STRATEGY,FACILITIES & MANAGEMENT SERVICES
http://statistics.data.gov.uk/id/local-authority/43UM,WOKING BOROUGH COUNCIL,07/04/2015,0000380801/001,SMITHS GORE,40481400,2299.20 ,ASSET MANAGEMENT - PROPERTY SERVICES,CONSULTANTS,H670,CONSULTANTS,ASSET MANAGEMENT,LEGAL SERVICES
http://statistics.data.gov.uk/id/local-authority/43UM,WOKING BOROUGH COUNCIL,07/04/2015,0000380807/001,SOCITM LIMITED,00027400,140.00 ,INFORMATION TECHNOLOGY - I.T.S. ICT,PC & SERVER SYSTEMS SOFTWARE,G193,PC & SERVER SYSTEMS SOFTWARE,INFORMATION TECHNOLOGY,INFORMATION COMMUNICATION TECHNOLOGY
http://statistics.data.gov.uk/id/local-authority/43UM,WOKING BOROUGH COUNCIL,07/04/2015,GPC/577198248,SPUDULIKE,PROCUREMENT CARD,6.24 ,INDEPENDENT LIVING SERVICES - FAMILY SUPPORT PROGRAMME,FAMILY ENABLING (FSP PROJECT),H137,REFRESHMENTS FOR FAMILY,REBECCA ROSSETTI,FAST-FOOD RESTAURANTS (QUICK PAYMENT SERVICE PILOT
http://statistics.data.gov.uk/id/local-authority/43UM,WOKING BOROUGH COUNCIL,07/04/2015,0000380782/001,ST HUGH'S LUNCHEON CLUB,00274200,56.00 ,CORPORATE STRATEGY - GRANTS TO ORGANISATION,GRANTS,H100,GRANTS,CORPORATE STRATEGY,FINANCIAL SERVICES
http://statistics.data.gov.uk/id/local-authority/43UM,WOKING BOROUGH COUNCIL,07/04/2015,0000380784/001,ST JOHNS GOOD COMPANIONS,00270300,103.00 ,CORPORATE STRATEGY - GRANTS TO ORGANISATION,GRANTS,H100,GRANTS,CORPORATE STRATEGY,FINANCIAL SERVICES
http://statistics.data.gov.uk/id/local-authority/43UM,WOKING BOROUGH COUNCIL,07/04/2015,GPC/577198247,SUBWAY,PROCUREMENT CARD,2.50 ,INDEPENDENT LIVING SERVICES - FAMILY SUPPORT PROGRAMME,FAMILY ENABLING (FSP PROJECT),H137,REFRESHMENTS FOR FAMILY,REBECCA ROSSETTI,EATING PLACES RESTAURANTS
http://statistics.data.gov.uk/id/local-authority/43UM,WOKING BOROUGH COUNCIL,07/04/2015,0000379575/001,SURREY CHAMBERS OF COMMERCE,01348300,10.00 ,CORPORATE STRATEGY - TOWN CENTRE FORUM,STARTUP WOKING COSTS,H408,STARTUP WOKING COSTS,CORPORATE STRATEGY,CATERING
http://statistics.data.gov.uk/id/local-authority/43UM,WOKING BOROUGH COUNCIL,07/04/2015,0040000573/001,SURREY.DISABLED PEOPLE'S PARTNERSHIP,01752000,5250.00 ,CORPORATE STRATEGY - GRANTS TO ORGANISATION,GRANTS,H100,GRANTS,CORPORATE STRATEGY,FINANCIAL SERVICES
http://statistics.data.gov.uk/id/local-authority/43UM,WOKING BOROUGH COUNCIL,07/04/2015,0000380057/001,TANGO SECURITY LTD,01708900,104.00 ,NEIGHBOURHOOD SERVICES - VEH LIC PLATE DEPS,BALANCE,S690,BALANCE,NEIGHBOURHOOD SERVICES,FACILITIES & MANAGEMENT SERVICES
http://statistics.data.gov.uk/id/local-authority/43UM,WOKING BOROUGH COUNCIL,07/04/2015,0000380464/001,THAMESWAY CONTRACTORS LIMITED,40469300,4925.00 ,NEIGHBOURHOOD SERVICES - STREET FURNITURE,GROUNDS MAINT-CONTRACTORS,D200,GROUNDS MAINT-CONTRACTORS,NEIGHBOURHOOD SERVICES,WORKS (CONSTRUCTION REPAIR MAINTENANCE)
http://statistics.data.gov.uk/id/local-authority/43UM,WOKING BOROUGH COUNCIL,07/04/2015,0000380465/001,THAMESWAY CONTRACTORS LIMITED,40469300,2225.00 ,NEIGHBOURHOOD SERVICES - STREET FURNITURE,GROUNDS MAINT-CONTRACTORS,D200,GROUNDS MAINT-CONTRACTORS,NEIGHBOURHOOD SERVICES,WORKS (CONSTRUCTION REPAIR MAINTENANCE)
http://statistics.data.gov.uk/id/local-authority/43UM,WOKING BOROUGH COUNCIL,07/04/2015,0000379565/001,THE GATWICK WHITE HOUSE HOTEL,40346700,900.00 ,HOUSING SERVICES - HOUSING OPTIONS,BED & BREAKFAST EXPENDITURE,H786,BED & BREAKFAST EXPENDITURE,HOUSING SERVICES,HOUSING MANAGEMENT
http://statistics.data.gov.uk/id/local-authority/43UM,WOKING BOROUGH COUNCIL,07/04/2015,0000379566/001,THE GATWICK WHITE HOUSE HOTEL,40346700,1050.00 ,HOUSING SERVICES - HOUSING OPTIONS,BED & BREAKFAST EXPENDITURE,H786,BED & BREAKFAST EXPENDITURE,HOUSING SERVICES,HOUSING MANAGEMENT
http://statistics.data.gov.uk/id/local-authority/43UM,WOKING BOROUGH COUNCIL,07/04/2015,0040000574/001,THE MAYBURY CENTRE TRUST,00062600,7920.75 ,CORPORATE STRATEGY - GRANTS TO ORGANISATION,GRANTS,H100,GRANTS,CORPORATE STRATEGY,FINANCIAL SERVICES
http://statistics.data.gov.uk/id/local-authority/43UM,WOKING BOROUGH COUNCIL,07/04/2015,0000380824/001,TITANIC MANAGEMENT SERVICES,40300500,836.00 ,REVENUES AND BENEFITS - BENEFIT SERVICES,TEMPORARY STAFF,A110,TEMPORARY STAFF,REVENUES AND BENEFITS,HUMAN RESOURCES
http://statistics.data.gov.uk/id/local-authority/43UM,WOKING BOROUGH COUNCIL,07/04/2015,0000380032/001,TOWN & COUNTRY FINE FOODS,40279900,87.67 ,H G WELLS - H G WELLS - CATERING,EQUIPMENT,G100,EQUIPMENT,H G WELLS,CATERING
http://statistics.data.gov.uk/id/local-authority/43UM,WOKING BOROUGH COUNCIL,07/04/2015,0000380030/001,TOWN & COUNTRY FINE FOODS,40279900,56.81 ,H G WELLS - H G WELLS - CATERING,PROVISIONS-FOOD,G440,PROVISIONS-FOOD,H G WELLS,CATERING
http://statistics.data.gov.uk/id/local-authority/43UM,WOKING BOROUGH COUNCIL,07/04/2015,0000380031/001,TOWN & COUNTRY FINE FOODS,40279900,35.41 ,H G WELLS - H G WELLS - CATERING,PROVISIONS-FOOD,G440,PROVISIONS-FOOD,H G WELLS,CATERING
http://statistics.data.gov.uk/id/local-authority/43UM,WOKING BOROUGH COUNCIL,07/04/2015,GPC/577197383,TRAVELODGE WEBSITE,PROCUREMENT CARD,535.00 ,HOUSING SERVICES - HOUSING OPTIONS,BED & BREAKFAST EXPENDITURE,H786,B&B,CATHERINE BUTLER,TRAVELODGE
http://statistics.data.gov.uk/id/local-authority/43UM,WOKING BOROUGH COUNCIL,07/04/2015,0000380780/001,TRUSTEES OF B F S LONG TRUST,40482300,18671.50 ,ASSET MANAGEMENT - PLOT 12 MON WAY EAST,RENTS PAYABLE,D500,RENTS PAYABLE,ASSET MANAGEMENT,FINANCIAL SERVICES
http://statistics.data.gov.uk/id/local-authority/43UM,WOKING BOROUGH COUNCIL,07/04/2015,0000380063/001,TUNSTALL HEALTHCARE (UK) Ltd,00019000,3960.00 ,INDEPENDENT LIVING SERVICES - COMMUNITY ALARMS-GF,NEW EQUIPMENT,G105,NEW EQUIPMENT,INDEPENDENT LIVING SERVICES,HEALTHCARE
http://statistics.data.gov.uk/id/local-authority/43UM,WOKING BOROUGH COUNCIL,07/04/2015,0000380135/001,TUNSTALL HEALTHCARE (UK) Ltd,00019000,169.00 ,INDEPENDENT LIVING SERVICES - COMMUNITY ALARMS-GF,SUPPORTING PEOPLE EQUIPMENT,G108,SUPPORTING PEOPLE EQUIPMENT,INDEPENDENT LIVING SERVICES,HEALTHCARE
http://statistics.data.gov.uk/id/local-authority/43UM,WOKING BOROUGH COUNCIL,07/04/2015,0000380063/002,TUNSTALL HEALTHCARE (UK) Ltd,00019000,44.82 ,INDEPENDENT LIVING SERVICES - COMMUNITY ALARMS-GF,EQUIPMENT - BATTERIES,G181,EQUIPMENT - BATTERIES,INDEPENDENT LIVING SERVICES,HEALTHCARE
http://statistics.data.gov.uk/id/local-authority/43UM,WOKING BOROUGH COUNCIL,07/04/2015,0000380063/003,TUNSTALL HEALTHCARE (UK) Ltd,00019000,332.20 ,INDEPENDENT LIVING SERVICES - COMMUNITY ALARMS-HRA,EQUIPMENT REPAIR & MAINTENANCE,G120,EQUIPMENT REPAIR & MAINTENANCE,INDEPENDENT LIVING SERVICES,HEALTHCARE
http://statistics.data.gov.uk/id/local-authority/43UM,WOKING BOROUGH COUNCIL,07/04/2015,0000380805/001,TV LICENSING,00056000,37.50 ,INDEPENDENT LIVING SERVICES - BROCKHILL EXTRA CARE,TV LICENCE,H703,TV LICENCE,INDEPENDENT LIVING SERVICES,UTILITIES
http://statistics.data.gov.uk/id/local-authority/43UM,WOKING BOROUGH COUNCIL,07/04/2015,0000380061/001,UNITY RECRUITMENT Ltd,40160500,2000.00 ,NEIGHBOURHOOD SERVICES - REGULATION AND ENFORCEMENT,TEMPORARY STAFF,A110,TEMPORARY STAFF,NEIGHBOURHOOD SERVICES,HUMAN RESOURCES
http://statistics.data.gov.uk/id/local-authority/43UM,WOKING BOROUGH COUNCIL,07/04/2015,0000380381/001,UNITY RECRUITMENT Ltd,40160500,4551.75 ,NEIGHBOURHOOD SERVICES - REGULATION AND ENFORCEMENT,TEMPORARY STAFF,A110,TEMPORARY STAFF,NEIGHBOURHOOD SERVICES,HUMAN RESOURCES
http://statistics.data.gov.uk/id/local-authority/43UM,WOKING BOROUGH COUNCIL,07/04/2015,0000380050/001,URS INFRASTRUCTURE & ENVIRONMENT UK LTD,01503100,980.00 ,PLANNING SERVICES - BUILDING REGULATIONS,MICROFILMING,G680,MICROFILMING,PLANNING SERVICES,CONSULTANCY
http://statistics.data.gov.uk/id/local-authority/43UM,WOKING BOROUGH COUNCIL,07/04/2015,0000379678/001,VENN GROUP LIMITED,40383900,968.00 ,REVENUES AND BENEFITS - COUNCIL TAX,TEMPORARY STAFF,A110,TEMPORARY STAFF,REVENUES AND BENEFITS,HUMAN RESOURCES
http://statistics.data.gov.uk/id/local-authority/43UM,WOKING BOROUGH COUNCIL,07/04/2015,0000379679/001,VENN GROUP LIMITED,40383900,869.00 ,REVENUES AND BENEFITS - COUNCIL TAX,TEMPORARY STAFF,A110,TEMPORARY STAFF,REVENUES AND BENEFITS,HUMAN RESOURCES
http://statistics.data.gov.uk/id/local-authority/43UM,WOKING BOROUGH COUNCIL,07/04/2015,0000379680/001,VENN GROUP LIMITED,40383900,473.00 ,REVENUES AND BENEFITS - COUNCIL TAX,TEMPORARY STAFF,A110,TEMPORARY STAFF,REVENUES AND BENEFITS,HUMAN RESOURCES
http://statistics.data.gov.uk/id/local-authority/43UM,WOKING BOROUGH COUNCIL,07/04/2015,0000379681/001,VENN GROUP LIMITED,40383900,584.76 ,REVENUES AND BENEFITS - COUNCIL TAX,TEMPORARY STAFF,A110,TEMPORARY STAFF,REVENUES AND BENEFITS,HUMAN RESOURCES
http://statistics.data.gov.uk/id/local-authority/43UM,WOKING BOROUGH COUNCIL,07/04/2015,0000380806/001,VENN GROUP LIMITED,40383900,1017.50 ,CORPORATE STRATEGY - LEGAL,TEMPORARY STAFF,A110,TEMPORARY STAFF,CORPORATE STRATEGY,HUMAN RESOURCES
http://statistics.data.gov.uk/id/local-authority/43UM,WOKING BOROUGH COUNCIL,07/04/2015,0000380553/001,VIVID RESOURCING Ltd,40463200,2000.00 ,INFORMATION TECHNOLOGY - SHAREPOINT,OTHER CONSULTANTS,Q430,OTHER CONSULTANTS,INFORMATION TECHNOLOGY,INFORMATION COMMUNICATION TECHNOLOGY
http://statistics.data.gov.uk/id/local-authority/43UM,WOKING BOROUGH COUNCIL,07/04/2015,0000380391/001,WAVERLEY BOROUGH COUNCIL,00331100,115.93 ,CORPORATE MANAGEMENT GROUP - STAFF TRAINING/GENERAL COSTS,TRAINING - CORPORATE,A910,TRAINING - CORPORATE,CORPORATE MANAGEMENT GROUP,WORKS (CONSTRUCTION REPAIR MAINTENANCE)
http://statistics.data.gov.uk/id/local-authority/43UM,WOKING BOROUGH COUNCIL,07/04/2015,0000380033/001,WEST HORSLEY DAIRY,00147600,130.16 ,H G WELLS - H G WELLS - CATERING,PROVISIONS-FOOD,G440,PROVISIONS-FOOD,H G WELLS,CATERING
http://statistics.data.gov.uk/id/local-authority/43UM,WOKING BOROUGH COUNCIL,07/04/2015,0000380346/001,WHISTL,00367900,177.91 ,CORPORATE STRATEGY - POSTAGE,POSTAGE - STANDARD TARIFF,G700,POSTAGE - STANDARD TARIFF,CORPORATE STRATEGY,MAIL SERVICES
http://statistics.data.gov.uk/id/local-authority/43UM,WOKING BOROUGH COUNCIL,07/04/2015,0000380347/001,WHISTL,00367900,67.80 ,CORPORATE STRATEGY - POSTAGE,POSTAGE - STANDARD TARIFF,G700,POSTAGE - STANDARD TARIFF,CORPORATE STRATEGY,MAIL SERVICES
http://statistics.data.gov.uk/id/local-authority/43UM,WOKING BOROUGH COUNCIL,07/04/2015,0000380348/001,WHISTL,00367900,2077.63 ,CORPORATE STRATEGY - POSTAGE,POSTAGE - STANDARD TARIFF,G700,POSTAGE - STANDARD TARIFF,CORPORATE STRATEGY,MAIL SERVICES
http://statistics.data.gov.uk/id/local-authority/43UM,WOKING BOROUGH COUNCIL,07/04/2015,0000380488/001,WHITE KNIGHT LAUNDRY SERVICES,01266400,79.91 ,H G WELLS - H G WELLS - FUNCTION ROOMS,LAUNDRY,G520,LAUNDRY,H G WELLS,CLEANING & JANITORIAL
http://statistics.data.gov.uk/id/local-authority/43UM,WOKING BOROUGH COUNCIL,07/04/2015,0000380488/002,WHITE KNIGHT LAUNDRY SERVICES,01266400,10.90 ,H G WELLS - H G WELLS - CATERING,LAUNDRY,G520,LAUNDRY,H G WELLS,CLEANING & JANITORIAL
http://statistics.data.gov.uk/id/local-authority/43UM,WOKING BOROUGH COUNCIL,07/04/2015,0000380342/001,WIGHTMAN & PARRISH Ltd,40474600,56.62 ,INDEPENDENT LIVING SERVICES - MOORCROFT,REFURBISHMENTS,D104,REFURBISHMENTS,INDEPENDENT LIVING SERVICES,CLEANING & JANITORIAL
http://statistics.data.gov.uk/id/local-authority/43UM,WOKING BOROUGH COUNCIL,07/04/2015,0000380343/001,WIGHTMAN & PARRISH Ltd,40474600,39.40 ,INDEPENDENT LIVING SERVICES - MOORCROFT,CLEANING MATERIALS,D920,CLEANING MATERIALS,INDEPENDENT LIVING SERVICES,CLEANING & JANITORIAL
http://statistics.data.gov.uk/id/local-authority/43UM,WOKING BOROUGH COUNCIL,07/04/2015,0000380345/001,WIGHTMAN & PARRISH Ltd,40474600,68.81 ,INDEPENDENT LIVING SERVICES - MOORCROFT,CLEANING MATERIALS,D920,CLEANING MATERIALS,INDEPENDENT LIVING SERVICES,CLEANING & JANITORIAL
http://statistics.data.gov.uk/id/local-authority/43UM,WOKING BOROUGH COUNCIL,07/04/2015,0000380341/001,WIGHTMAN & PARRISH Ltd,40474600,96.70 ,INDEPENDENT LIVING SERVICES - THE VYNE,CLEANING MATERIALS,D920,CLEANING MATERIALS,INDEPENDENT LIVING SERVICES,CLEANING & JANITORIAL
http://statistics.data.gov.uk/id/local-authority/43UM,WOKING BOROUGH COUNCIL,07/04/2015,0000380344/001,WIGHTMAN & PARRISH Ltd,40474600,2.40 ,INDEPENDENT LIVING SERVICES - PARKVIEW,EQUIPMENT,G100,EQUIPMENT,INDEPENDENT LIVING SERVICES,CLEANING & JANITORIAL
http://statistics.data.gov.uk/id/local-authority/43UM,WOKING BOROUGH COUNCIL,07/04/2015,0000380280/001,WIGHTMAN & PARRISH Ltd,40474600,29.48 ,INDEPENDENT LIVING SERVICES - ST MARY'S DAY CENTRE,CLEANING MATERIALS,D920,CLEANING MATERIALS,INDEPENDENT LIVING SERVICES,CLEANING & JANITORIAL
http://statistics.data.gov.uk/id/local-authority/43UM,WOKING BOROUGH COUNCIL,07/04/2015,0000380282/001,WIGHTMAN & PARRISH Ltd,40474600,50.67 ,INDEPENDENT LIVING SERVICES - ST MARY'S DAY CENTRE,CLEANING MATERIALS,D920,CLEANING MATERIALS,INDEPENDENT LIVING SERVICES,CLEANING & JANITORIAL
http://statistics.data.gov.uk/id/local-authority/43UM,WOKING BOROUGH COUNCIL,07/04/2015,0000380542/001,WILLIAM LACEY GROUP PLC,40065200,6030.00 ,ASSET MANAGEMENT - PROPERTY SERVICES,CONSULTANTS,H670,CONSULTANTS,ASSET MANAGEMENT,WORKS (CONSTRUCTION REPAIR MAINTENANCE)
http://statistics.data.gov.uk/id/local-authority/43UM,WOKING BOROUGH COUNCIL,07/04/2015,0000380424/001,WILSON PROPERTY MAINTENANCE LIMITED,01926800,328.50 ,ASSET MANAGEMENT - PROVINCIAL HOUSE,R&M BUILDINGS - CONTRACTORS,D100,R&M BUILDINGS - CONTRACTORS,ASSET MANAGEMENT,WORKS (CONSTRUCTION REPAIR MAINTENANCE)
http://statistics.data.gov.uk/id/local-authority/43UM,WOKING BOROUGH COUNCIL,07/04/2015,0000380423/001,WILSON PROPERTY MAINTENANCE LIMITED,01926800,370.00 ,ASSET MANAGEMENT - 2 CHRISTCHURCH WAY,R&M BUILDINGS - CONTRACTORS,D100,R&M BUILDINGS - CONTRACTORS,ASSET MANAGEMENT,WORKS (CONSTRUCTION REPAIR MAINTENANCE)
http://statistics.data.gov.uk/id/local-authority/43UM,WOKING BOROUGH COUNCIL,07/04/2015,0000380552/001,WILSON PROPERTY MAINTENANCE LIMITED,01926800,810.00 ,HOUSING SERVICES - 8/9 WAYSIDE COURT,R&M BUILDINGS - CONTRACTORS,D100,R&M BUILDINGS - CONTRACTORS,HOUSING SERVICES,WORKS (CONSTRUCTION REPAIR MAINTENANCE)
http://statistics.data.gov.uk/id/local-authority/43UM,WOKING BOROUGH COUNCIL,07/04/2015,0000380783/001,WOKING ACTIVE RETIREMENT CLUB,00032800,152.50 ,CORPORATE STRATEGY - GRANTS TO ORGANISATION,GRANTS,H100,GRANTS,CORPORATE STRATEGY,FINANCIAL SERVICES
http://statistics.data.gov.uk/id/local-authority/43UM,WOKING BOROUGH COUNCIL,07/04/2015,0040000572/001,WOKING CITIZENS ADVICE BUREAU,00013200,66500.00 ,CORPORATE STRATEGY - GRANTS TO ORGANISATION,GRANTS,H100,GRANTS,CORPORATE STRATEGY,FINANCIAL SERVICES
http://statistics.data.gov.uk/id/local-authority/43UM,WOKING BOROUGH COUNCIL,07/04/2015,0000380037/001,WOKING NEWS & MAIL LIMITED,40249900,125.00 ,H G WELLS - H G WELLS - FUNCTION ROOMS,ADVERTISING,H400,ADVERTISING,H G WELLS,FACILITIES & MANAGEMENT SERVICES
http://statistics.data.gov.uk/id/local-authority/43UM,WOKING BOROUGH COUNCIL,07/04/2015,0000380808/001,WOKING NEWS & MAIL LIMITED,40249900,125.00 ,CORPORATE STRATEGY - INDPDNT S/WATER SCRUTINY PANEL,PYMNTS TO CONTRACTOR RE PANEL,Q646,PYMNTS TO CONTRACTOR RE PANEL,CORPORATE STRATEGY,FACILITIES & MANAGEMENT SERVICES
http://statistics.data.gov.uk/id/local-authority/43UM,WOKING BOROUGH COUNCIL,07/04/2015,GPC/577198104,WWW.TRUSTSIGN.CO.UK,PROCUREMENT CARD,358.00 ,INFORMATION TECHNOLOGY - ICT GENERAL REPLACEMENT 15/16,SYSTEMS SOFTWARE,Q035,SANS SSL CERT,STUART MILLAR,COMPUTER SOFTWARE STORES
http://statistics.data.gov.uk/id/local-authority/43UM,WOKING BOROUGH COUNCIL,08/04/2015,GPC/577438411,CO-OP GROUP 310410,PROCUREMENT CARD,40.00 ,INDEPENDENT LIVING SERVICES - FAMILY SUPPORT PROGRAMME,FAMILY ENABLING (FSP PROJECT),H137,GAS & ELECTRIC FOR FAMILY,REBECCA ROSSETTI,GROCERY STORES SUPERMARKETS
http://statistics.data.gov.uk/id/local-authority/43UM,WOKING BOROUGH COUNCIL,08/04/2015,GPC/577437659,HOOTSUITE MEDIA INC.,PROCUREMENT CARD,226.17 ,CORPORATE STRATEGY - PUBLIC RELATIONS,GENERAL PUBLIC RELATIONS EXPNS,H915,SOCIAL MEDIA MANAGEMENT TOOL,MISS K MAIR,BUSINESS SERVICES-NOT ELSEWHERE CLASSIFIED
http://statistics.data.gov.uk/id/local-authority/43UM,WOKING BOROUGH COUNCIL,08/04/2015,GPC/577437980,HSD ONLINE,PROCUREMENT CARD,694.77 ,ASSET MANAGEMENT - FACILITIES MANAGEMENT,FACILITIES MANAGEMENT REPAIRS,D908,CONES AND HANDDRIERS,MR D JONES,MISCELLANEOUS AND SPECIALTY RETAIL STORES
http://statistics.data.gov.uk/id/local-authority/43UM,WOKING BOROUGH COUNCIL,08/04/2015,GPC/577437979,HSD ONLINE,PROCUREMENT CARD,731.96 ,ASSET MANAGEMENT - FACILITIES MANAGEMENT,FACILITIES MANAGEMENT REPAIRS,D908,HAND DRIER CIVIC BATCH 2,MR D JONES,MISCELLANEOUS AND SPECIALTY RETAIL STORES
http://statistics.data.gov.uk/id/local-authority/43UM,WOKING BOROUGH COUNCIL,08/04/2015,GPC/577437370,INST. OF CHARTERED ACC,PROCUREMENT CARD,340.00 ,CORPORATE MANAGEMENT GROUP - CORPORATE MANAGEMENT GROUP,PROFESSIONAL FEES,A750,ICAEW SUBSCRIPTION 2015,MRS LEIGH CLARKE,MEMBERSHIP ORGANIZATIONS-NOT ELSEWHERE CLASSIFIED
http://statistics.data.gov.uk/id/local-authority/43UM,WOKING BOROUGH COUNCIL,08/04/2015,GPC/577438239,NUMATIC INTERNATIO,PROCUREMENT CARD,8.46 ,INDEPENDENT LIVING SERVICES - BROCKHILL EXTRA CARE,EQUIPMENT,G100,HOVER BAGS,PHILLY CAWSEY,ELECTRICAL PARTS AND EQUIPMENT
http://statistics.data.gov.uk/id/local-authority/43UM,WOKING BOROUGH COUNCIL,08/04/2015,GPC/577438241,SAINSBURYS S/MKTS,PROCUREMENT CARD,4.00 ,INDEPENDENT LIVING SERVICES - MEALS SERVICE - BROCKHILL,PROVISIONS,G410,MILK,MRS AV NETLEY,GROCERY STORES SUPERMARKETS
http://statistics.data.gov.uk/id/local-authority/43UM,WOKING BOROUGH COUNCIL,08/04/2015,GPC/577441500,SCREWFIX,PROCUREMENT CARD,65.34 ,HOUSING SERVICES - HOME IMPS & BEN AGENCY,HANDYPERSON MATERIALS,G201,EQUIPMENT VAN,MR A KIMBLE,BUILDING MATERIALS LUMBER STORES
http://statistics.data.gov.uk/id/local-authority/43UM,WOKING BOROUGH COUNCIL,08/04/2015,GPC/577438016,SQUIRES GARDEN CEN,PROCUREMENT CARD,96.32 ,INDEPENDENT LIVING SERVICES - FAMILY SUPPORT PROGRAMME,FAMILY ENABLING (FSP PROJECT),H137,FENCING FOR FAMILY,JULIE COOK,LAWN AND GARDEN SUPPLY STORES NURSERIES
http://statistics.data.gov.uk/id/local-authority/43UM,WOKING BOROUGH COUNCIL,08/04/2015,GPC/577441499,TESCO PFS 3381,PROCUREMENT CARD,15.68 ,HOUSING SERVICES - HOME IMPS & BEN AGENCY,HANDYPERSON MATERIALS,G201,VAN FUEL,MR A KIMBLE,SERVICE STATIONS (WITH OR WITHOUT ANCILLARY SERVIC
http://statistics.data.gov.uk/id/local-authority/43UM,WOKING BOROUGH COUNCIL,08/04/2015,GPC/577438538,WESTMINSTER FORUM,PROCUREMENT CARD,209.99 ,CORPORATE STRATEGY - CORPORATE STRATEGY GENERAL EXP,CONFERENCE EXPENSES,A790,KEYNOTE SEMINAR: SMART CITIES,SAM MARSHALL,MANAGEMENT CONSULTING AND PUBLIC RELATIONS SERVIC
http://statistics.data.gov.uk/id/local-authority/43UM,WOKING BOROUGH COUNCIL,08/04/2015,GPC/577441428,WWW.GENERALPMM.COM,PROCUREMENT CARD,1289.82 ,CORPORATE MANAGEMENT GROUP - STAFF TRAINING/GENERAL COSTS,LONG SERVICE AWARDS,A760,LONG SERVICE STAFF AWARD GIFTS,EMERA CHOWN,BUSINESS SERVICES-NOT ELSEWHERE CLASSIFIED
http://statistics.data.gov.uk/id/local-authority/43UM,WOKING BOROUGH COUNCIL,08/04/2015,GPC/577437278,WWW.TRUSTSIGN.CO.UK,PROCUREMENT CARD,177.00 ,INFORMATION TECHNOLOGY - I.T.S. ICT,PC & SERVER SYSTEMS SOFTWARE,G193,SELFSERVICE.WOKING.GOV CERTIFICATE,ANDREW GRESHAM,COMPUTER SOFTWARE STORES
http://statistics.data.gov.uk/id/local-authority/43UM,WOKING BOROUGH COUNCIL,09/04/2015,GPC/577716320,AMAZON SVCS EUROPE SAR,PROCUREMENT CARD,40.42 ,INFORMATION TECHNOLOGY - ICT GENERAL REPLACEMENT 15/16,ADDITIONAL EQUIPMENT,Q020,OPTICAL DRIVE & 2 X LAPTOP CASES,MR V BARNARD,BOOK STORES
http://statistics.data.gov.uk/id/local-authority/43UM,WOKING BOROUGH COUNCIL,09/04/2015,GPC/577715910,AMAZON UK MARKETPLACE,PROCUREMENT CARD,37.80 ,ASSET MANAGEMENT - ASSET MANAGEMENT GENERAL EXPEN,BOOKS MAPS PLANS,G650,BOOK ON BROOKWOOD CEMETERY,IAN M TOMES,MISCELLANEOUS AND SPECIALTY RETAIL STORES
http://statistics.data.gov.uk/id/local-authority/43UM,WOKING BOROUGH COUNCIL,09/04/2015,GPC/577437658,FOREIGN EXCHANGE FEE,PROCUREMENT CARD,7.46 ,CORPORATE STRATEGY - PUBLIC RELATIONS,GENERAL PUBLIC RELATIONS EXPNS,H915,HOOTSUITE,MISS K MAIR,MISC-UNKNOWN
http://statistics.data.gov.uk/id/local-authority/43UM,WOKING BOROUGH COUNCIL,09/04/2015,GPC/578012274,MALTHURST GOLDSWORTH PARK,PROCUREMENT CARD,54.22 ,ASSET MANAGEMENT - FACILITIES MANAGEMENT,FACILITIES MANAGEMENT REPAIRS,D908,FUEL FOR WBC LORRY RK03DVB,MR D JONES,SERVICE STATIONS (WITH OR WITHOUT ANCILLARY SERVIC
http://statistics.data.gov.uk/id/local-authority/43UM,WOKING BOROUGH COUNCIL,09/04/2015,GPC/577714489,PAYPAL  MIDLANDSYST,PROCUREMENT CARD,19.97 ,NEIGHBOURHOOD SERVICES - PRIVATE CAR HIRE LICENCE,EQUIPMENT,G100,TRAFFIC WANDS,BARRY LYNCH,RADIO TELEVISION AND STEREO STORES (ELECTRONIC STORES)
http://statistics.data.gov.uk/id/local-authority/43UM,WOKING BOROUGH COUNCIL,09/04/2015,GPC/577714489,PAYPAL  MIDLANDSYST,PROCUREMENT CARD,10.00 ,NEIGHBOURHOOD SERVICES - TAXI LICENCES,EQUIPMENT,G100,TRAFFIC WANDS,BARRY LYNCH,RADIO TELEVISION AND STEREO STORES (ELECTRONIC STORES)
http://statistics.data.gov.uk/id/local-authority/43UM,WOKING BOROUGH COUNCIL,09/04/2015,GPC/577714443,PHONEANDPAY.CO.UK,PROCUREMENT CARD,6.12 ,HOUSING SERVICES - HOUSING SERVICES GENERAL EXPEN,TRAVEL EXPENSES-OFFICERS,F600,PARKING,CATHERINE BUTLER,AUTOMOBILE PARKING LOTS AND GARAGES
http://statistics.data.gov.uk/id/local-authority/43UM,WOKING BOROUGH COUNCIL,09/04/2015,GPC/577718394,PRET A MANGER,PROCUREMENT CARD,12.03 ,CORPORATE MANAGEMENT GROUP - CORPORATE MANAGEMENT GROUP,SUBSISTENCE,A902,WORKING LUNCH - CHIEF EXEC & LEADER,EMERA CHOWN,EATING PLACES RESTAURANTS
http://statistics.data.gov.uk/id/local-authority/43UM,WOKING BOROUGH COUNCIL,09/04/2015,GPC/577718393,SAINSBURYS S/MKTS,PROCUREMENT CARD,3.00 ,CORPORATE MANAGEMENT GROUP - CORPORATE MANAGEMENT GROUP,SUBSISTENCE,A902,WORKING LUNCH - CHIEF EXEC & LEADER,EMERA CHOWN,GROCERY STORES SUPERMARKETS
http://statistics.data.gov.uk/id/local-authority/43UM,WOKING BOROUGH COUNCIL,09/04/2015,GPC/577714490,WWW.DOUBLEIMAGE.CO.UK,PROCUREMENT CARD,194.63 ,NEIGHBOURHOOD SERVICES - PRIVATE CAR HIRE LICENCE,EQUIPMENT,G100,A BOARDS & TRAFFIC CONES,BARRY LYNCH,MISCELLANEOUS PUBLISHING AND  PRINTING
http://statistics.data.gov.uk/id/local-authority/43UM,WOKING BOROUGH COUNCIL,09/04/2015,GPC/577714490,WWW.DOUBLEIMAGE.CO.UK,PROCUREMENT CARD,97.32 ,NEIGHBOURHOOD SERVICES - TAXI LICENCES,EQUIPMENT,G100,A BOARDS & TRAFFIC CONES,BARRY LYNCH,MISCELLANEOUS PUBLISHING AND  PRINTING
http://statistics.data.gov.uk/id/local-authority/43UM,WOKING BOROUGH COUNCIL,09/04/2015,GPC/578011439,WWW.MAYFAIRSTATIONERS.,PROCUREMENT CARD,27.65 ,REVENUES AND BENEFITS - C'L TAX BENEFIT ADMIN,BOOKS MAPS PLANS,G650,ATTENDANCE REGISTER,MR D RIPLEY,STATIONERY OFFICE AND SCHOOL SUPPLY STORES
http://statistics.data.gov.uk/id/local-authority/43UM,WOKING BOROUGH COUNCIL,10/04/2015,0000380931/001,ALLSTAR BUSINESS SOLUTIONS LTD,01500600,39.68 ,INDEPENDENT LIVING SERVICES - MEALS ON WHEELS,PETROL,F200,PETROL,INDEPENDENT LIVING SERVICES,UTILITIES
http://statistics.data.gov.uk/id/local-authority/43UM,WOKING BOROUGH COUNCIL,10/04/2015,0000380933/001,BARCLAYS CAPITAL,00132800,99020.55 ,FINANCIAL SERVICES - INTEREST PAYABLE & SIMILAR CHG,L.O.B.O. LOAN,U113,L.O.B.O. LOAN,FINANCIAL SERVICES,FINANCIAL SERVICES
http://statistics.data.gov.uk/id/local-authority/43UM,WOKING BOROUGH COUNCIL,10/04/2015,GPC/578011402,CHOICES,PROCUREMENT CARD,500.00 ,HOUSING SERVICES - HOUSING OPTIONS,BED & BREAKFAST EXPENDITURE,H786,ESTATE AGENT,CATHERINE BUTLER,MISCELLANEOUS PERSONAL SERVICES-NOT ELSEWHERE CLAS
http://statistics.data.gov.uk/id/local-authority/43UM,WOKING BOROUGH COUNCIL,10/04/2015,GPC/578463458,CIEH,PROCUREMENT CARD,99.00 ,CORPORATE MANAGEMENT GROUP - STAFF TRAINING/GENERAL COSTS,TRAINING - CORPORATE,A910,CONFERENCE  FEE,BARRY LYNCH,MEMBERSHIP ORGANIZATIONS-NOT ELSEWHERE CLASSIFIED
http://statistics.data.gov.uk/id/local-authority/43UM,WOKING BOROUGH COUNCIL,10/04/2015,GPC/578012900,COMPANIES HOUSE,PROCUREMENT CARD,1.00 ,CORPORATE STRATEGY - CORPORATE MANAGEMENT,LEGAL FEES,H677,LEGAL COMPANY SEARCH,JOANNE MCINTOSH,GOVERNMENT SERVICES-NOT ELSEWHERE CLASSIFIED
http://statistics.data.gov.uk/id/local-authority/43UM,WOKING BOROUGH COUNCIL,10/04/2015,0000380935/001,DANSKE BANK,01657400,119075.34 ,FINANCIAL SERVICES - INTEREST PAYABLE & SIMILAR CHG,L.O.B.O. LOAN,U113,L.O.B.O. LOAN,FINANCIAL SERVICES,FINANCIAL SERVICES
http://statistics.data.gov.uk/id/local-authority/43UM,WOKING BOROUGH COUNCIL,10/04/2015,0000380934/001,DEXIA PUBLIC FINANCE BANK,01657300,119075.34 ,FINANCIAL SERVICES - INTEREST PAYABLE & SIMILAR CHG,L.O.B.O. LOAN,U113,L.O.B.O. LOAN,FINANCIAL SERVICES,FINANCIAL SERVICES
http://statistics.data.gov.uk/id/local-authority/43UM,WOKING BOROUGH COUNCIL,10/04/2015,GPC/578012257,HOEBRIDGE GOLF,PROCUREMENT CARD,100.00 ,HOUSING SERVICES - HOUSING NEEDS SURVEY,MAIN CONTRACTOR,Q200,LANDLORD BUSINESS CLUB,MISS S ASHRAF,GOLF COURSES-PUBLIC
http://statistics.data.gov.uk/id/local-authority/43UM,WOKING BOROUGH COUNCIL,10/04/2015,GPC/578012601,HOMEBASE LTD 084,PROCUREMENT CARD,79.16 ,INDEPENDENT LIVING SERVICES - MEALS ON WHEELS,CLEANING MATERIALS,D920,PRESSURE WASHER FOR VAN CLEANING,MRS AV NETLEY,BUILDING MATERIALS LUMBER STORES
http://statistics.data.gov.uk/id/local-authority/43UM,WOKING BOROUGH COUNCIL,10/04/2015,0000380937/001,LDC LIMITED,00356600,24756.45 ,CORPORATE STRATEGY - DCLG MBG PEACE GARDEN PROJECT,OTHER CONSULTANTS,Q430,OTHER CONSULTANTS,CORPORATE STRATEGY,WORKS (CONSTRUCTION REPAIR MAINTENANCE)
http://statistics.data.gov.uk/id/local-authority/43UM,WOKING BOROUGH COUNCIL,10/04/2015,0000380929/001,POST OFFICE GIROBANK,01919000,3.50 ,REVENUES AND BENEFITS - COUNCIL TAX,BANK CHARGES COMPENSATION,H624,BANK CHARGES COMPENSATION,REVENUES AND BENEFITS,FINANCIAL SERVICES
http://statistics.data.gov.uk/id/local-authority/43UM,WOKING BOROUGH COUNCIL,10/04/2015,0000380928/001,POST OFFICE GIROBANK,01225300,501.06 ,HOUSING SERVICES - RENT COLLECTION,GIROBANK CHARGES,H627,GIROBANK CHARGES,HOUSING SERVICES,FINANCIAL SERVICES
http://statistics.data.gov.uk/id/local-authority/43UM,WOKING BOROUGH COUNCIL,10/04/2015,0000380922/001,PUBLIC WORKS LOAN BOARD,00021400,20945.30 ,FINANCIAL SERVICES - INTEREST PAYABLE & SIMILAR CHG,PWLB MATURITY LOAN,U112,PWLB MATURITY LOAN,FINANCIAL SERVICES,FINANCIAL SERVICES
http://statistics.data.gov.uk/id/local-authority/43UM,WOKING BOROUGH COUNCIL,10/04/2015,0000380923/001,PUBLIC WORKS LOAN BOARD,00021400,118750.00 ,FINANCIAL SERVICES - INTEREST PAYABLE & SIMILAR CHG,PWLB MATURITY LOAN,U112,PWLB MATURITY LOAN,FINANCIAL SERVICES,FINANCIAL SERVICES
http://statistics.data.gov.uk/id/local-authority/43UM,WOKING BOROUGH COUNCIL,10/04/2015,0000380924/001,PUBLIC WORKS LOAN BOARD,00021400,118750.00 ,FINANCIAL SERVICES - INTEREST PAYABLE & SIMILAR CHG,PWLB MATURITY LOAN,U112,PWLB MATURITY LOAN,FINANCIAL SERVICES,FINANCIAL SERVICES
http://statistics.data.gov.uk/id/local-authority/43UM,WOKING BOROUGH COUNCIL,10/04/2015,0000380925/001,PUBLIC WORKS LOAN BOARD,00021400,106500.00 ,FINANCIAL SERVICES - INTEREST PAYABLE & SIMILAR CHG,PWLB MATURITY LOAN,U112,PWLB MATURITY LOAN,FINANCIAL SERVICES,FINANCIAL SERVICES
http://statistics.data.gov.uk/id/local-authority/43UM,WOKING BOROUGH COUNCIL,10/04/2015,0000380926/001,RSP RAIL TRAVEL ACCOUNT,01121300,38.90 ,HOUSING SERVICES - HOUSING OPTIONS,REMOVAL EXPENSES,H775,REMOVAL EXPENSES,HOUSING SERVICES,PUBLIC TRANSPORT
http://statistics.data.gov.uk/id/local-authority/43UM,WOKING BOROUGH COUNCIL,10/04/2015,0000380930/001,SKY BUSINESS,01119800,310.00 ,ASSET MANAGEMENT - CIVIC OFFICES,VIDEO EQUIPMENT - MAINTENANCE,G163,VIDEO EQUIPMENT - MAINTENANCE,ASSET MANAGEMENT,INFORMATION COMMUNICATION TECHNOLOGY
http://statistics.data.gov.uk/id/local-authority/43UM,WOKING BOROUGH COUNCIL,10/04/2015,0000380936/001,THAMESWEY HOUSING LIMITED,01704800,1000000.00 ,FINANCIAL SERVICES - TW HOUSING APRIL 15,LONG TERM LOAN,S864,LONG TERM LOAN,FINANCIAL SERVICES,FINANCIAL SERVICES
http://statistics.data.gov.uk/id/local-authority/43UM,WOKING BOROUGH COUNCIL,10/04/2015,GPC/578011488,TRAINLINE.COM,PROCUREMENT CARD,35.39 ,NEIGHBOURHOOD SERVICES - REGULATION AND ENFORCEMENT,TRAVEL EXPENSES-OFFICERS,F600,K WATERS CONFERENCE TRAIN FARES,G D MCMANUS,PASSENGER RAILWAYS
http://statistics.data.gov.uk/id/local-authority/43UM,WOKING BOROUGH COUNCIL,10/04/2015,GPC/578011403,TRAVELODGE WEBSITE,PROCUREMENT CARD,1111.20 ,HOUSING SERVICES - HOUSING OPTIONS,BED & BREAKFAST EXPENDITURE,H786,B&B,CATHERINE BUTLER,TRAVELODGE
http://statistics.data.gov.uk/id/local-authority/43UM,WOKING BOROUGH COUNCIL,10/04/2015,GPC/578013016,W M MORRISON,PROCUREMENT CARD,41.67 ,NEIGHBOURHOOD SERVICES - CENTRAL NEIGHBOURHOOD TEAM,PETROL,F200,FUEL,TOM ONIONS,SERVICE STATIONS (WITH OR WITHOUT ANCILLARY SERVIC
http://statistics.data.gov.uk/id/local-authority/43UM,WOKING BOROUGH COUNCIL,10/04/2015,0000380932/003,WOKINGHAM BOROUGH COUNCIL,01265500,22027.40 ,FINANCIAL SERVICES - INTEREST PAYABLE & SIMILAR CHG,TEMP LOANS,U115,TEMP LOANS,FINANCIAL SERVICES,FINANCIAL SERVICES
http://statistics.data.gov.uk/id/local-authority/43UM,WOKING BOROUGH COUNCIL,10/04/2015,GPC/578011487,WWW.MAPLIN.CO.UK,PROCUREMENT CARD,16.66 ,NEIGHBOURHOOD SERVICES - PRIVATE CAR HIRE LICENCE,EQUIPMENT,G100,BATTERIES & BATTERY CHARGER,BARRY LYNCH,RADIO TELEVISION AND STEREO STORES (ELECTRONIC STORES)
http://statistics.data.gov.uk/id/local-authority/43UM,WOKING BOROUGH COUNCIL,10/04/2015,GPC/578011487,WWW.MAPLIN.CO.UK,PROCUREMENT CARD,8.33 ,NEIGHBOURHOOD SERVICES - TAXI LICENCES,EQUIPMENT,G100,BATTERIES & BATTERY CHARGER,BARRY LYNCH,RADIO TELEVISION AND STEREO STORES (ELECTRONIC STORES)
http://statistics.data.gov.uk/id/local-authority/43UM,WOKING BOROUGH COUNCIL,11/04/2015,GPC/578012598,ASDA STORES LTD 4266,PROCUREMENT CARD,6.67 ,INDEPENDENT LIVING SERVICES - BROCKHILL EXTRA CARE,EQUIPMENT,G100,EQUIPMENT(GARDEN MAINTENANCE),PHILLY CAWSEY,GROCERY STORES SUPERMARKETS
http://statistics.data.gov.uk/id/local-authority/43UM,WOKING BOROUGH COUNCIL,11/04/2015,GPC/578012599,HOMEBASE LTD 050,PROCUREMENT CARD,18.98 ,INDEPENDENT LIVING SERVICES - BROCKHILL EXTRA CARE,EQUIPMENT,G100,EQUIPMENT(GARDEN MAINTENANCE),PHILLY CAWSEY,BUILDING MATERIALS LUMBER STORES
http://statistics.data.gov.uk/id/local-authority/43UM,WOKING BOROUGH COUNCIL,11/04/2015,GPC/578011460,REGISTER.COM 12BCCC29J,PROCUREMENT CARD,244.77 ,INFORMATION TECHNOLOGY - I.T.S. ICT,PC & SERVER SYSTEMS SOFTWARE,G193,DOMAIN NAMES,ADELE DEVON,CONTINUITY/SUBSCRIPTION MERCHANTS
http://statistics.data.gov.uk/id/local-authority/43UM,WOKING BOROUGH COUNCIL,12/04/2015,GPC/578011486,FGW WEBSALES,PROCUREMENT CARD,18.60 ,CORPORATE MANAGEMENT GROUP - CORPORATE MANAGEMENT GROUP,TRAVEL EXPENSES,A901,SELF-SERVE TRAIN TRAVEL,MISS S M BARHAM,PASSENGER RAILWAYS
http://statistics.data.gov.uk/id/local-authority/43UM,WOKING BOROUGH COUNCIL,12/04/2015,GPC/578011528,SELFSERVE TICKET,PROCUREMENT CARD,75.00 ,REVENUES AND BENEFITS - COUNCIL TAX,TRAVEL EXPENSES-OFFICERS,F600,IRRV REVISION COURSE STOKE,MR T STOCKS,PASSENGER RAILWAYS
http://statistics.data.gov.uk/id/local-authority/43UM,WOKING BOROUGH COUNCIL,13/04/2015,GPC/578463415,BILLS WOKING,PROCUREMENT CARD,81.81 ,CORPORATE STRATEGY - CORPORATE STRATEGY GENERAL EXP,OFFICIAL HOSPITALITY,H310,BUSINESS LUNCH - GROSVENOR,RAY MORGAN,EATING PLACES RESTAURANTS
http://statistics.data.gov.uk/id/local-authority/43UM,WOKING BOROUGH COUNCIL,13/04/2015,GPC/578011459,FOREIGN EXCHANGE FEE,PROCUREMENT CARD,6.73 ,INFORMATION TECHNOLOGY - I.T.S. ICT,PC & SERVER SYSTEMS SOFTWARE,G193,DOMAIN NAMES,ADELE DEVON,MISC-UNKNOWN
http://statistics.data.gov.uk/id/local-authority/43UM,WOKING BOROUGH COUNCIL,13/04/2015,GPC/578463552,FRESCH COFFEE LTD,PROCUREMENT CARD,36.00 ,H G WELLS - H G WELLS - CATERING,PROVISIONS-FOOD,G440,READY MADE SANDWICHES,MR P HOCKLEY,EATING PLACES RESTAURANTS
http://statistics.data.gov.uk/id/local-authority/43UM,WOKING BOROUGH COUNCIL,13/04/2015,GPC/578464050,LONGACRES NURSERY,PROCUREMENT CARD,132.46 ,ASSET MANAGEMENT - FACILITIES MANAGEMENT,FACILITIES MANAGEMENT REPAIRS,D908,PLANTS FOR NEW MEETING ROOMS,MR D JONES,LAWN AND GARDEN SUPPLY STORES NURSERIES
http://statistics.data.gov.uk/id/local-authority/43UM,WOKING BOROUGH COUNCIL,13/04/2015,GPC/578463459,TICKETOFFICESALE,PROCUREMENT CARD,57.60 ,NEIGHBOURHOOD SERVICES - REGULATION AND ENFORCEMENT,TRAVEL EXPENSES-OFFICERS,F600,MT/AH AWARDS CEREMONY TRAIN FARES,G D MCMANUS,PASSENGER RAILWAYS
http://statistics.data.gov.uk/id/local-authority/43UM,WOKING BOROUGH COUNCIL,13/04/2015,GPC/578463414,TICKETOFFICESALE,PROCUREMENT CARD,11.40 ,CORPORATE MANAGEMENT GROUP - CORPORATE MANAGEMENT GROUP,TRAVEL EXPENSES,A901,TRAIN - ELECTORAL PETITION TRIAL,RAY MORGAN,PASSENGER RAILWAYS
http://statistics.data.gov.uk/id/local-authority/43UM,WOKING BOROUGH COUNCIL,13/04/2015,GPC/578464036,VIRGINTRAINSEC SERVCS,PROCUREMENT CARD,3.60 ,HOUSING SERVICES - HOME IMPS & BEN AGENCY,TRAVEL EXPENSES-OFFICERS,F600,TRAVEL FOR MEETING,MISS S ASHRAF,PASSENGER RAILWAYS
http://statistics.data.gov.uk/id/local-authority/43UM,WOKING BOROUGH COUNCIL,13/04/2015,GPC/578463450,WWW.WESTMINSTER-BRIEFI,PROCUREMENT CARD,225.00 ,CORPORATE MANAGEMENT GROUP - STAFF TRAINING/GENERAL COSTS,TRAINING - CORPORATE,A910,ASB CONFERENCE LORRAINE HUDSON,CAMILLA J EDMISTON,BUSINESS AND SECRETARIAL SCHOOLS
http://statistics.data.gov.uk/id/local-authority/43UM,WOKING BOROUGH COUNCIL,14/04/2015,GPC/578728401,ACT TRINITY EVENT SOLU,PROCUREMENT CARD,125.00 ,CORPORATE STRATEGY - CORPORATE STRATEGY GENERAL EXP,SUBSISTENCE-OFFICERS,H200,SOPO EVENT,MR TIMOTHY S LOWE,BUSINESS SERVICES-NOT ELSEWHERE CLASSIFIED
http://statistics.data.gov.uk/id/local-authority/43UM,WOKING BOROUGH COUNCIL,14/04/2015,GPC/578728662,ASDA STORES 4823,PROCUREMENT CARD,12.45 ,NEIGHBOURHOOD SERVICES - SHEERWATER COMMUNITY PROJECTS,EQUIPMENT,G100,ART MATERIALS,ROBERT MORGAN,GROCERY STORES SUPERMARKETS
http://statistics.data.gov.uk/id/local-authority/43UM,WOKING BOROUGH COUNCIL,14/04/2015,GPC/578730533,C&E ELECTRICAL WHO,PROCUREMENT CARD,11.50 ,HOUSING SERVICES - HOME IMPS & BEN AGENCY,HANDYPERSON MATERIALS,G201,BATTERIES,MR A KIMBLE,ELECTRICAL AND SMALL APPLIANCE REPAIR SHOPS
http://statistics.data.gov.uk/id/local-authority/43UM,WOKING BOROUGH COUNCIL,14/04/2015,GPC/578728630,CONTRACT SIGN SERV,PROCUREMENT CARD,108.01 ,CORPORATE STRATEGY - PUBLIC RELATIONS,GENERAL PUBLIC RELATIONS EXPNS,H915,CEREMONIAL CURTAINS,MR AC DENNER,COMMERCIAL PHOTOGRAPHY ART GRAPHICS
http://statistics.data.gov.uk/id/local-authority/43UM,WOKING BOROUGH COUNCIL,14/04/2015,GPC/579043436,LONGACRES GARDEN CENTR,PROCUREMENT CARD,32.07 ,ASSET MANAGEMENT - FACILITIES MANAGEMENT,FACILITIES MANAGEMENT REPAIRS,D908,POTS FOR COMMITTEE RMS,MR D JONES,LAWN AND GARDEN SUPPLY STORES NURSERIES
http://statistics.data.gov.uk/id/local-authority/43UM,WOKING BOROUGH COUNCIL,14/04/2015,GPC/578728287,PHONEANDPAY.CO.UK,PROCUREMENT CARD,3.27 ,CORPORATE MANAGEMENT GROUP - CORPORATE MANAGEMENT GROUP,TRAVEL EXPENSES,A901,CAR PARKING - SWP JWCSC,MISS S M BARHAM,AUTOMOBILE PARKING LOTS AND GARAGES
http://statistics.data.gov.uk/id/local-authority/43UM,WOKING BOROUGH COUNCIL,14/04/2015,GPC/578730108,RIBA ENTERPRISES LTD,PROCUREMENT CARD,30.00 ,ASSET MANAGEMENT - ASSET MANAGEMENT GENERAL EXPEN,BOOKS MAPS PLANS,G650,NEC3 2013 ENGINEERING SHORT CONTRACT,IAN M TOMES,BOOK STORES
http://statistics.data.gov.uk/id/local-authority/43UM,WOKING BOROUGH COUNCIL,14/04/2015,GPC/578728329,SELFSERVE TICKET,PROCUREMENT CARD,28.80 ,REVENUES AND BENEFITS - COUNCIL TAX,TRAVEL EXPENSES-OFFICERS,F600,CIPFA SEMINAR LONDON,MR T STOCKS,PASSENGER RAILWAYS
http://statistics.data.gov.uk/id/local-authority/43UM,WOKING BOROUGH COUNCIL,14/04/2015,GPC/579046874,WOKING COUNCIL PARKING,PROCUREMENT CARD,5.00 ,HOUSING SERVICES - HOME IMPS & BEN AGENCY,HANDYPERSON MATERIALS,G201,VIC WAY,MR A KIMBLE,AUTOMOBILE PARKING LOTS AND GARAGES
http://statistics.data.gov.uk/id/local-authority/43UM,WOKING BOROUGH COUNCIL,15/04/2015,0000380429/001,3663,01190400,63.17 ,H G WELLS - H G WELLS - BAR,PROVISIONS-BAR,G450,PROVISIONS-BAR,H G WELLS,CATERING
http://statistics.data.gov.uk/id/local-authority/43UM,WOKING BOROUGH COUNCIL,15/04/2015,0000380022/001,3663,01190400,46.45 ,H G WELLS - H G WELLS - CATERING,EQUIPMENT,G100,EQUIPMENT,H G WELLS,CATERING
http://statistics.data.gov.uk/id/local-authority/43UM,WOKING BOROUGH COUNCIL,15/04/2015,0000380022/002,3663,01190400,46.68 ,H G WELLS - H G WELLS - CATERING,PROVISIONS-FOOD,G440,PROVISIONS-FOOD,H G WELLS,CATERING
http://statistics.data.gov.uk/id/local-authority/43UM,WOKING BOROUGH COUNCIL,15/04/2015,0000380299/001,3663,01190400,34.95 ,H G WELLS - H G WELLS - CATERING,PROVISIONS-FOOD,G440,PROVISIONS-FOOD,H G WELLS,CATERING
http://statistics.data.gov.uk/id/local-authority/43UM,WOKING BOROUGH COUNCIL,15/04/2015,0000380299/002,3663,01190400,330.75 ,H G WELLS - H G WELLS - CATERING,PROVISIONS-FOOD,G440,PROVISIONS-FOOD,H G WELLS,CATERING
http://statistics.data.gov.uk/id/local-authority/43UM,WOKING BOROUGH COUNCIL,15/04/2015,0000380879/001,ALPHABET (GB) LIMITED,00015200,100.00 ,CORPORATE MANAGEMENT GROUP - LEASED CAR DEDUCTIONS,RECOVERABLE COSTS,T162,RECOVERABLE COSTS,CORPORATE MANAGEMENT GROUP,VEHICLE MANAGEMENT
http://statistics.data.gov.uk/id/local-authority/43UM,WOKING BOROUGH COUNCIL,15/04/2015,0000380971/002,ALPHABET (GB) LIMITED,00015200,-62.13 ,CORPORATE MANAGEMENT GROUP - LEASED CAR DEDUCTIONS,RECOVERABLE COSTS,T162,RECOVERABLE COSTS,CORPORATE MANAGEMENT GROUP,VEHICLE MANAGEMENT
http://statistics.data.gov.uk/id/local-authority/43UM,WOKING BOROUGH COUNCIL,15/04/2015,0000380971/003,ALPHABET (GB) LIMITED,00015200,-6.21 ,CORPORATE MANAGEMENT GROUP - LEASED CAR DEDUCTIONS,RECOVERABLE COSTS,T162,RECOVERABLE COSTS,CORPORATE MANAGEMENT GROUP,VEHICLE MANAGEMENT
http://statistics.data.gov.uk/id/local-authority/43UM,WOKING BOROUGH COUNCIL,15/04/2015,0000380972/002,ALPHABET (GB) LIMITED,00015200,-193.65 ,CORPORATE MANAGEMENT GROUP - LEASED CAR DEDUCTIONS,RECOVERABLE COSTS,T162,RECOVERABLE COSTS,CORPORATE MANAGEMENT GROUP,VEHICLE MANAGEMENT
http://statistics.data.gov.uk/id/local-authority/43UM,WOKING BOROUGH COUNCIL,15/04/2015,0000380972/003,ALPHABET (GB) LIMITED,00015200,-19.36 ,CORPORATE MANAGEMENT GROUP - LEASED CAR DEDUCTIONS,RECOVERABLE COSTS,T162,RECOVERABLE COSTS,CORPORATE MANAGEMENT GROUP,VEHICLE MANAGEMENT
http://statistics.data.gov.uk/id/local-authority/43UM,WOKING BOROUGH COUNCIL,15/04/2015,0000380973/002,ALPHABET (GB) LIMITED,00015200,-66.45 ,CORPORATE MANAGEMENT GROUP - LEASED CAR DEDUCTIONS,RECOVERABLE COSTS,T162,RECOVERABLE COSTS,CORPORATE MANAGEMENT GROUP,VEHICLE MANAGEMENT
http://statistics.data.gov.uk/id/local-authority/43UM,WOKING BOROUGH COUNCIL,15/04/2015,0000380973/003,ALPHABET (GB) LIMITED,00015200,-6.64 ,CORPORATE MANAGEMENT GROUP - LEASED CAR DEDUCTIONS,RECOVERABLE COSTS,T162,RECOVERABLE COSTS,CORPORATE MANAGEMENT GROUP,VEHICLE MANAGEMENT
http://statistics.data.gov.uk/id/local-authority/43UM,WOKING BOROUGH COUNCIL,15/04/2015,0000380975/002,ALPHABET (GB) LIMITED,00015200,-429.85 ,CORPORATE MANAGEMENT GROUP - LEASED CAR DEDUCTIONS,RECOVERABLE COSTS,T162,RECOVERABLE COSTS,CORPORATE MANAGEMENT GROUP,VEHICLE MANAGEMENT
http://statistics.data.gov.uk/id/local-authority/43UM,WOKING BOROUGH COUNCIL,15/04/2015,0000380975/003,ALPHABET (GB) LIMITED,00015200,-42.98 ,CORPORATE MANAGEMENT GROUP - LEASED CAR DEDUCTIONS,RECOVERABLE COSTS,T162,RECOVERABLE COSTS,CORPORATE MANAGEMENT GROUP,VEHICLE MANAGEMENT
http://statistics.data.gov.uk/id/local-authority/43UM,WOKING BOROUGH COUNCIL,15/04/2015,0000380968/006,ALPHABET (GB) LIMITED,00015200,303.49 ,CORPORATE MANAGEMENT GROUP - LEASED CAR PAYMENTS,RECH 3RD PARTIES,S185,RECH 3RD PARTIES,CORPORATE MANAGEMENT GROUP,VEHICLE MANAGEMENT
http://statistics.data.gov.uk/id/local-authority/43UM,WOKING BOROUGH COUNCIL,15/04/2015,0000380878/001,ALPHABET (GB) LIMITED,00015200,3657.61 ,CORPORATE MANAGEMENT GROUP - LEASED CAR PAYMENTS,PAYMENT TO LESSORS,T170,PAYMENT TO LESSORS,CORPORATE MANAGEMENT GROUP,VEHICLE MANAGEMENT
http://statistics.data.gov.uk/id/local-authority/43UM,WOKING BOROUGH COUNCIL,15/04/2015,0000380878/003,ALPHABET (GB) LIMITED,00015200,24.00 ,CORPORATE MANAGEMENT GROUP - LEASED CAR PAYMENTS,PAYMENT TO LESSORS,T170,PAYMENT TO LESSORS,CORPORATE MANAGEMENT GROUP,VEHICLE MANAGEMENT
http://statistics.data.gov.uk/id/local-authority/43UM,WOKING BOROUGH COUNCIL,15/04/2015,0000380967/001,ALPHABET (GB) LIMITED,00015200,3634.64 ,CORPORATE MANAGEMENT GROUP - LEASED CAR PAYMENTS,PAYMENT TO LESSORS,T170,PAYMENT TO LESSORS,CORPORATE MANAGEMENT GROUP,VEHICLE MANAGEMENT
http://statistics.data.gov.uk/id/local-authority/43UM,WOKING BOROUGH COUNCIL,15/04/2015,0000380967/003,ALPHABET (GB) LIMITED,00015200,24.00 ,CORPORATE MANAGEMENT GROUP - LEASED CAR PAYMENTS,PAYMENT TO LESSORS,T170,PAYMENT TO LESSORS,CORPORATE MANAGEMENT GROUP,VEHICLE MANAGEMENT
http://statistics.data.gov.uk/id/local-authority/43UM,WOKING BOROUGH COUNCIL,15/04/2015,0000380967/005,ALPHABET (GB) LIMITED,00015200,327.67 ,CORPORATE MANAGEMENT GROUP - LEASED CAR PAYMENTS,PAYMENT TO LESSORS,T170,PAYMENT TO LESSORS,CORPORATE MANAGEMENT GROUP,VEHICLE MANAGEMENT
http://statistics.data.gov.uk/id/local-authority/43UM,WOKING BOROUGH COUNCIL,15/04/2015,0000380968/001,ALPHABET (GB) LIMITED,00015200,2669.95 ,CORPORATE MANAGEMENT GROUP - LEASED CAR PAYMENTS,PAYMENT TO LESSORS,T170,PAYMENT TO LESSORS,CORPORATE MANAGEMENT GROUP,VEHICLE MANAGEMENT
http://statistics.data.gov.uk/id/local-authority/43UM,WOKING BOROUGH COUNCIL,15/04/2015,0000380968/003,ALPHABET (GB) LIMITED,00015200,22.00 ,CORPORATE MANAGEMENT GROUP - LEASED CAR PAYMENTS,PAYMENT TO LESSORS,T170,PAYMENT TO LESSORS,CORPORATE MANAGEMENT GROUP,VEHICLE MANAGEMENT
http://statistics.data.gov.uk/id/local-authority/43UM,WOKING BOROUGH COUNCIL,15/04/2015,0000380968/005,ALPHABET (GB) LIMITED,00015200,241.95 ,CORPORATE MANAGEMENT GROUP - LEASED CAR PAYMENTS,PAYMENT TO LESSORS,T170,PAYMENT TO LESSORS,CORPORATE MANAGEMENT GROUP,VEHICLE MANAGEMENT
http://statistics.data.gov.uk/id/local-authority/43UM,WOKING BOROUGH COUNCIL,15/04/2015,0000380969/001,ALPHABET (GB) LIMITED,00015200,1710.70 ,CORPORATE MANAGEMENT GROUP - LEASED CAR PAYMENTS,PAYMENT TO LESSORS,T170,PAYMENT TO LESSORS,CORPORATE MANAGEMENT GROUP,VEHICLE MANAGEMENT
http://statistics.data.gov.uk/id/local-authority/43UM,WOKING BOROUGH COUNCIL,15/04/2015,0000380969/003,ALPHABET (GB) LIMITED,00015200,24.00 ,CORPORATE MANAGEMENT GROUP - LEASED CAR PAYMENTS,PAYMENT TO LESSORS,T170,PAYMENT TO LESSORS,CORPORATE MANAGEMENT GROUP,VEHICLE MANAGEMENT
http://statistics.data.gov.uk/id/local-authority/43UM,WOKING BOROUGH COUNCIL,15/04/2015,0000380969/005,ALPHABET (GB) LIMITED,00015200,152.78 ,CORPORATE MANAGEMENT GROUP - LEASED CAR PAYMENTS,PAYMENT TO LESSORS,T170,PAYMENT TO LESSORS,CORPORATE MANAGEMENT GROUP,VEHICLE MANAGEMENT
http://statistics.data.gov.uk/id/local-authority/43UM,WOKING BOROUGH COUNCIL,15/04/2015,0000380970/001,ALPHABET (GB) LIMITED,00015200,7040.57 ,CORPORATE MANAGEMENT GROUP - LEASED CAR PAYMENTS,PAYMENT TO LESSORS,T170,PAYMENT TO LESSORS,CORPORATE MANAGEMENT GROUP,VEHICLE MANAGEMENT
http://statistics.data.gov.uk/id/local-authority/43UM,WOKING BOROUGH COUNCIL,15/04/2015,0000380970/003,ALPHABET (GB) LIMITED,00015200,72.00 ,CORPORATE MANAGEMENT GROUP - LEASED CAR PAYMENTS,PAYMENT TO LESSORS,T170,PAYMENT TO LESSORS,CORPORATE MANAGEMENT GROUP,VEHICLE MANAGEMENT
http://statistics.data.gov.uk/id/local-authority/43UM,WOKING BOROUGH COUNCIL,15/04/2015,0000380970/005,ALPHABET (GB) LIMITED,00015200,611.96 ,CORPORATE MANAGEMENT GROUP - LEASED CAR PAYMENTS,PAYMENT TO LESSORS,T170,PAYMENT TO LESSORS,CORPORATE MANAGEMENT GROUP,VEHICLE MANAGEMENT
http://statistics.data.gov.uk/id/local-authority/43UM,WOKING BOROUGH COUNCIL,15/04/2015,0000380974/002,ALPHABET (GB) LIMITED,00015200,-1332.40 ,CORPORATE MANAGEMENT GROUP - LEASED CAR PAYMENTS,PAYMENT TO LESSORS,T170,PAYMENT TO LESSORS,CORPORATE MANAGEMENT GROUP,VEHICLE MANAGEMENT
http://statistics.data.gov.uk/id/local-authority/43UM,WOKING BOROUGH COUNCIL,15/04/2015,0000380974/003,ALPHABET (GB) LIMITED,00015200,-133.24 ,CORPORATE MANAGEMENT GROUP - LEASED CAR PAYMENTS,PAYMENT TO LESSORS,T170,PAYMENT TO LESSORS,CORPORATE MANAGEMENT GROUP,VEHICLE MANAGEMENT
http://statistics.data.gov.uk/id/local-authority/43UM,WOKING BOROUGH COUNCIL,15/04/2015,0000381021/001,ALPHABET (GB) LIMITED,00015200,150.36 ,CORPORATE MANAGEMENT GROUP - LEASED CAR PAYMENTS,PAYMENT TO LESSORS,T170,PAYMENT TO LESSORS,CORPORATE MANAGEMENT GROUP,VEHICLE MANAGEMENT
http://statistics.data.gov.uk/id/local-authority/43UM,WOKING BOROUGH COUNCIL,15/04/2015,0000381022/001,ALPHABET (GB) LIMITED,00015200,150.36 ,CORPORATE MANAGEMENT GROUP - LEASED CAR PAYMENTS,PAYMENT TO LESSORS,T170,PAYMENT TO LESSORS,CORPORATE MANAGEMENT GROUP,VEHICLE MANAGEMENT
http://statistics.data.gov.uk/id/local-authority/43UM,WOKING BOROUGH COUNCIL,15/04/2015,0000381023/001,ALPHABET (GB) LIMITED,00015200,150.36 ,CORPORATE MANAGEMENT GROUP - LEASED CAR PAYMENTS,PAYMENT TO LESSORS,T170,PAYMENT TO LESSORS,CORPORATE MANAGEMENT GROUP,VEHICLE MANAGEMENT
http://statistics.data.gov.uk/id/local-authority/43UM,WOKING BOROUGH COUNCIL,15/04/2015,0000381024/001,ALPHABET (GB) LIMITED,00015200,150.36 ,CORPORATE MANAGEMENT GROUP - LEASED CAR PAYMENTS,PAYMENT TO LESSORS,T170,PAYMENT TO LESSORS,CORPORATE MANAGEMENT GROUP,VEHICLE MANAGEMENT
http://statistics.data.gov.uk/id/local-authority/43UM,WOKING BOROUGH COUNCIL,15/04/2015,0000381025/001,ALPHABET (GB) LIMITED,00015200,150.36 ,CORPORATE MANAGEMENT GROUP - LEASED CAR PAYMENTS,PAYMENT TO LESSORS,T170,PAYMENT TO LESSORS,CORPORATE MANAGEMENT GROUP,VEHICLE MANAGEMENT
http://statistics.data.gov.uk/id/local-authority/43UM,WOKING BOROUGH COUNCIL,15/04/2015,0000381026/001,ALPHABET (GB) LIMITED,00015200,150.36 ,CORPORATE MANAGEMENT GROUP - LEASED CAR PAYMENTS,PAYMENT TO LESSORS,T170,PAYMENT TO LESSORS,CORPORATE MANAGEMENT GROUP,VEHICLE MANAGEMENT
http://statistics.data.gov.uk/id/local-authority/43UM,WOKING BOROUGH COUNCIL,15/04/2015,0000381027/001,ALPHABET (GB) LIMITED,00015200,32.22 ,CORPORATE MANAGEMENT GROUP - LEASED CAR PAYMENTS,PAYMENT TO LESSORS,T170,PAYMENT TO LESSORS,CORPORATE MANAGEMENT GROUP,VEHICLE MANAGEMENT
http://statistics.data.gov.uk/id/local-authority/43UM,WOKING BOROUGH COUNCIL,15/04/2015,0000380878/002,ALPHABET (GB) LIMITED,00015200,-24.00 ,CORPORATE MANAGEMENT GROUP - LEASED CAR RELIEF,REVENUE CONTRIBUTIONS,T775,REVENUE CONTRIBUTIONS,CORPORATE MANAGEMENT GROUP,VEHICLE MANAGEMENT
http://statistics.data.gov.uk/id/local-authority/43UM,WOKING BOROUGH COUNCIL,15/04/2015,0000380967/002,ALPHABET (GB) LIMITED,00015200,-24.00 ,CORPORATE MANAGEMENT GROUP - LEASED CAR RELIEF,REVENUE CONTRIBUTIONS,T775,REVENUE CONTRIBUTIONS,CORPORATE MANAGEMENT GROUP,VEHICLE MANAGEMENT
http://statistics.data.gov.uk/id/local-authority/43UM,WOKING BOROUGH COUNCIL,15/04/2015,0000380968/002,ALPHABET (GB) LIMITED,00015200,-22.00 ,CORPORATE MANAGEMENT GROUP - LEASED CAR RELIEF,REVENUE CONTRIBUTIONS,T775,REVENUE CONTRIBUTIONS,CORPORATE MANAGEMENT GROUP,VEHICLE MANAGEMENT
http://statistics.data.gov.uk/id/local-authority/43UM,WOKING BOROUGH COUNCIL,15/04/2015,0000380969/002,ALPHABET (GB) LIMITED,00015200,-24.00 ,CORPORATE MANAGEMENT GROUP - LEASED CAR RELIEF,REVENUE CONTRIBUTIONS,T775,REVENUE CONTRIBUTIONS,CORPORATE MANAGEMENT GROUP,VEHICLE MANAGEMENT
http://statistics.data.gov.uk/id/local-authority/43UM,WOKING BOROUGH COUNCIL,15/04/2015,0000380970/002,ALPHABET (GB) LIMITED,00015200,-72.00 ,CORPORATE MANAGEMENT GROUP - LEASED CAR RELIEF,REVENUE CONTRIBUTIONS,T775,REVENUE CONTRIBUTIONS,CORPORATE MANAGEMENT GROUP,VEHICLE MANAGEMENT
http://statistics.data.gov.uk/id/local-authority/43UM,WOKING BOROUGH COUNCIL,15/04/2015,0000380963/001,ALPHABET (GB) LIMITED,00015200,3467.08 ,ASSET MANAGEMENT - FACILITIES MANAGEMENT,VEHCLE LEASING COSTS,F400,VEHCLE LEASING COSTS,ASSET MANAGEMENT,VEHICLE MANAGEMENT
http://statistics.data.gov.uk/id/local-authority/43UM,WOKING BOROUGH COUNCIL,15/04/2015,0000381028/001,ALPHABET (GB) LIMITED,00015200,438.48 ,ASSET MANAGEMENT - FACILITIES MANAGEMENT,VEHCLE LEASING COSTS,F400,VEHCLE LEASING COSTS,ASSET MANAGEMENT,VEHICLE MANAGEMENT
http://statistics.data.gov.uk/id/local-authority/43UM,WOKING BOROUGH COUNCIL,15/04/2015,0000381029/001,ALPHABET (GB) LIMITED,00015200,438.48 ,ASSET MANAGEMENT - FACILITIES MANAGEMENT,VEHCLE LEASING COSTS,F400,VEHCLE LEASING COSTS,ASSET MANAGEMENT,VEHICLE MANAGEMENT
http://statistics.data.gov.uk/id/local-authority/43UM,WOKING BOROUGH COUNCIL,15/04/2015,0000381030/001,ALPHABET (GB) LIMITED,00015200,438.48 ,ASSET MANAGEMENT - FACILITIES MANAGEMENT,VEHCLE LEASING COSTS,F400,VEHCLE LEASING COSTS,ASSET MANAGEMENT,VEHICLE MANAGEMENT
http://statistics.data.gov.uk/id/local-authority/43UM,WOKING BOROUGH COUNCIL,15/04/2015,0000381031/001,ALPHABET (GB) LIMITED,00015200,292.44 ,ASSET MANAGEMENT - FACILITIES MANAGEMENT,VEHCLE LEASING COSTS,F400,VEHCLE LEASING COSTS,ASSET MANAGEMENT,VEHICLE MANAGEMENT
http://statistics.data.gov.uk/id/local-authority/43UM,WOKING BOROUGH COUNCIL,15/04/2015,0000381032/001,ALPHABET (GB) LIMITED,00015200,438.48 ,ASSET MANAGEMENT - FACILITIES MANAGEMENT,VEHCLE LEASING COSTS,F400,VEHCLE LEASING COSTS,ASSET MANAGEMENT,VEHICLE MANAGEMENT
http://statistics.data.gov.uk/id/local-authority/43UM,WOKING BOROUGH COUNCIL,15/04/2015,GPC/579044713,AMAZON UK RETAIL,PROCUREMENT CARD,29.16 ,INFORMATION TECHNOLOGY - ICT GENERAL REPLACEMENT 15/16,ADDITIONAL EQUIPMENT,Q020,PC GRAPHICS CARD (CHRISN),MR V BARNARD,DIRECT MARKETERS - OTHER
http://statistics.data.gov.uk/id/local-authority/43UM,WOKING BOROUGH COUNCIL,15/04/2015,0000381058/001,ARTON MONOSEAL LIMITED,01770200,6824.00 ,ASSET MANAGEMENT - AMP LC REFURB ROOF AND FASCIA,MAIN CONTRACTOR,Q200,MAIN CONTRACTOR,ASSET MANAGEMENT,WORKS (CONSTRUCTION REPAIR MAINTENANCE)
http://statistics.data.gov.uk/id/local-authority/43UM,WOKING BOROUGH COUNCIL,15/04/2015,0000380964/001,ARTON MONOSEAL LIMITED,01770200,1090.00 ,ASSET MANAGEMENT - AMP LEISURE CENTRE REFURB ROOF,MAIN CONTRACTOR,Q200,MAIN CONTRACTOR,ASSET MANAGEMENT,WORKS (CONSTRUCTION REPAIR MAINTENANCE)
http://statistics.data.gov.uk/id/local-authority/43UM,WOKING BOROUGH COUNCIL,15/04/2015,0000380508/001,ATIA SOLUTIONS Ltd t/a MEETINGZONE,40488100,251.82 ,HOUSING SERVICES - HEATING MAINTENANCE INDIVIDUAL,NETWORK CIRCUITS,G800,NETWORK CIRCUITS,HOUSING SERVICES,FACILITIES & MANAGEMENT SERVICES
http://statistics.data.gov.uk/id/local-authority/43UM,WOKING BOROUGH COUNCIL,15/04/2015,0000380406/001,ATKINSONS GUEST HOUSE,40250600,665.00 ,HOUSING SERVICES - HOUSING OPTIONS,BED & BREAKFAST EXPENDITURE,H786,BED & BREAKFAST EXPENDITURE,HOUSING SERVICES,HOUSING MANAGEMENT
http://statistics.data.gov.uk/id/local-authority/43UM,WOKING BOROUGH COUNCIL,15/04/2015,0000380458/001,ATKINSONS GUEST HOUSE,40250600,623.00 ,HOUSING SERVICES - HOUSING OPTIONS,BED & BREAKFAST EXPENDITURE,H786,BED & BREAKFAST EXPENDITURE,HOUSING SERVICES,HOUSING MANAGEMENT
http://statistics.data.gov.uk/id/local-authority/43UM,WOKING BOROUGH COUNCIL,15/04/2015,0000380459/001,ATKINSONS GUEST HOUSE,40250600,945.00 ,HOUSING SERVICES - HOUSING OPTIONS,BED & BREAKFAST EXPENDITURE,H786,BED & BREAKFAST EXPENDITURE,HOUSING SERVICES,HOUSING MANAGEMENT
http://statistics.data.gov.uk/id/local-authority/43UM,WOKING BOROUGH COUNCIL,15/04/2015,0000380460/001,ATKINSONS GUEST HOUSE,40250600,354.00 ,HOUSING SERVICES - HOUSING OPTIONS,BED & BREAKFAST EXPENDITURE,H786,BED & BREAKFAST EXPENDITURE,HOUSING SERVICES,HOUSING MANAGEMENT
http://statistics.data.gov.uk/id/local-authority/43UM,WOKING BOROUGH COUNCIL,15/04/2015,0000380510/001,BECCI KENNING,40453000,528.64 ,NEIGHBOURHOOD SERVICES - ARTS DEVELOPMENT,PAYMENTS TO PROMOTERS,H640,PAYMENTS TO PROMOTERS,NEIGHBOURHOOD SERVICES,ARTS & LEISURE SERVICES
http://statistics.data.gov.uk/id/local-authority/43UM,WOKING BOROUGH COUNCIL,15/04/2015,GPC/579042584,BITTOMS KINGSTON,PROCUREMENT CARD,2.92 ,CORPORATE MANAGEMENT GROUP - CORPORATE MANAGEMENT GROUP,TRAVEL EXPENSES,A901,CAR PARKING - SWP,MISS S M BARHAM,GOVERNMENT SERVICES-NOT ELSEWHERE CLASSIFIED
http://statistics.data.gov.uk/id/local-authority/43UM,WOKING BOROUGH COUNCIL,15/04/2015,0000380286/002,BRISTOW & SUTOR,40257600,75.00 ,REVENUES AND BENEFITS - COUNCIL TAX,BAILIFFS COMMISION,H911,BAILIFFS COMMISION,REVENUES AND BENEFITS,FINANCIAL SERVICES
http://statistics.data.gov.uk/id/local-authority/43UM,WOKING BOROUGH COUNCIL,15/04/2015,0000380760/001,BRISTOW & SUTOR,40257600,15.54 ,REVENUES AND BENEFITS - RENT ALLOWANCES,DEBT COLLECTION AGENCY COMMISS,H910,DEBT COLLECTION AGENCY COMMISS,REVENUES AND BENEFITS,FINANCIAL SERVICES
http://statistics.data.gov.uk/id/local-authority/43UM,WOKING BOROUGH COUNCIL,15/04/2015,0000380759/001,BRISTOW & SUTOR,40257600,19.50 ,HOUSING SERVICES - RENT COLLECTION,DEBT COLLECTION AGENCY COMMISS,H910,DEBT COLLECTION AGENCY COMMISS,HOUSING SERVICES,FINANCIAL SERVICES
http://statistics.data.gov.uk/id/local-authority/43UM,WOKING BOROUGH COUNCIL,15/04/2015,0000380088/001,BT BUSINESS DIRECT LTD,01898800,691.79 ,H G WELLS - H G WELLS - FUNCTION ROOMS,EQUIPMENT,G100,EQUIPMENT,H G WELLS,INFORMATION COMMUNICATION TECHNOLOGY
http://statistics.data.gov.uk/id/local-authority/43UM,WOKING BOROUGH COUNCIL,15/04/2015,0000380387/001,BUSINESS IN THE COMMUNITY,40278700,10000.00 ,CORPORATE STRATEGY - MOSAIC MENTORING 15/15,OTHER CONSULTANTS,Q430,OTHER CONSULTANTS,CORPORATE STRATEGY,EDUCATION
http://statistics.data.gov.uk/id/local-authority/43UM,WOKING BOROUGH COUNCIL,15/04/2015,0000380545/001,CAPITA SECURE INFORMATION SOLUTIONS Ltd,00147100,6300.00 ,INFORMATION TECHNOLOGY - IT STAFF,TEMPORARY STAFF,A110,TEMPORARY STAFF,INFORMATION TECHNOLOGY,INFORMATION COMMUNICATION TECHNOLOGY
http://statistics.data.gov.uk/id/local-authority/43UM,WOKING BOROUGH COUNCIL,15/04/2015,0000380059/001,CHARTERED INST.OF ENVIRONMENTAL HEALTH,00074400,480.00 ,NEIGHBOURHOOD SERVICES - REGULATION AND ENFORCEMENT,SUBSCRIPTIONS,H110,SUBSCRIPTIONS,NEIGHBOURHOOD SERVICES,CONSULTANCY
http://statistics.data.gov.uk/id/local-authority/43UM,WOKING BOROUGH COUNCIL,15/04/2015,0000380951/001,CHEESMAN BROTHERS LTD,01050500,63.60 ,H G WELLS - H G WELLS - CATERING,PROVISIONS-FOOD,G440,PROVISIONS-FOOD,H G WELLS,CATERING
http://statistics.data.gov.uk/id/local-authority/43UM,WOKING BOROUGH COUNCIL,15/04/2015,0000381051/001,CHOICES ESTATE AGENTS LIMITED,40505900,11567.50 ,HOUSING SERVICES - HOUSING OPTIONS DEPOSITS,DEPOSITS,T720,DEPOSITS,HOUSING SERVICES,HOUSING MANAGEMENT
http://statistics.data.gov.uk/id/local-authority/43UM,WOKING BOROUGH COUNCIL,15/04/2015,0000381090/001,CROYDON COUNCIL,01650500,24230.00 ,FINANCIAL SERVICES - AUDIT,INTERNAL AUDIT CONTRACT,J660,INTERNAL AUDIT CONTRACT,FINANCIAL SERVICES,HUMAN RESOURCES
http://statistics.data.gov.uk/id/local-authority/43UM,WOKING BOROUGH COUNCIL,15/04/2015,0000381091/001,CROYDON COUNCIL,01650500,18270.00 ,FINANCIAL SERVICES - AUDIT,INTERNAL AUDIT CONTRACT,J660,INTERNAL AUDIT CONTRACT,FINANCIAL SERVICES,HUMAN RESOURCES
http://statistics.data.gov.uk/id/local-authority/43UM,WOKING BOROUGH COUNCIL,15/04/2015,0000381166/001,DIOCESE OF GUILDFORD,00744300,24723.00 ,ASSET MANAGEMENT - HOE VALLEY SCHOOL,OTHER CONSULTANTS,Q430,OTHER CONSULTANTS,ASSET MANAGEMENT,FINANCIAL SERVICES
http://statistics.data.gov.uk/id/local-authority/43UM,WOKING BOROUGH COUNCIL,15/04/2015,0000380985/001,DISTRICT COUNCILS' NETWORK,40232800,260.00 ,CORPORATE STRATEGY - CORPORATE MANAGEMENT,SUBSCRIPTIONS,H110,SUBSCRIPTIONS,CORPORATE STRATEGY,CONSULTANCY
http://statistics.data.gov.uk/id/local-authority/43UM,WOKING BOROUGH COUNCIL,15/04/2015,0000381137/001,DMA SIGNS LTD,01853700,67.50 ,CORPORATE STRATEGY - ENVIRONMENTAL PROJECTS,CAR HIRE,F405,CAR HIRE,CORPORATE STRATEGY,FACILITIES & MANAGEMENT SERVICES
http://statistics.data.gov.uk/id/local-authority/43UM,WOKING BOROUGH COUNCIL,15/04/2015,0000381159/001,Dr. JONTY DENTON,40506500,1275.00 ,NEIGHBOURHOOD SERVICES - DISABLED FACILITIES GRANTS,CONSERVATION MANAGEMENT,H643,CONSERVATION MANAGEMENT,NEIGHBOURHOOD SERVICES,CONSULTANCY
http://statistics.data.gov.uk/id/local-authority/43UM,WOKING BOROUGH COUNCIL,15/04/2015,0000381125/001,EDF ENERGY CUSTOMERS PLC,01451600,17.88 ,CORPORATE MANAGEMENT GROUP - WOMENS SUPPORT CTR ART AWARDS,MISCELLANEOUS EXPENSES,X827,MISCELLANEOUS EXPENSES,CORPORATE MANAGEMENT GROUP,UTILITIES
http://statistics.data.gov.uk/id/local-authority/43UM,WOKING BOROUGH COUNCIL,15/04/2015,0000381179/001,ELDER ASSOCIATES,01971700,360.00 ,HOUSING SERVICES - PFI BID,OTHER CONSULTANTS,Q430,OTHER CONSULTANTS,HOUSING SERVICES,CONSULTANCY
http://statistics.data.gov.uk/id/local-authority/43UM,WOKING BOROUGH COUNCIL,15/04/2015,0000380537/001,ELEKTROMOTIVE LTD,40274500,400.00 ,CORPORATE STRATEGY - ENVIRONMENTAL PROJECTS,CAR HIRE,F405,CAR HIRE,CORPORATE STRATEGY,VEHICLE MANAGEMENT
http://statistics.data.gov.uk/id/local-authority/43UM,WOKING BOROUGH COUNCIL,15/04/2015,0000380141/001,EMCOR FACILITIES SERVICES LTD,00004600,1162.82 ,INFORMATION TECHNOLOGY - HGWELLS CASH REPLACEMENT SYSTE,SERVICES,Q053,SERVICES,INFORMATION TECHNOLOGY,WORKS (CONSTRUCTION REPAIR MAINTENANCE)
http://statistics.data.gov.uk/id/local-authority/43UM,WOKING BOROUGH COUNCIL,15/04/2015,0000381084/001,EMPTY HOMES NETWORK,40317900,95.00 ,HOUSING SERVICES - NON-HRA HOUSING SERVS,SUBSCRIPTIONS,H110,SUBSCRIPTIONS,HOUSING SERVICES,FINANCIAL SERVICES
http://statistics.data.gov.uk/id/local-authority/43UM,WOKING BOROUGH COUNCIL,15/04/2015,0000380389/001,ESRI (UK) LTD,01884200,355.00 ,CORPORATE MANAGEMENT GROUP - STAFF TRAINING/GENERAL COSTS,TRAINING - CORPORATE,A910,TRAINING - CORPORATE,CORPORATE MANAGEMENT GROUP,INFORMATION COMMUNICATION TECHNOLOGY
http://statistics.data.gov.uk/id/local-authority/43UM,WOKING BOROUGH COUNCIL,15/04/2015,0000380813/001,FAITH RECRUITMENT,01709500,527.36 ,NEIGHBOURHOOD SERVICES - REGULATION AND ENFORCEMENT,TEMPORARY STAFF,A110,TEMPORARY STAFF,NEIGHBOURHOOD SERVICES,HUMAN RESOURCES
http://statistics.data.gov.uk/id/local-authority/43UM,WOKING BOROUGH COUNCIL,15/04/2015,0000381176/001,FARNBOROUGH CONTRACTING SERVICES,40501900,587.71 ,NEIGHBOURHOOD SERVICES - TOWN CTR MANAGEMENT,R&M BUILDINGS - CONTRACTORS,D100,R&M BUILDINGS - CONTRACTORS,NEIGHBOURHOOD SERVICES,WORKS (CONSTRUCTION REPAIR MAINTENANCE)
http://statistics.data.gov.uk/id/local-authority/43UM,WOKING BOROUGH COUNCIL,15/04/2015,0000380696/001,FRAZERS SURVEYORS LTD,00076400,90.00 ,HOUSING SERVICES - SALE COUNCIL HOUSES,OTHER CONSULTANTS,Q430,OTHER CONSULTANTS,HOUSING SERVICES,HOUSING MANAGEMENT
http://statistics.data.gov.uk/id/local-authority/43UM,WOKING BOROUGH COUNCIL,15/04/2015,0000380697/001,FRAZERS SURVEYORS LTD,00076400,90.00 ,HOUSING SERVICES - SALE COUNCIL HOUSES,OTHER CONSULTANTS,Q430,OTHER CONSULTANTS,HOUSING SERVICES,HOUSING MANAGEMENT
http://statistics.data.gov.uk/id/local-authority/43UM,WOKING BOROUGH COUNCIL,15/04/2015,0000381119/001,GELPACK EXCELSIOR LIMITED,40433000,9838.00 ,NEIGHBOURHOOD SERVICES - WHEELED BIN COLLECTION,PURCHASE OF SACKS,G213,PURCHASE OF SACKS,NEIGHBOURHOOD SERVICES,ENVIRONMENTAL SERVICES
http://statistics.data.gov.uk/id/local-authority/43UM,WOKING BOROUGH COUNCIL,15/04/2015,0000381171/001,GIBBS & DANDY,40335300,6.50 ,HOUSING SERVICES - HOME IMPS & BEN AGENCY,HANDYPERSON MATERIALS,G201,HANDYPERSON MATERIALS,HOUSING SERVICES,BUILDING CONSTRUCTION MATERIALS
http://statistics.data.gov.uk/id/local-authority/43UM,WOKING BOROUGH COUNCIL,15/04/2015,0000381172/001,GIBBS & DANDY,40335300,23.67 ,HOUSING SERVICES - HOME IMPS & BEN AGENCY,HANDYPERSON MATERIALS,G201,HANDYPERSON MATERIALS,HOUSING SERVICES,BUILDING CONSTRUCTION MATERIALS
http://statistics.data.gov.uk/id/local-authority/43UM,WOKING BOROUGH COUNCIL,15/04/2015,0000381173/001,GIBBS & DANDY,40335300,20.24 ,HOUSING SERVICES - HOME IMPS & BEN AGENCY,HANDYPERSON MATERIALS,G201,HANDYPERSON MATERIALS,HOUSING SERVICES,BUILDING CONSTRUCTION MATERIALS
http://statistics.data.gov.uk/id/local-authority/43UM,WOKING BOROUGH COUNCIL,15/04/2015,0000381167/001,GOLDSWORTH PARK COMMUNITY ASSOCIATION,00028400,158.40 ,ASSET MANAGEMENT - GOLDWATER LODGE,MAIN CONTRACTOR,Q200,MAIN CONTRACTOR,ASSET MANAGEMENT,FACILITIES & MANAGEMENT SERVICES
http://statistics.data.gov.uk/id/local-authority/43UM,WOKING BOROUGH COUNCIL,15/04/2015,0000380526/001,HARPERS GROUP (WOKING) LTD,00017800,3750.00 ,ASSET MANAGEMENT - CIVIC OFFICES,VIDEO EQUIPMENT - MAINTENANCE,G163,VIDEO EQUIPMENT - MAINTENANCE,ASSET MANAGEMENT,WORKS (CONSTRUCTION REPAIR MAINTENANCE)
http://statistics.data.gov.uk/id/local-authority/43UM,WOKING BOROUGH COUNCIL,15/04/2015,0000380535/001,HAYS,00228700,614.68 ,REVENUES AND BENEFITS - CUSTOMER SERVICES,TEMPORARY STAFF,A110,TEMPORARY STAFF,REVENUES AND BENEFITS,HUMAN RESOURCES
http://statistics.data.gov.uk/id/local-authority/43UM,WOKING BOROUGH COUNCIL,15/04/2015,0000380382/001,HEADLINE DESIGN & PRINT,00016900,289.75 ,CORPORATE STRATEGY - PUBLIC RELATIONS,PROMOTIONS & GRANTS,H467,PROMOTIONS & GRANTS,CORPORATE STRATEGY,FINANCIAL SERVICES
http://statistics.data.gov.uk/id/local-authority/43UM,WOKING BOROUGH COUNCIL,15/04/2015,0000380382/002,HEADLINE DESIGN & PRINT,00016900,134.00 ,CORPORATE STRATEGY - PUBLIC RELATIONS,PROMOTIONS & GRANTS,H467,PROMOTIONS & GRANTS,CORPORATE STRATEGY,FINANCIAL SERVICES
http://statistics.data.gov.uk/id/local-authority/43UM,WOKING BOROUGH COUNCIL,15/04/2015,0000380420/001,HOLIDAY INN WOKING,01176800,1042.35 ,CORPORATE STRATEGY - CORPORATE STRATEGY GENERAL EXP,OFFICIAL HOSPITALITY,H310,OFFICIAL HOSPITALITY,CORPORATE STRATEGY,CATERING
http://statistics.data.gov.uk/id/local-authority/43UM,WOKING BOROUGH COUNCIL,15/04/2015,0000380983/001,HQN LIMITED,00357300,1095.00 ,HOUSING SERVICES - HRA MARKET TESTING,SUBSCRIPTIONS,H110,SUBSCRIPTIONS,HOUSING SERVICES,FINANCIAL SERVICES
http://statistics.data.gov.uk/id/local-authority/43UM,WOKING BOROUGH COUNCIL,15/04/2015,0000380984/001,HQN LIMITED,00357300,700.00 ,HOUSING SERVICES - HRA MARKET TESTING,SUBSCRIPTIONS,H110,SUBSCRIPTIONS,HOUSING SERVICES,FINANCIAL SERVICES
http://statistics.data.gov.uk/id/local-authority/43UM,WOKING BOROUGH COUNCIL,15/04/2015,GPC/579042845,IPF,PROCUREMENT CARD,3038.75 ,FINANCIAL SERVICES - FINANCIAL SERVICES,SUBSCRIPTIONS,H110,CIPFA FAN SUBSCRIPTION 15/16,NEIL HASKELL,ACCOUNTING AUDITING AND BOOKKEEPING SERVICES
http://statistics.data.gov.uk/id/local-authority/43UM,WOKING BOROUGH COUNCIL,15/04/2015,0000381175/001,JOHN GOOD LIMITED,00792700,525.00 ,NEIGHBOURHOOD SERVICES - MARKET GENERAL MANAGEMENT,ADVERTISING,H400,ADVERTISING,NEIGHBOURHOOD SERVICES,FACILITIES & MANAGEMENT SERVICES
http://statistics.data.gov.uk/id/local-authority/43UM,WOKING BOROUGH COUNCIL,15/04/2015,0000381011/001,JONES LANG LASALLE,00094000,110.32 ,ASSET MANAGEMENT - HOLLYWOOD HOUSE,SERVICE CHARGE,D510,SERVICE CHARGE,ASSET MANAGEMENT,FACILITIES & MANAGEMENT SERVICES
http://statistics.data.gov.uk/id/local-authority/43UM,WOKING BOROUGH COUNCIL,15/04/2015,0000380661/001,KENT COUNTY COUNCIL (KCS),00050800,142.89 ,HOUSING SERVICES - LANDLORDS EXPENSES,ELECTRICITY,D400,ELECTRICITY,HOUSING SERVICES,UTILITIES
http://statistics.data.gov.uk/id/local-authority/43UM,WOKING BOROUGH COUNCIL,15/04/2015,0000380662/001,KENT COUNTY COUNCIL (KCS),00050800,168.39 ,HOUSING SERVICES - LANDLORDS EXPENSES,ELECTRICITY,D400,ELECTRICITY,HOUSING SERVICES,UTILITIES
http://statistics.data.gov.uk/id/local-authority/43UM,WOKING BOROUGH COUNCIL,15/04/2015,0000380663/001,KENT COUNTY COUNCIL (KCS),00050800,165.58 ,HOUSING SERVICES - LANDLORDS EXPENSES,ELECTRICITY,D400,ELECTRICITY,HOUSING SERVICES,UTILITIES
http://statistics.data.gov.uk/id/local-authority/43UM,WOKING BOROUGH COUNCIL,15/04/2015,0000380664/001,KENT COUNTY COUNCIL (KCS),00050800,160.54 ,HOUSING SERVICES - LANDLORDS EXPENSES,ELECTRICITY,D400,ELECTRICITY,HOUSING SERVICES,UTILITIES
http://statistics.data.gov.uk/id/local-authority/43UM,WOKING BOROUGH COUNCIL,15/04/2015,0000380665/001,KENT COUNTY COUNCIL (KCS),00050800,22.57 ,HOUSING SERVICES - LANDLORDS EXPENSES,ELECTRICITY,D400,ELECTRICITY,HOUSING SERVICES,UTILITIES
http://statistics.data.gov.uk/id/local-authority/43UM,WOKING BOROUGH COUNCIL,15/04/2015,0000380666/001,KENT COUNTY COUNCIL (KCS),00050800,97.20 ,HOUSING SERVICES - LANDLORDS EXPENSES,ELECTRICITY,D400,ELECTRICITY,HOUSING SERVICES,UTILITIES
http://statistics.data.gov.uk/id/local-authority/43UM,WOKING BOROUGH COUNCIL,15/04/2015,0000380667/001,KENT COUNTY COUNCIL (KCS),00050800,75.21 ,HOUSING SERVICES - LANDLORDS EXPENSES,ELECTRICITY,D400,ELECTRICITY,HOUSING SERVICES,UTILITIES
http://statistics.data.gov.uk/id/local-authority/43UM,WOKING BOROUGH COUNCIL,15/04/2015,0000380668/001,KENT COUNTY COUNCIL (KCS),00050800,69.94 ,HOUSING SERVICES - LANDLORDS EXPENSES,ELECTRICITY,D400,ELECTRICITY,HOUSING SERVICES,UTILITIES
http://statistics.data.gov.uk/id/local-authority/43UM,WOKING BOROUGH COUNCIL,15/04/2015,0000380669/001,KENT COUNTY COUNCIL (KCS),00050800,89.34 ,HOUSING SERVICES - LANDLORDS EXPENSES,ELECTRICITY,D400,ELECTRICITY,HOUSING SERVICES,UTILITIES
http://statistics.data.gov.uk/id/local-authority/43UM,WOKING BOROUGH COUNCIL,15/04/2015,0000380670/001,KENT COUNTY COUNCIL (KCS),00050800,183.09 ,HOUSING SERVICES - LANDLORDS EXPENSES,ELECTRICITY,D400,ELECTRICITY,HOUSING SERVICES,UTILITIES
http://statistics.data.gov.uk/id/local-authority/43UM,WOKING BOROUGH COUNCIL,15/04/2015,0000380671/001,KENT COUNTY COUNCIL (KCS),00050800,57.26 ,HOUSING SERVICES - LANDLORDS EXPENSES,ELECTRICITY,D400,ELECTRICITY,HOUSING SERVICES,UTILITIES
http://statistics.data.gov.uk/id/local-authority/43UM,WOKING BOROUGH COUNCIL,15/04/2015,0000380672/001,KENT COUNTY COUNCIL (KCS),00050800,92.11 ,HOUSING SERVICES - LANDLORDS EXPENSES,ELECTRICITY,D400,ELECTRICITY,HOUSING SERVICES,UTILITIES
http://statistics.data.gov.uk/id/local-authority/43UM,WOKING BOROUGH COUNCIL,15/04/2015,0000380673/001,KENT COUNTY COUNCIL (KCS),00050800,18.80 ,HOUSING SERVICES - LANDLORDS EXPENSES,ELECTRICITY,D400,ELECTRICITY,HOUSING SERVICES,UTILITIES
http://statistics.data.gov.uk/id/local-authority/43UM,WOKING BOROUGH COUNCIL,15/04/2015,0000380674/001,KENT COUNTY COUNCIL (KCS),00050800,158.41 ,HOUSING SERVICES - LANDLORDS EXPENSES,ELECTRICITY,D400,ELECTRICITY,HOUSING SERVICES,UTILITIES
http://statistics.data.gov.uk/id/local-authority/43UM,WOKING BOROUGH COUNCIL,15/04/2015,0000380675/001,KENT COUNTY COUNCIL (KCS),00050800,117.91 ,HOUSING SERVICES - LANDLORDS EXPENSES,ELECTRICITY,D400,ELECTRICITY,HOUSING SERVICES,UTILITIES
http://statistics.data.gov.uk/id/local-authority/43UM,WOKING BOROUGH COUNCIL,15/04/2015,0000380676/001,KENT COUNTY COUNCIL (KCS),00050800,158.41 ,HOUSING SERVICES - LANDLORDS EXPENSES,ELECTRICITY,D400,ELECTRICITY,HOUSING SERVICES,UTILITIES
http://statistics.data.gov.uk/id/local-authority/43UM,WOKING BOROUGH COUNCIL,15/04/2015,0000380677/001,KENT COUNTY COUNCIL (KCS),00050800,198.20 ,HOUSING SERVICES - LANDLORDS EXPENSES,ELECTRICITY,D400,ELECTRICITY,HOUSING SERVICES,UTILITIES
http://statistics.data.gov.uk/id/local-authority/43UM,WOKING BOROUGH COUNCIL,15/04/2015,0000380678/001,KENT COUNTY COUNCIL (KCS),00050800,362.93 ,HOUSING SERVICES - LANDLORDS EXPENSES,ELECTRICITY,D400,ELECTRICITY,HOUSING SERVICES,UTILITIES
http://statistics.data.gov.uk/id/local-authority/43UM,WOKING BOROUGH COUNCIL,15/04/2015,0000380679/001,KENT COUNTY COUNCIL (KCS),00050800,171.67 ,HOUSING SERVICES - LANDLORDS EXPENSES,ELECTRICITY,D400,ELECTRICITY,HOUSING SERVICES,UTILITIES
http://statistics.data.gov.uk/id/local-authority/43UM,WOKING BOROUGH COUNCIL,15/04/2015,0000380680/001,KENT COUNTY COUNCIL (KCS),00050800,39.16 ,HOUSING SERVICES - LANDLORDS EXPENSES,ELECTRICITY,D400,ELECTRICITY,HOUSING SERVICES,UTILITIES
http://statistics.data.gov.uk/id/local-authority/43UM,WOKING BOROUGH COUNCIL,15/04/2015,0000380681/001,KENT COUNTY COUNCIL (KCS),00050800,146.56 ,HOUSING SERVICES - LANDLORDS EXPENSES,ELECTRICITY,D400,ELECTRICITY,HOUSING SERVICES,UTILITIES
http://statistics.data.gov.uk/id/local-authority/43UM,WOKING BOROUGH COUNCIL,15/04/2015,0000380682/001,KENT COUNTY COUNCIL (KCS),00050800,29.14 ,HOUSING SERVICES - LANDLORDS EXPENSES,ELECTRICITY,D400,ELECTRICITY,HOUSING SERVICES,UTILITIES
http://statistics.data.gov.uk/id/local-authority/43UM,WOKING BOROUGH COUNCIL,15/04/2015,0000380683/001,KENT COUNTY COUNCIL (KCS),00050800,71.23 ,HOUSING SERVICES - LANDLORDS EXPENSES,ELECTRICITY,D400,ELECTRICITY,HOUSING SERVICES,UTILITIES
http://statistics.data.gov.uk/id/local-authority/43UM,WOKING BOROUGH COUNCIL,15/04/2015,0000380684/001,KENT COUNTY COUNCIL (KCS),00050800,254.97 ,HOUSING SERVICES - LANDLORDS EXPENSES,ELECTRICITY,D400,ELECTRICITY,HOUSING SERVICES,UTILITIES
http://statistics.data.gov.uk/id/local-authority/43UM,WOKING BOROUGH COUNCIL,15/04/2015,0000380685/001,KENT COUNTY COUNCIL (KCS),00050800,193.02 ,HOUSING SERVICES - LANDLORDS EXPENSES,ELECTRICITY,D400,ELECTRICITY,HOUSING SERVICES,UTILITIES
http://statistics.data.gov.uk/id/local-authority/43UM,WOKING BOROUGH COUNCIL,15/04/2015,0000380686/001,KENT COUNTY COUNCIL (KCS),00050800,126.22 ,HOUSING SERVICES - LANDLORDS EXPENSES,ELECTRICITY,D400,ELECTRICITY,HOUSING SERVICES,UTILITIES
http://statistics.data.gov.uk/id/local-authority/43UM,WOKING BOROUGH COUNCIL,15/04/2015,0000380687/001,KENT COUNTY COUNCIL (KCS),00050800,-57.31 ,HOUSING SERVICES - LANDLORDS EXPENSES,ELECTRICITY,D400,ELECTRICITY,HOUSING SERVICES,UTILITIES
http://statistics.data.gov.uk/id/local-authority/43UM,WOKING BOROUGH COUNCIL,15/04/2015,0000380688/001,KENT COUNTY COUNCIL (KCS),00050800,-85.06 ,HOUSING SERVICES - LANDLORDS EXPENSES,ELECTRICITY,D400,ELECTRICITY,HOUSING SERVICES,UTILITIES
http://statistics.data.gov.uk/id/local-authority/43UM,WOKING BOROUGH COUNCIL,15/04/2015,0000380689/001,KENT COUNTY COUNCIL (KCS),00050800,-464.87 ,HOUSING SERVICES - LANDLORDS EXPENSES,ELECTRICITY,D400,ELECTRICITY,HOUSING SERVICES,UTILITIES
http://statistics.data.gov.uk/id/local-authority/43UM,WOKING BOROUGH COUNCIL,15/04/2015,0000380690/001,KENT COUNTY COUNCIL (KCS),00050800,-68.34 ,HOUSING SERVICES - LANDLORDS EXPENSES,ELECTRICITY,D400,ELECTRICITY,HOUSING SERVICES,UTILITIES
http://statistics.data.gov.uk/id/local-authority/43UM,WOKING BOROUGH COUNCIL,15/04/2015,0000380691/001,KENT COUNTY COUNCIL (KCS),00050800,-464.87 ,HOUSING SERVICES - LANDLORDS EXPENSES,ELECTRICITY,D400,ELECTRICITY,HOUSING SERVICES,UTILITIES
http://statistics.data.gov.uk/id/local-authority/43UM,WOKING BOROUGH COUNCIL,15/04/2015,0000380440/001,KENT COUNTY COUNCIL (KCS),00050800,713.01 ,NEIGHBOURHOOD SERVICES - HEATHSIDE CRESCENT,ELECTRICITY,D400,ELECTRICITY,NEIGHBOURHOOD SERVICES,UTILITIES
http://statistics.data.gov.uk/id/local-authority/43UM,WOKING BOROUGH COUNCIL,15/04/2015,0000380440/002,KENT COUNTY COUNCIL (KCS),00050800,44.83 ,NEIGHBOURHOOD SERVICES - HEATHSIDE CRESCENT,CLIMATE CHANGE LEVY,D430,CLIMATE CHANGE LEVY,NEIGHBOURHOOD SERVICES,UTILITIES
http://statistics.data.gov.uk/id/local-authority/43UM,WOKING BOROUGH COUNCIL,15/04/2015,0000380763/001,KENT COUNTY COUNCIL (KCS),00050800,682.64 ,INFORMATION TECHNOLOGY - I.T.S. REPROGRAPHICS,REPROGRAPHIC EQP-COPY CHARGES,G158,REPROGRAPHIC EQP-COPY CHARGES,INFORMATION TECHNOLOGY,UTILITIES
http://statistics.data.gov.uk/id/local-authority/43UM,WOKING BOROUGH COUNCIL,15/04/2015,0000380067/001,KENT FINANCIAL SERVICES,40484900,45.00 ,REVENUES AND BENEFITS - COUNCIL TAX,DEBT COLLECTION AGENCY COMMISS,H910,DEBT COLLECTION AGENCY COMMISS,REVENUES AND BENEFITS,FINANCIAL SERVICES
http://statistics.data.gov.uk/id/local-authority/43UM,WOKING BOROUGH COUNCIL,15/04/2015,0000380068/001,KENT FINANCIAL SERVICES,40484900,45.00 ,REVENUES AND BENEFITS - COUNCIL TAX,DEBT COLLECTION AGENCY COMMISS,H910,DEBT COLLECTION AGENCY COMMISS,REVENUES AND BENEFITS,FINANCIAL SERVICES
http://statistics.data.gov.uk/id/local-authority/43UM,WOKING BOROUGH COUNCIL,15/04/2015,0000380121/001,KENT FINANCIAL SERVICES,40484900,45.00 ,REVENUES AND BENEFITS - COUNCIL TAX,DEBT COLLECTION AGENCY COMMISS,H910,DEBT COLLECTION AGENCY COMMISS,REVENUES AND BENEFITS,FINANCIAL SERVICES
http://statistics.data.gov.uk/id/local-authority/43UM,WOKING BOROUGH COUNCIL,15/04/2015,0000380122/001,KENT FINANCIAL SERVICES,40484900,45.00 ,REVENUES AND BENEFITS - COUNCIL TAX,DEBT COLLECTION AGENCY COMMISS,H910,DEBT COLLECTION AGENCY COMMISS,REVENUES AND BENEFITS,FINANCIAL SERVICES
http://statistics.data.gov.uk/id/local-authority/43UM,WOKING BOROUGH COUNCIL,15/04/2015,0000380123/001,KENT FINANCIAL SERVICES,40484900,45.00 ,REVENUES AND BENEFITS - COUNCIL TAX,DEBT COLLECTION AGENCY COMMISS,H910,DEBT COLLECTION AGENCY COMMISS,REVENUES AND BENEFITS,FINANCIAL SERVICES
http://statistics.data.gov.uk/id/local-authority/43UM,WOKING BOROUGH COUNCIL,15/04/2015,0000380124/001,KENT FINANCIAL SERVICES,40484900,35.00 ,REVENUES AND BENEFITS - COUNCIL TAX,DEBT COLLECTION AGENCY COMMISS,H910,DEBT COLLECTION AGENCY COMMISS,REVENUES AND BENEFITS,FINANCIAL SERVICES
http://statistics.data.gov.uk/id/local-authority/43UM,WOKING BOROUGH COUNCIL,15/04/2015,0000380539/001,KM IT SOLUTIONS,40487900,340.00 ,HOUSING SERVICES - HEATING MAINTENANCE INDIVIDUAL,NETWORK CIRCUITS,G800,NETWORK CIRCUITS,HOUSING SERVICES,FACILITIES & MANAGEMENT SERVICES
http://statistics.data.gov.uk/id/local-authority/43UM,WOKING BOROUGH COUNCIL,15/04/2015,0000380399/001,LAMBERT SMITH HAMPTON,01157000,1457.92 ,ASSET MANAGEMENT - FACILITIES MANAGEMENT,FACILITIES MANAGEMENT REPAIRS,D908,FACILITIES MANAGEMENT REPAIRS,ASSET MANAGEMENT,FACILITIES & MANAGEMENT SERVICES
http://statistics.data.gov.uk/id/local-authority/43UM,WOKING BOROUGH COUNCIL,15/04/2015,0000380363/001,LEA'S CLEANING SERVICE LTD,01678300,400.00 ,NEIGHBOURHOOD SERVICES - MARKET GENERAL MANAGEMENT,GROUNDS MAINT-CONTRACTORS,D200,GROUNDS MAINT-CONTRACTORS,NEIGHBOURHOOD SERVICES,WORKS (CONSTRUCTION REPAIR MAINTENANCE)
http://statistics.data.gov.uk/id/local-authority/43UM,WOKING BOROUGH COUNCIL,15/04/2015,0000380394/001,LEA'S CLEANING SERVICE LTD,01678300,255.00 ,ASSET MANAGEMENT - HOLLYWOOD HOUSE,CONTRACT CLEANING,D900,CONTRACT CLEANING,ASSET MANAGEMENT,WORKS (CONSTRUCTION REPAIR MAINTENANCE)
http://statistics.data.gov.uk/id/local-authority/43UM,WOKING BOROUGH COUNCIL,15/04/2015,0000380960/001,LEA'S CLEANING SERVICE LTD,01678300,240.00 ,ASSET MANAGEMENT - FACILITIES MANAGEMENT,FACILITIES MANAGEMENT REPAIRS,D908,FACILITIES MANAGEMENT REPAIRS,ASSET MANAGEMENT,WORKS (CONSTRUCTION REPAIR MAINTENANCE)
http://statistics.data.gov.uk/id/local-authority/43UM,WOKING BOROUGH COUNCIL,15/04/2015,0000380277/001,LEA'S CLEANING SERVICE LTD,01678300,1110.00 ,HOUSING SERVICES - CARETAKING COSTS,CONTRACT CLEANING,D900,CONTRACT CLEANING,HOUSING SERVICES,WORKS (CONSTRUCTION REPAIR MAINTENANCE)
http://statistics.data.gov.uk/id/local-authority/43UM,WOKING BOROUGH COUNCIL,15/04/2015,0000380278/001,LEA'S CLEANING SERVICE LTD,01678300,1390.00 ,HOUSING SERVICES - CARETAKING COSTS,CONTRACT CLEANING,D900,CONTRACT CLEANING,HOUSING SERVICES,WORKS (CONSTRUCTION REPAIR MAINTENANCE)
http://statistics.data.gov.uk/id/local-authority/43UM,WOKING BOROUGH COUNCIL,15/04/2015,0000380848/001,LEA'S CLEANING SERVICE LTD,01678300,575.00 ,HOUSING SERVICES - CARETAKING COSTS,CONTRACT CLEANING,D900,CONTRACT CLEANING,HOUSING SERVICES,WORKS (CONSTRUCTION REPAIR MAINTENANCE)
http://statistics.data.gov.uk/id/local-authority/43UM,WOKING BOROUGH COUNCIL,15/04/2015,0000381043/001,LEA'S CLEANING SERVICE LTD,01678300,400.00 ,NEIGHBOURHOOD SERVICES - CPZ WBC FROM 25/7/05,LINES / SIGNS (ROAD MARKINGS),G141,LINES / SIGNS (ROAD MARKINGS),NEIGHBOURHOOD SERVICES,WORKS (CONSTRUCTION REPAIR MAINTENANCE)
http://statistics.data.gov.uk/id/local-authority/43UM,WOKING BOROUGH COUNCIL,15/04/2015,0000381130/001,LG FUTURES LTD,01936800,2995.00 ,FINANCIAL SERVICES - FINANCIAL SERVICES,CONSULTANTS,H670,CONSULTANTS,FINANCIAL SERVICES,CONSULTANCY
http://statistics.data.gov.uk/id/local-authority/43UM,WOKING BOROUGH COUNCIL,15/04/2015,0000380422/001,M&J SEAFOOD,00074600,93.54 ,H G WELLS - H G WELLS - CATERING,PROVISIONS-FOOD,G440,PROVISIONS-FOOD,H G WELLS,CATERING
http://statistics.data.gov.uk/id/local-authority/43UM,WOKING BOROUGH COUNCIL,15/04/2015,0000381068/001,McKAY SECURITIES PLC,40474500,34301.87 ,ASSET MANAGEMENT - TOWN CENTRE LEISURE,EXTERNAL INSURANCE CHARGE,D998,EXTERNAL INSURANCE CHARGE,ASSET MANAGEMENT,HOUSING MANAGEMENT
http://statistics.data.gov.uk/id/local-authority/43UM,WOKING BOROUGH COUNCIL,15/04/2015,0000381158/001,MIT SKILLS LIMITED,40506400,750.00 ,CORPORATE STRATEGY - TOWN CENTRE FORUM,STARTUP WOKING COSTS,H408,STARTUP WOKING COSTS,CORPORATE STRATEGY,FACILITIES & MANAGEMENT SERVICES
http://statistics.data.gov.uk/id/local-authority/43UM,WOKING BOROUGH COUNCIL,15/04/2015,0000381177/001,MJ EVENTS SUPPORT Ltd,40384400,745.16 ,H G WELLS - H G WELLS - FUNCTION ROOMS,CONTRACT SECURITY,H602,CONTRACT SECURITY,H G WELLS,FACILITIES & MANAGEMENT SERVICES
http://statistics.data.gov.uk/id/local-authority/43UM,WOKING BOROUGH COUNCIL,15/04/2015,0000381110/001,MMA HOMES,40501300,18205.33 ,HOUSING SERVICES - DISABLED FACILITIES GRANTS,MANDATORY GRANTS,Q712,MANDATORY GRANTS,HOUSING SERVICES,HOUSING MANAGEMENT
http://statistics.data.gov.uk/id/local-authority/43UM,WOKING BOROUGH COUNCIL,15/04/2015,0000381135/001,MOLE VALLEY DISTRICT COUNCIL,00547600,176.85 ,PLANNING SERVICES - BUILDING REGULATIONS,PAYMENTS TO OTHER LA'S,H695,PAYMENTS TO OTHER LA'S,PLANNING SERVICES,INFORMATION COMMUNICATION TECHNOLOGY
http://statistics.data.gov.uk/id/local-authority/43UM,WOKING BOROUGH COUNCIL,15/04/2015,0000380289/001,MORGAN HUNT PUBLIC SECTOR LIMITED,01768500,1181.07 ,REVENUES AND BENEFITS - COUNCIL TAX,TEMPORARY STAFF,A110,TEMPORARY STAFF,REVENUES AND BENEFITS,HUMAN RESOURCES
http://statistics.data.gov.uk/id/local-authority/43UM,WOKING BOROUGH COUNCIL,15/04/2015,0000380288/001,MORGAN HUNT PUBLIC SECTOR LIMITED,01768500,797.50 ,REVENUES AND BENEFITS - CUSTOMER SERVICES,TEMPORARY STAFF,A110,TEMPORARY STAFF,REVENUES AND BENEFITS,HUMAN RESOURCES
http://statistics.data.gov.uk/id/local-authority/43UM,WOKING BOROUGH COUNCIL,15/04/2015,0000380437/001,MOUCHEL LIMITED,00113000,578.62 ,NEIGHBOURHOOD SERVICES - CPZ WBC FROM 25/7/05,CONSULTANTS,H670,CONSULTANTS,NEIGHBOURHOOD SERVICES,FACILITIES & MANAGEMENT SERVICES
http://statistics.data.gov.uk/id/local-authority/43UM,WOKING BOROUGH COUNCIL,15/04/2015,0000381053/001,MOUNTJOY LIMITED,01920300,54227.70 ,ASSET MANAGEMENT - AMP LEISURE CENTRE REFURB ROOF,MAIN CONTRACTOR,Q200,MAIN CONTRACTOR,ASSET MANAGEMENT,WORKS (CONSTRUCTION REPAIR MAINTENANCE)
http://statistics.data.gov.uk/id/local-authority/43UM,WOKING BOROUGH COUNCIL,15/04/2015,0000381085/001,MWUK LTD t/a ALEXANDRA,00014800,53.49 ,INDEPENDENT LIVING SERVICES - MEALS ON WHEELS,CLOTHING/UNIFORMS,G510,CLOTHING/UNIFORMS,INDEPENDENT LIVING SERVICES,CLOTHING
http://statistics.data.gov.uk/id/local-authority/43UM,WOKING BOROUGH COUNCIL,15/04/2015,0000381086/001,MWUK LTD t/a ALEXANDRA,00014800,4.00 ,INDEPENDENT LIVING SERVICES - MEALS ON WHEELS,CLOTHING/UNIFORMS,G510,CLOTHING/UNIFORMS,INDEPENDENT LIVING SERVICES,CLOTHING
http://statistics.data.gov.uk/id/local-authority/43UM,WOKING BOROUGH COUNCIL,15/04/2015,0000381178/001,MWUK LTD t/a ALEXANDRA,00014800,-19.95 ,INDEPENDENT LIVING SERVICES - MEALS ON WHEELS,CLOTHING/UNIFORMS,G510,CLOTHING/UNIFORMS,INDEPENDENT LIVING SERVICES,CLOTHING
http://statistics.data.gov.uk/id/local-authority/43UM,WOKING BOROUGH COUNCIL,15/04/2015,0000380704/001,NISBETS,00796800,53.90 ,INDEPENDENT LIVING SERVICES - ST MARY'S DAY CENTRE,CLOTHING/UNIFORMS,G510,CLOTHING/UNIFORMS,INDEPENDENT LIVING SERVICES,CATERING
http://statistics.data.gov.uk/id/local-authority/43UM,WOKING BOROUGH COUNCIL,15/04/2015,0000380397/001,NSPCC,01345900,100.00 ,CORPORATE MANAGEMENT GROUP - STAFF TRAINING/GENERAL COSTS,TRAINING - CORPORATE,A910,TRAINING - CORPORATE,CORPORATE MANAGEMENT GROUP,HUMAN RESOURCES
http://statistics.data.gov.uk/id/local-authority/43UM,WOKING BOROUGH COUNCIL,15/04/2015,0000380716/001,O P R LTD,40363500,209.00 ,H G WELLS - H G WELLS GEN MANAGER & OFFICE,TEMPORARY STAFF,A110,TEMPORARY STAFF,H G WELLS,HUMAN RESOURCES
http://statistics.data.gov.uk/id/local-authority/43UM,WOKING BOROUGH COUNCIL,15/04/2015,0000380717/001,O P R LTD,40363500,44.00 ,H G WELLS - H G WELLS GEN MANAGER & OFFICE,TEMPORARY STAFF,A110,TEMPORARY STAFF,H G WELLS,HUMAN RESOURCES
http://statistics.data.gov.uk/id/local-authority/43UM,WOKING BOROUGH COUNCIL,15/04/2015,0000380411/001,OCHRE PRINT STUDIO,40306700,1828.00 ,NEIGHBOURHOOD SERVICES - ARTS PARTNERSHIP SURREY,MISCELLANEOUS EXPENSES,X827,MISCELLANEOUS EXPENSES,NEIGHBOURHOOD SERVICES,FACILITIES & MANAGEMENT SERVICES
http://statistics.data.gov.uk/id/local-authority/43UM,WOKING BOROUGH COUNCIL,15/04/2015,GPC/579046094,ONE STOP MOBILITY,PROCUREMENT CARD,32.83 ,HOUSING SERVICES - HOME IMPS & BEN AGENCY,HANDYPERSON MATERIALS,G201,STOCK GRAB RAILS,MR A KIMBLE,PROFESSIONAL SERVICES-NOT ELSEWHERE CLASSIFIED
http://statistics.data.gov.uk/id/local-authority/43UM,WOKING BOROUGH COUNCIL,15/04/2015,GPC/579361388,OSCARS (WOKING) R/T,PROCUREMENT CARD,20.00 ,INDEPENDENT LIVING SERVICES - BROCKHILL EXTRA CARE,EQUIPMENT,G100,EQUIPMENT (FISH FOOD),PHILLY CAWSEY,PET SHOPS-PET FOOD AND SUPPLIES
http://statistics.data.gov.uk/id/local-authority/43UM,WOKING BOROUGH COUNCIL,15/04/2015,0040000576/001,OUTLINE,01164000,1000.00 ,CORPORATE STRATEGY - GRANTS TO ORGANISATION,GRANTS,H100,GRANTS,CORPORATE STRATEGY,FINANCIAL SERVICES
http://statistics.data.gov.uk/id/local-authority/43UM,WOKING BOROUGH COUNCIL,15/04/2015,0000380452/001,OYSTER PARTNERSHIP,40443300,1053.94 ,PLANNING SERVICES - DEVELOPMENT CONTROL,TEMPORARY STAFF,A110,TEMPORARY STAFF,PLANNING SERVICES,HUMAN RESOURCES
http://statistics.data.gov.uk/id/local-authority/43UM,WOKING BOROUGH COUNCIL,15/04/2015,0000380453/001,OYSTER PARTNERSHIP,40443300,1012.50 ,PLANNING SERVICES - DEVELOPMENT CONTROL,TEMPORARY STAFF,A110,TEMPORARY STAFF,PLANNING SERVICES,HUMAN RESOURCES
http://statistics.data.gov.uk/id/local-authority/43UM,WOKING BOROUGH COUNCIL,15/04/2015,0000380454/001,OYSTER PARTNERSHIP,40443300,1110.00 ,PLANNING SERVICES - DEVELOPMENT CONTROL,TEMPORARY STAFF,A110,TEMPORARY STAFF,PLANNING SERVICES,HUMAN RESOURCES
http://statistics.data.gov.uk/id/local-authority/43UM,WOKING BOROUGH COUNCIL,15/04/2015,0000380380/001,PARKEON LTD,01467400,850.00 ,NEIGHBOURHOOD SERVICES - CAR PARKS ADMIN&OPERATIONAL EX,PRINTING EXTERNAL,G600,PRINTING EXTERNAL,NEIGHBOURHOOD SERVICES,STREET & TRAFFIC MANAGEMENT
http://statistics.data.gov.uk/id/local-authority/43UM,WOKING BOROUGH COUNCIL,15/04/2015,0000380379/001,PARKEON LTD,01467400,410.00 ,NEIGHBOURHOOD SERVICES - CPZ WBC FROM 25/7/05,TICKET MACHINE ANNUAL CONTRACT,D830,TICKET MACHINE ANNUAL CONTRACT,NEIGHBOURHOOD SERVICES,STREET & TRAFFIC MANAGEMENT
http://statistics.data.gov.uk/id/local-authority/43UM,WOKING BOROUGH COUNCIL,15/04/2015,0000380946/001,PERSONNEL SELECTION ASSOCIATES LIMITED,00061400,147.01 ,H G WELLS - H G WELLS - FUNCTION ROOMS,TEMPORARY STAFF,H687,TEMPORARY STAFF,H G WELLS,HUMAN RESOURCES
http://statistics.data.gov.uk/id/local-authority/43UM,WOKING BOROUGH COUNCIL,15/04/2015,0000380947/001,PERSONNEL SELECTION ASSOCIATES LIMITED,00061400,223.13 ,H G WELLS - H G WELLS - FUNCTION ROOMS,TEMPORARY STAFF,H687,TEMPORARY STAFF,H G WELLS,HUMAN RESOURCES
http://statistics.data.gov.uk/id/local-authority/43UM,WOKING BOROUGH COUNCIL,15/04/2015,0000380948/001,PERSONNEL SELECTION ASSOCIATES LIMITED,00061400,57.75 ,H G WELLS - H G WELLS - FUNCTION ROOMS,TEMPORARY STAFF,H687,TEMPORARY STAFF,H G WELLS,HUMAN RESOURCES
http://statistics.data.gov.uk/id/local-authority/43UM,WOKING BOROUGH COUNCIL,15/04/2015,0000380944/001,PERSONNEL SELECTION ASSOCIATES LIMITED,00061400,309.76 ,H G WELLS - H G WELLS - BAR,TEMPORARY STAFF,H687,TEMPORARY STAFF,H G WELLS,HUMAN RESOURCES
http://statistics.data.gov.uk/id/local-authority/43UM,WOKING BOROUGH COUNCIL,15/04/2015,0000380945/001,PERSONNEL SELECTION ASSOCIATES LIMITED,00061400,91.88 ,H G WELLS - H G WELLS - BAR,TEMPORARY STAFF,H687,TEMPORARY STAFF,H G WELLS,HUMAN RESOURCES
http://statistics.data.gov.uk/id/local-authority/43UM,WOKING BOROUGH COUNCIL,15/04/2015,0000380949/001,PERSONNEL SELECTION ASSOCIATES LIMITED,00061400,144.00 ,H G WELLS - H G WELLS - CATERING,TEMPORARY STAFF,H687,TEMPORARY STAFF,H G WELLS,HUMAN RESOURCES
http://statistics.data.gov.uk/id/local-authority/43UM,WOKING BOROUGH COUNCIL,15/04/2015,0000380441/001,PREMIER VANGUARD LTD,00483200,1500.00 ,NEIGHBOURHOOD SERVICES - CAR PARKS ADMIN&OPERATIONAL EX,PRINTING EXTERNAL,G600,PRINTING EXTERNAL,NEIGHBOURHOOD SERVICES,STATIONERY
http://statistics.data.gov.uk/id/local-authority/43UM,WOKING BOROUGH COUNCIL,15/04/2015,0000380349/001,PROJECT114 LTD,40370300,770.00 ,HOUSING SERVICES - HOUSING OPTIONS,BED & BREAKFAST EXPENDITURE,H786,BED & BREAKFAST EXPENDITURE,HOUSING SERVICES,HOUSING MANAGEMENT
http://statistics.data.gov.uk/id/local-authority/43UM,WOKING BOROUGH COUNCIL,15/04/2015,0000380350/001,PROJECT114 LTD,40370300,630.00 ,HOUSING SERVICES - HOUSING OPTIONS,BED & BREAKFAST EXPENDITURE,H786,BED & BREAKFAST EXPENDITURE,HOUSING SERVICES,HOUSING MANAGEMENT
http://statistics.data.gov.uk/id/local-authority/43UM,WOKING BOROUGH COUNCIL,15/04/2015,0000380351/001,PROJECT114 LTD,40370300,420.00 ,HOUSING SERVICES - HOUSING OPTIONS,BED & BREAKFAST EXPENDITURE,H786,BED & BREAKFAST EXPENDITURE,HOUSING SERVICES,HOUSING MANAGEMENT
http://statistics.data.gov.uk/id/local-authority/43UM,WOKING BOROUGH COUNCIL,15/04/2015,0000380352/001,PROJECT114 LTD,40370300,600.00 ,HOUSING SERVICES - HOUSING OPTIONS,BED & BREAKFAST EXPENDITURE,H786,BED & BREAKFAST EXPENDITURE,HOUSING SERVICES,HOUSING MANAGEMENT
http://statistics.data.gov.uk/id/local-authority/43UM,WOKING BOROUGH COUNCIL,15/04/2015,0000380353/001,PROJECT114 LTD,40370300,110.00 ,HOUSING SERVICES - HOUSING OPTIONS,BED & BREAKFAST EXPENDITURE,H786,BED & BREAKFAST EXPENDITURE,HOUSING SERVICES,HOUSING MANAGEMENT
http://statistics.data.gov.uk/id/local-authority/43UM,WOKING BOROUGH COUNCIL,15/04/2015,0000380354/001,PROJECT114 LTD,40370300,560.00 ,HOUSING SERVICES - HOUSING OPTIONS,BED & BREAKFAST EXPENDITURE,H786,BED & BREAKFAST EXPENDITURE,HOUSING SERVICES,HOUSING MANAGEMENT
http://statistics.data.gov.uk/id/local-authority/43UM,WOKING BOROUGH COUNCIL,15/04/2015,0000380355/001,PROJECT114 LTD,40370300,100.00 ,HOUSING SERVICES - HOUSING OPTIONS,BED & BREAKFAST EXPENDITURE,H786,BED & BREAKFAST EXPENDITURE,HOUSING SERVICES,HOUSING MANAGEMENT
http://statistics.data.gov.uk/id/local-authority/43UM,WOKING BOROUGH COUNCIL,15/04/2015,0000380356/001,PROJECT114 LTD,40370300,770.00 ,HOUSING SERVICES - HOUSING OPTIONS,BED & BREAKFAST EXPENDITURE,H786,BED & BREAKFAST EXPENDITURE,HOUSING SERVICES,HOUSING MANAGEMENT
http://statistics.data.gov.uk/id/local-authority/43UM,WOKING BOROUGH COUNCIL,15/04/2015,0000380357/001,PROJECT114 LTD,40370300,700.00 ,HOUSING SERVICES - HOUSING OPTIONS,BED & BREAKFAST EXPENDITURE,H786,BED & BREAKFAST EXPENDITURE,HOUSING SERVICES,HOUSING MANAGEMENT
http://statistics.data.gov.uk/id/local-authority/43UM,WOKING BOROUGH COUNCIL,15/04/2015,0000380358/001,PROJECT114 LTD,40370300,400.00 ,HOUSING SERVICES - HOUSING OPTIONS,BED & BREAKFAST EXPENDITURE,H786,BED & BREAKFAST EXPENDITURE,HOUSING SERVICES,HOUSING MANAGEMENT
http://statistics.data.gov.uk/id/local-authority/43UM,WOKING BOROUGH COUNCIL,15/04/2015,0000380359/001,PROJECT114 LTD,40370300,560.00 ,HOUSING SERVICES - HOUSING OPTIONS,BED & BREAKFAST EXPENDITURE,H786,BED & BREAKFAST EXPENDITURE,HOUSING SERVICES,HOUSING MANAGEMENT
http://statistics.data.gov.uk/id/local-authority/43UM,WOKING BOROUGH COUNCIL,15/04/2015,0000380360/001,PROJECT114 LTD,40370300,560.00 ,HOUSING SERVICES - HOUSING OPTIONS,BED & BREAKFAST EXPENDITURE,H786,BED & BREAKFAST EXPENDITURE,HOUSING SERVICES,HOUSING MANAGEMENT
http://statistics.data.gov.uk/id/local-authority/43UM,WOKING BOROUGH COUNCIL,15/04/2015,0000380361/001,PROJECT114 LTD,40370300,560.00 ,HOUSING SERVICES - HOUSING OPTIONS,BED & BREAKFAST EXPENDITURE,H786,BED & BREAKFAST EXPENDITURE,HOUSING SERVICES,HOUSING MANAGEMENT
http://statistics.data.gov.uk/id/local-authority/43UM,WOKING BOROUGH COUNCIL,15/04/2015,0000380362/001,PROJECT114 LTD,40370300,700.00 ,HOUSING SERVICES - HOUSING OPTIONS,BED & BREAKFAST EXPENDITURE,H786,BED & BREAKFAST EXPENDITURE,HOUSING SERVICES,HOUSING MANAGEMENT
http://statistics.data.gov.uk/id/local-authority/43UM,WOKING BOROUGH COUNCIL,15/04/2015,0000380847/001,PROJECT114 LTD,40370300,700.00 ,HOUSING SERVICES - HOUSING OPTIONS,BED & BREAKFAST EXPENDITURE,H786,BED & BREAKFAST EXPENDITURE,HOUSING SERVICES,HOUSING MANAGEMENT
http://statistics.data.gov.uk/id/local-authority/43UM,WOKING BOROUGH COUNCIL,15/04/2015,0000380909/001,PROJECT114 LTD,40370300,770.00 ,HOUSING SERVICES - HOUSING OPTIONS,BED & BREAKFAST EXPENDITURE,H786,BED & BREAKFAST EXPENDITURE,HOUSING SERVICES,HOUSING MANAGEMENT
http://statistics.data.gov.uk/id/local-authority/43UM,WOKING BOROUGH COUNCIL,15/04/2015,0000380438/001,RAINER SECURITY PRODUCTS LTD,00030400,85.50 ,NEIGHBOURHOOD SERVICES - PARKS-GENERAL,PLAY EQUIPMENT,G167,PLAY EQUIPMENT,NEIGHBOURHOOD SERVICES,FACILITIES & MANAGEMENT SERVICES
http://statistics.data.gov.uk/id/local-authority/43UM,WOKING BOROUGH COUNCIL,15/04/2015,0000380532/001,REEVES BUTCHERS LIMITED,01005000,163.79 ,H G WELLS - H G WELLS - CATERING,PROVISIONS-FOOD,G440,PROVISIONS-FOOD,H G WELLS,CATERING
http://statistics.data.gov.uk/id/local-authority/43UM,WOKING BOROUGH COUNCIL,15/04/2015,0000380579/001,REMEDY CREATIVE LIMITED,40504100,3700.00 ,H G WELLS - H G WELLS - FUNCTION ROOMS,ADVERTISING,H400,ADVERTISING,H G WELLS,FACILITIES & MANAGEMENT SERVICES
http://statistics.data.gov.uk/id/local-authority/43UM,WOKING BOROUGH COUNCIL,15/04/2015,0000381015/001,SAFEGUARD COACHES LIMITED,00888300,2370.00 ,CORPORATE MANAGEMENT GROUP - JUNIOR CITIZEN SCHEME,PAYMENTS TO ORGANISATIONS,X800,PAYMENTS TO ORGANISATIONS,CORPORATE MANAGEMENT GROUP,PUBLIC TRANSPORT
http://statistics.data.gov.uk/id/local-authority/43UM,WOKING BOROUGH COUNCIL,15/04/2015,0000380885/001,SAM MCCARTHY,00164000,3.00 ,HOUSING SERVICES - HOUSING SERVICES GENERAL EXPEN,TRAVEL EXPENSES-OFFICERS,F600,TRAVEL EXPENSES-OFFICERS,HOUSING SERVICES,HUMAN RESOURCES
http://statistics.data.gov.uk/id/local-authority/43UM,WOKING BOROUGH COUNCIL,15/04/2015,0000381014/001,REDACTED PERSONAL DATA,40505800,4000.00 ,CORPORATE STRATEGY - SHEERWATER ACCESS RD ENABLING,CONTRACTOR MISCELLANEOUS,Q201,CONTRACTOR MISCELLANEOUS,CORPORATE STRATEGY,FINANCIAL SERVICES
http://statistics.data.gov.uk/id/local-authority/43UM,WOKING BOROUGH COUNCIL,15/04/2015,0000380939/003,SCATTERGOODS AGENCY LTD,00094600,401.50 ,H G WELLS - H G WELLS GEN MANAGER & OFFICE,TEMPORARY STAFF,A110,TEMPORARY STAFF,H G WELLS,HUMAN RESOURCES
http://statistics.data.gov.uk/id/local-authority/43UM,WOKING BOROUGH COUNCIL,15/04/2015,0000380939/002,SCATTERGOODS AGENCY LTD,00094600,959.01 ,H G WELLS - H G WELLS - FUNCTION ROOMS,TEMPORARY STAFF,H687,TEMPORARY STAFF,H G WELLS,HUMAN RESOURCES
http://statistics.data.gov.uk/id/local-authority/43UM,WOKING BOROUGH COUNCIL,15/04/2015,0000380939/001,SCATTERGOODS AGENCY LTD,00094600,358.50 ,H G WELLS - H G WELLS - CATERING,TEMPORARY STAFF,H687,TEMPORARY STAFF,H G WELLS,HUMAN RESOURCES
http://statistics.data.gov.uk/id/local-authority/43UM,WOKING BOROUGH COUNCIL,15/04/2015,0000380941/001,SCATTERGOODS AGENCY LTD,00094600,1216.12 ,H G WELLS - H G WELLS - CATERING,TEMPORARY STAFF,H687,TEMPORARY STAFF,H G WELLS,HUMAN RESOURCES
http://statistics.data.gov.uk/id/local-authority/43UM,WOKING BOROUGH COUNCIL,15/04/2015,GPC/579046380,SCREWFIX,PROCUREMENT CARD,49.98 ,HOUSING SERVICES - HOME IMPS & BEN AGENCY,HANDYPERSON MATERIALS,G201,SUNDRIES,MR A KIMBLE,BUILDING MATERIALS LUMBER STORES
http://statistics.data.gov.uk/id/local-authority/43UM,WOKING BOROUGH COUNCIL,15/04/2015,0000380569/001,SECURITY BY DGL t/a DGL SERVICES,40500700,405.00 ,H G WELLS - H G WELLS - FUNCTION ROOMS,CONTRACT SECURITY,H602,CONTRACT SECURITY,H G WELLS,FACILITIES & MANAGEMENT SERVICES
http://statistics.data.gov.uk/id/local-authority/43UM,WOKING BOROUGH COUNCIL,15/04/2015,0000380991/001,SICO EUROPE LIMITED,01068800,236.00 ,INDEPENDENT LIVING SERVICES - ST MARY'S DAY CENTRE,EQUIPMENT REPAIR & MAINTENANCE,G120,EQUIPMENT REPAIR & MAINTENANCE,INDEPENDENT LIVING SERVICES,FURNITURE & SOFT FURNISHINGS
http://statistics.data.gov.uk/id/local-authority/43UM,WOKING BOROUGH COUNCIL,15/04/2015,0000380405/001,STRATAGEMS BUSINESS SOLUTIONS,40339900,400.00 ,CORPORATE STRATEGY - TOWN CENTRE FORUM,STARTUP WOKING COSTS,H408,STARTUP WOKING COSTS,CORPORATE STRATEGY,FACILITIES & MANAGEMENT SERVICES
http://statistics.data.gov.uk/id/local-authority/43UM,WOKING BOROUGH COUNCIL,15/04/2015,0040000575/001,SURREY CROSSROADS,00041500,2474.38 ,CORPORATE STRATEGY - GRANTS TO ORGANISATION,GRANTS,H100,GRANTS,CORPORATE STRATEGY,FINANCIAL SERVICES
http://statistics.data.gov.uk/id/local-authority/43UM,WOKING BOROUGH COUNCIL,15/04/2015,0000381048/001,THAMESWAY CONTRACTORS LIMITED,40469300,2875.00 ,NEIGHBOURHOOD SERVICES - STREET FURNITURE,GROUNDS MAINT-CONTRACTORS,D200,GROUNDS MAINT-CONTRACTORS,NEIGHBOURHOOD SERVICES,WORKS (CONSTRUCTION REPAIR MAINTENANCE)
http://statistics.data.gov.uk/id/local-authority/43UM,WOKING BOROUGH COUNCIL,15/04/2015,0000381041/008,THAMESWEY ENERGY LIMITED,01142300,8026.71 ,ASSET MANAGEMENT - TOWN CENTRE LEISURE,TEL ENERGY SERVICE CHARGE,D180,TEL ENERGY SERVICE CHARGE,ASSET MANAGEMENT,UTILITIES
http://statistics.data.gov.uk/id/local-authority/43UM,WOKING BOROUGH COUNCIL,15/04/2015,0000381041/007,THAMESWEY ENERGY LIMITED,01142300,1236.24 ,ASSET MANAGEMENT - CIVIC OFFICES,TEL ENERGY SERVICE CHARGE,D180,TEL ENERGY SERVICE CHARGE,ASSET MANAGEMENT,UTILITIES
http://statistics.data.gov.uk/id/local-authority/43UM,WOKING BOROUGH COUNCIL,15/04/2015,0000381041/001,THAMESWEY ENERGY LIMITED,01142300,3005.28 ,INDEPENDENT LIVING SERVICES - MEALS SERVICE - BROCKHILL,TEL ENERGY SERVICE CHARGE,D180,TEL ENERGY SERVICE CHARGE,INDEPENDENT LIVING SERVICES,UTILITIES
http://statistics.data.gov.uk/id/local-authority/43UM,WOKING BOROUGH COUNCIL,15/04/2015,0000381041/004,THAMESWEY ENERGY LIMITED,01142300,3196.55 ,HOUSING SERVICES - ENERGY,TEL ENERGY SERVICE CHARGE,D180,TEL ENERGY SERVICE CHARGE,HOUSING SERVICES,UTILITIES
http://statistics.data.gov.uk/id/local-authority/43UM,WOKING BOROUGH COUNCIL,15/04/2015,0000381041/006,THAMESWEY ENERGY LIMITED,01142300,3436.43 ,HOUSING SERVICES - ENERGY,TEL ENERGY SERVICE CHARGE,D180,TEL ENERGY SERVICE CHARGE,HOUSING SERVICES,UTILITIES
http://statistics.data.gov.uk/id/local-authority/43UM,WOKING BOROUGH COUNCIL,15/04/2015,0000381042/003,THAMESWEY ENERGY LIMITED,01142300,43546.02 ,HOUSING SERVICES - ENERGY,TEL ENERGY SERVICE CHARGE,D180,TEL ENERGY SERVICE CHARGE,HOUSING SERVICES,UTILITIES
http://statistics.data.gov.uk/id/local-authority/43UM,WOKING BOROUGH COUNCIL,15/04/2015,0000381041/002,THAMESWEY ENERGY LIMITED,01142300,9175.13 ,CORPORATE STRATEGY - LEISURE MANAGEMENT CONTRACT,TEL ENERGY SERVICE CHARGE,D180,TEL ENERGY SERVICE CHARGE,CORPORATE STRATEGY,UTILITIES
http://statistics.data.gov.uk/id/local-authority/43UM,WOKING BOROUGH COUNCIL,15/04/2015,0000381041/005,THAMESWEY ENERGY LIMITED,01142300,3852.71 ,CORPORATE STRATEGY - LEISURE MANAGEMENT CONTRACT,TEL ENERGY SERVICE CHARGE,D180,TEL ENERGY SERVICE CHARGE,CORPORATE STRATEGY,UTILITIES
http://statistics.data.gov.uk/id/local-authority/43UM,WOKING BOROUGH COUNCIL,15/04/2015,0000381041/009,THAMESWEY ENERGY LIMITED,01142300,10659.21 ,CORPORATE STRATEGY - LEISURE MANAGEMENT CONTRACT,TEL ENERGY SERVICE CHARGE,D180,TEL ENERGY SERVICE CHARGE,CORPORATE STRATEGY,UTILITIES
http://statistics.data.gov.uk/id/local-authority/43UM,WOKING BOROUGH COUNCIL,15/04/2015,0000381042/002,THAMESWEY ENERGY LIMITED,01142300,22102.90 ,CORPORATE STRATEGY - LEISURE MANAGEMENT CONTRACT,TEL ENERGY SERVICE CHARGE,D180,TEL ENERGY SERVICE CHARGE,CORPORATE STRATEGY,UTILITIES
http://statistics.data.gov.uk/id/local-authority/43UM,WOKING BOROUGH COUNCIL,15/04/2015,0000381042/001,THAMESWEY ENERGY LIMITED,01142300,329.90 ,NEIGHBOURHOOD SERVICES - PARKS-GENERAL,TEL ENERGY SERVICE CHARGE,D180,TEL ENERGY SERVICE CHARGE,NEIGHBOURHOOD SERVICES,UTILITIES
http://statistics.data.gov.uk/id/local-authority/43UM,WOKING BOROUGH COUNCIL,15/04/2015,0000381041/003,THAMESWEY ENERGY LIMITED,01142300,4083.08 ,NEIGHBOURHOOD SERVICES - CAR PARKS ADMIN&OPERATIONAL EX,TEL ENERGY SERVICE CHARGE,D180,TEL ENERGY SERVICE CHARGE,NEIGHBOURHOOD SERVICES,UTILITIES
http://statistics.data.gov.uk/id/local-authority/43UM,WOKING BOROUGH COUNCIL,15/04/2015,0000380986/001,THE HALO WORKS LTD,01969000,3989.10 ,HOUSING SERVICES - HRA MARKET TESTING,CONSULTANTS,H670,CONSULTANTS,HOUSING SERVICES,CONSULTANCY
http://statistics.data.gov.uk/id/local-authority/43UM,WOKING BOROUGH COUNCIL,15/04/2015,0000380962/001,THE LIGHTBOX,01952400,56.00 ,CORPORATE MANAGEMENT GROUP - CORPORATE MANAGEMENT GROUP,OFFICIAL HOSPITALITY,H310,OFFICIAL HOSPITALITY,CORPORATE MANAGEMENT GROUP,CATERING
http://statistics.data.gov.uk/id/local-authority/43UM,WOKING BOROUGH COUNCIL,15/04/2015,0000380890/001,THE LIGHTBOX,01952400,48.00 ,CORPORATE STRATEGY - CORPORATE STRATEGY GENERAL EXP,OFFICIAL HOSPITALITY,H310,OFFICIAL HOSPITALITY,CORPORATE STRATEGY,CATERING
http://statistics.data.gov.uk/id/local-authority/43UM,WOKING BOROUGH COUNCIL,15/04/2015,GPC/579042724,TICKETOFFICESALE,PROCUREMENT CARD,14.00 ,CORPORATE STRATEGY - CORPORATE STRATEGY GENERAL EXP,TRAVEL EXPENSES-OFFICERS,F600,TRAIN VARIOUS,MR TIMOTHY S LOWE,PASSENGER RAILWAYS
http://statistics.data.gov.uk/id/local-authority/43UM,WOKING BOROUGH COUNCIL,15/04/2015,0000381013/001,TITANIC MANAGEMENT SERVICES,40300500,858.00 ,REVENUES AND BENEFITS - BENEFIT SERVICES,TEMPORARY STAFF,A110,TEMPORARY STAFF,REVENUES AND BENEFITS,HUMAN RESOURCES
http://statistics.data.gov.uk/id/local-authority/43UM,WOKING BOROUGH COUNCIL,15/04/2015,0000380414/001,TOWN & COUNTRY FINE FOODS,40279900,72.52 ,H G WELLS - H G WELLS - CATERING,PROVISIONS-FOOD,G440,PROVISIONS-FOOD,H G WELLS,CATERING
http://statistics.data.gov.uk/id/local-authority/43UM,WOKING BOROUGH COUNCIL,15/04/2015,0000380415/001,TOWN & COUNTRY FINE FOODS,40279900,116.61 ,H G WELLS - H G WELLS - CATERING,PROVISIONS-FOOD,G440,PROVISIONS-FOOD,H G WELLS,CATERING
http://statistics.data.gov.uk/id/local-authority/43UM,WOKING BOROUGH COUNCIL,15/04/2015,0000380064/001,TUNSTALL HEALTHCARE (UK) Ltd,00019000,449.64 ,INDEPENDENT LIVING SERVICES - COMMUNITY ALARMS-HRA,EQUIPMENT REPAIR & MAINTENANCE,G120,EQUIPMENT REPAIR & MAINTENANCE,INDEPENDENT LIVING SERVICES,HEALTHCARE
http://statistics.data.gov.uk/id/local-authority/43UM,WOKING BOROUGH COUNCIL,15/04/2015,0000380561/001,TURNER & TOWNSEND PROJECT MANAGEMENT LTD,40356700,1204.17 ,HOUSING SERVICES - PFI BID,OTHER CONSULTANTS,Q430,OTHER CONSULTANTS,HOUSING SERVICES,WORKS (CONSTRUCTION REPAIR MAINTENANCE)
http://statistics.data.gov.uk/id/local-authority/43UM,WOKING BOROUGH COUNCIL,15/04/2015,0000381168/001,TV LICENSING,00056000,97.50 ,INDEPENDENT LIVING SERVICES - HOME SUPPORT SERVICE,TV LICENCE,H703,TV LICENCE,INDEPENDENT LIVING SERVICES,UTILITIES
http://statistics.data.gov.uk/id/local-authority/43UM,WOKING BOROUGH COUNCIL,15/04/2015,0000380408/001,UBIQUS UK Ltd,40502500,610.40 ,CORPORATE STRATEGY - INDPDNT S/WATER SCRUTINY PANEL,PYMNTS TO CONTRACTOR RE PANEL,Q646,PYMNTS TO CONTRACTOR RE PANEL,CORPORATE STRATEGY,HUMAN RESOURCES
http://statistics.data.gov.uk/id/local-authority/43UM,WOKING BOROUGH COUNCIL,15/04/2015,0000380850/001,UNITY RECRUITMENT Ltd,40160500,642.60 ,NEIGHBOURHOOD SERVICES - REGULATION AND ENFORCEMENT,TEMPORARY STAFF,A110,TEMPORARY STAFF,NEIGHBOURHOOD SERVICES,HUMAN RESOURCES
http://statistics.data.gov.uk/id/local-authority/43UM,WOKING BOROUGH COUNCIL,15/04/2015,0000380851/001,UNITY RECRUITMENT Ltd,40160500,749.70 ,NEIGHBOURHOOD SERVICES - REGULATION AND ENFORCEMENT,TEMPORARY STAFF,A110,TEMPORARY STAFF,NEIGHBOURHOOD SERVICES,HUMAN RESOURCES
http://statistics.data.gov.uk/id/local-authority/43UM,WOKING BOROUGH COUNCIL,15/04/2015,0000380852/001,UNITY RECRUITMENT Ltd,40160500,535.50 ,NEIGHBOURHOOD SERVICES - REGULATION AND ENFORCEMENT,TEMPORARY STAFF,A110,TEMPORARY STAFF,NEIGHBOURHOOD SERVICES,HUMAN RESOURCES
http://statistics.data.gov.uk/id/local-authority/43UM,WOKING BOROUGH COUNCIL,15/04/2015,0000380853/001,UNITY RECRUITMENT Ltd,40160500,535.50 ,NEIGHBOURHOOD SERVICES - REGULATION AND ENFORCEMENT,TEMPORARY STAFF,A110,TEMPORARY STAFF,NEIGHBOURHOOD SERVICES,HUMAN RESOURCES
http://statistics.data.gov.uk/id/local-authority/43UM,WOKING BOROUGH COUNCIL,15/04/2015,0000380069/001,VENN GROUP LIMITED,40383900,863.50 ,REVENUES AND BENEFITS - COUNCIL TAX,TEMPORARY STAFF,A110,TEMPORARY STAFF,REVENUES AND BENEFITS,HUMAN RESOURCES
http://statistics.data.gov.uk/id/local-authority/43UM,WOKING BOROUGH COUNCIL,15/04/2015,0000380070/001,VENN GROUP LIMITED,40383900,968.00 ,REVENUES AND BENEFITS - COUNCIL TAX,TEMPORARY STAFF,A110,TEMPORARY STAFF,REVENUES AND BENEFITS,HUMAN RESOURCES
http://statistics.data.gov.uk/id/local-authority/43UM,WOKING BOROUGH COUNCIL,15/04/2015,0000380071/001,VENN GROUP LIMITED,40383900,863.50 ,REVENUES AND BENEFITS - COUNCIL TAX,TEMPORARY STAFF,A110,TEMPORARY STAFF,REVENUES AND BENEFITS,HUMAN RESOURCES
http://statistics.data.gov.uk/id/local-authority/43UM,WOKING BOROUGH COUNCIL,15/04/2015,0000381092/001,VIRGIN MEDIA BUSINESS,00316500,329.70 ,INFORMATION TECHNOLOGY - COMMUNICATIONS,NETWORK CIRCUITS,G800,NETWORK CIRCUITS,INFORMATION TECHNOLOGY,INFORMATION COMMUNICATION TECHNOLOGY
http://statistics.data.gov.uk/id/local-authority/43UM,WOKING BOROUGH COUNCIL,15/04/2015,0000381092/002,VIRGIN MEDIA BUSINESS,00316500,852.18 ,INFORMATION TECHNOLOGY - COMMUNICATIONS,VOICE MAINTENANCE,G824,VOICE MAINTENANCE,INFORMATION TECHNOLOGY,INFORMATION COMMUNICATION TECHNOLOGY
http://statistics.data.gov.uk/id/local-authority/43UM,WOKING BOROUGH COUNCIL,15/04/2015,0000380855/001,VODAFONE LIMITED,00125100,0.71 ,ASSET MANAGEMENT - FACILITIES MANAGEMENT,FACILITIES MANAGEMENT REPAIRS,D908,FACILITIES MANAGEMENT REPAIRS,ASSET MANAGEMENT,INFORMATION COMMUNICATION TECHNOLOGY
http://statistics.data.gov.uk/id/local-authority/43UM,WOKING BOROUGH COUNCIL,15/04/2015,0000380855/002,VODAFONE LIMITED,00125100,0.27 ,ASSET MANAGEMENT - FACILITIES MANAGEMENT,FACILITIES MANAGEMENT REPAIRS,D908,FACILITIES MANAGEMENT REPAIRS,ASSET MANAGEMENT,INFORMATION COMMUNICATION TECHNOLOGY
http://statistics.data.gov.uk/id/local-authority/43UM,WOKING BOROUGH COUNCIL,15/04/2015,0000380856/001,VODAFONE LIMITED,00125100,0.71 ,ASSET MANAGEMENT - FACILITIES MANAGEMENT,FACILITIES MANAGEMENT REPAIRS,D908,FACILITIES MANAGEMENT REPAIRS,ASSET MANAGEMENT,INFORMATION COMMUNICATION TECHNOLOGY
http://statistics.data.gov.uk/id/local-authority/43UM,WOKING BOROUGH COUNCIL,15/04/2015,0000380856/002,VODAFONE LIMITED,00125100,0.27 ,ASSET MANAGEMENT - FACILITIES MANAGEMENT,FACILITIES MANAGEMENT REPAIRS,D908,FACILITIES MANAGEMENT REPAIRS,ASSET MANAGEMENT,INFORMATION COMMUNICATION TECHNOLOGY
http://statistics.data.gov.uk/id/local-authority/43UM,WOKING BOROUGH COUNCIL,15/04/2015,0000380859/001,VODAFONE LIMITED,00125100,2.02 ,ASSET MANAGEMENT - VALUATION SERVICES,MOBILE PHONE COSTS,G846,MOBILE PHONE COSTS,ASSET MANAGEMENT,INFORMATION COMMUNICATION TECHNOLOGY
http://statistics.data.gov.uk/id/local-authority/43UM,WOKING BOROUGH COUNCIL,15/04/2015,0000380859/002,VODAFONE LIMITED,00125100,0.75 ,ASSET MANAGEMENT - VALUATION SERVICES,MOBILE PHONE COSTS,G846,MOBILE PHONE COSTS,ASSET MANAGEMENT,INFORMATION COMMUNICATION TECHNOLOGY
http://statistics.data.gov.uk/id/local-authority/43UM,WOKING BOROUGH COUNCIL,15/04/2015,0000380857/001,VODAFONE LIMITED,00125100,8.59 ,ASSET MANAGEMENT - BUILDING SERVICES,MOBILE PHONE COSTS,G846,MOBILE PHONE COSTS,ASSET MANAGEMENT,INFORMATION COMMUNICATION TECHNOLOGY
http://statistics.data.gov.uk/id/local-authority/43UM,WOKING BOROUGH COUNCIL,15/04/2015,0000380857/002,VODAFONE LIMITED,00125100,0.75 ,ASSET MANAGEMENT - BUILDING SERVICES,MOBILE PHONE COSTS,G846,MOBILE PHONE COSTS,ASSET MANAGEMENT,INFORMATION COMMUNICATION TECHNOLOGY
http://statistics.data.gov.uk/id/local-authority/43UM,WOKING BOROUGH COUNCIL,15/04/2015,0000380860/001,VODAFONE LIMITED,00125100,6.22 ,ASSET MANAGEMENT - BUILDING SERVICES,MOBILE PHONE COSTS,G846,MOBILE PHONE COSTS,ASSET MANAGEMENT,INFORMATION COMMUNICATION TECHNOLOGY
http://statistics.data.gov.uk/id/local-authority/43UM,WOKING BOROUGH COUNCIL,15/04/2015,0000380860/002,VODAFONE LIMITED,00125100,2.25 ,ASSET MANAGEMENT - BUILDING SERVICES,MOBILE PHONE COSTS,G846,MOBILE PHONE COSTS,ASSET MANAGEMENT,INFORMATION COMMUNICATION TECHNOLOGY
http://statistics.data.gov.uk/id/local-authority/43UM,WOKING BOROUGH COUNCIL,15/04/2015,0000380858/001,VODAFONE LIMITED,00125100,18.00 ,INFORMATION TECHNOLOGY - COMMUNICATIONS,MOBILE PHONE COSTS,G846,MOBILE PHONE COSTS,INFORMATION TECHNOLOGY,INFORMATION COMMUNICATION TECHNOLOGY
http://statistics.data.gov.uk/id/local-authority/43UM,WOKING BOROUGH COUNCIL,15/04/2015,0000380858/002,VODAFONE LIMITED,00125100,0.75 ,INFORMATION TECHNOLOGY - COMMUNICATIONS,MOBILE PHONE COSTS,G846,MOBILE PHONE COSTS,INFORMATION TECHNOLOGY,INFORMATION COMMUNICATION TECHNOLOGY
http://statistics.data.gov.uk/id/local-authority/43UM,WOKING BOROUGH COUNCIL,15/04/2015,0000380862/001,VODAFONE LIMITED,00125100,54.00 ,INFORMATION TECHNOLOGY - COMMUNICATIONS,MOBILE PHONE COSTS,G846,MOBILE PHONE COSTS,INFORMATION TECHNOLOGY,INFORMATION COMMUNICATION TECHNOLOGY
http://statistics.data.gov.uk/id/local-authority/43UM,WOKING BOROUGH COUNCIL,15/04/2015,0000380862/002,VODAFONE LIMITED,00125100,2.25 ,INFORMATION TECHNOLOGY - COMMUNICATIONS,MOBILE PHONE COSTS,G846,MOBILE PHONE COSTS,INFORMATION TECHNOLOGY,INFORMATION COMMUNICATION TECHNOLOGY
http://statistics.data.gov.uk/id/local-authority/43UM,WOKING BOROUGH COUNCIL,15/04/2015,0000380863/001,VODAFONE LIMITED,00125100,18.00 ,INFORMATION TECHNOLOGY - COMMUNICATIONS,MOBILE PHONE COSTS,G846,MOBILE PHONE COSTS,INFORMATION TECHNOLOGY,INFORMATION COMMUNICATION TECHNOLOGY
http://statistics.data.gov.uk/id/local-authority/43UM,WOKING BOROUGH COUNCIL,15/04/2015,0000380863/002,VODAFONE LIMITED,00125100,0.75 ,INFORMATION TECHNOLOGY - COMMUNICATIONS,MOBILE PHONE COSTS,G846,MOBILE PHONE COSTS,INFORMATION TECHNOLOGY,INFORMATION COMMUNICATION TECHNOLOGY
